Department Family,Entity,Date,Expense Type,Expense area,Supplier,Transaction Number,Amount,VAT registration Number
Department of Health,Salisbury NHS Foundation Trust,06-Sep-13,OTHER BUILDING COSTS,Capital Projects,PKL GROUP (UK) LTD,362562,47223,
Department of Health,Salisbury NHS Foundation Trust,06-Sep-13,OTHER BUILDING COSTS,Capital Projects,PKL GROUP (UK) LTD,362562,9444.6,
Department of Health,Salisbury NHS Foundation Trust,06-Sep-13,OTHER BUILDING COSTS,Capital Projects,PKL GROUP (UK) LTD,362562,47223,
Department of Health,Salisbury NHS Foundation Trust,06-Sep-13,OTHER BUILDING COSTS,Capital Projects,PKL GROUP (UK) LTD,362562,37.11,
Department of Health,Salisbury NHS Foundation Trust,06-Sep-13,OTHER BUILDING COSTS,Capital Projects,PKL GROUP (UK) LTD,362562,9296.16,
Department of Health,Salisbury NHS Foundation Trust,06-Sep-13,BLDG STRUCTURES MAIN CONTR,Capital Projects,R G SPILLER LTD,D13036B,142503.55,
Department of Health,Salisbury NHS Foundation Trust,06-Sep-13,BLDG STRUCTURES MAIN CONTR,Capital Projects,R G SPILLER LTD,D13036B,28500.71,
Department of Health,Salisbury NHS Foundation Trust,06-Sep-13,BLDG STRUCTURES MAIN CONTR,Capital Projects,R G SPILLER LTD,D13006C,92535.52,
Department of Health,Salisbury NHS Foundation Trust,06-Sep-13,BLDG STRUCTURES MAIN CONTR,Capital Projects,R G SPILLER LTD,D13006C,6146.21,
Department of Health,Salisbury NHS Foundation Trust,06-Sep-13,DRUGS,Clinical Support and Family Services,ROCHE PRODUCTS LTD,1321610150,48051.15,
Department of Health,Salisbury NHS Foundation Trust,06-Sep-13,DRUGS,Clinical Support and Family Services,ROCHE PRODUCTS LTD,1321610150,9610.23,
Department of Health,Salisbury NHS Foundation Trust,13-Sep-13,HEALTHCARE - NHS TRUSTS,Clinical Support and Family Services,GREAT WESTERN HOSPITALS NHS FT,16941482,53509.47,
Department of Health,Salisbury NHS Foundation Trust,13-Sep-13,ETS UNITARY CHARGE,Facilities Directorate,SALISBURY HEALTHCARE FACILITIES LTD,185,285567.87,
Department of Health,Salisbury NHS Foundation Trust,13-Sep-13,BLOOD PRODUCTS,Clinical Support and Family Services,NATIONAL BLOOD SERVICE,824912,66064.51,
Department of Health,Salisbury NHS Foundation Trust,13-Sep-13,MISCELLANEOUS CAPITAL,Capital Projects,DATIX BUSINESS SYSTEMS LIMITED,104523,29581.5,
Department of Health,Salisbury NHS Foundation Trust,13-Sep-13,HARD/SOFTWARE-COMPUTER SOFTWARE  SPECIALISED BESPOKE,Nursing Directorate,DATIX BUSINESS SYSTEMS LIMITED,104523,3705,
Department of Health,Salisbury NHS Foundation Trust,13-Sep-13,MISCELLANEOUS CAPITAL,Capital Projects,DATIX BUSINESS SYSTEMS LIMITED,104523,5916.3,
Department of Health,Salisbury NHS Foundation Trust,13-Sep-13,HARD/SOFTWARE-COMPUTER SOFTWARE  SPECIALISED BESPOKE,Nursing Directorate,DATIX BUSINESS SYSTEMS LIMITED,104523,741,
Department of Health,Salisbury NHS Foundation Trust,13-Sep-13,RATES,Facilities Directorate,WILTSHIRE COUNCIL,Sep-13,77207,
Department of Health,Salisbury NHS Foundation Trust,13-Sep-13,RATES,Facilities Directorate,WILTSHIRE COUNCIL,Sep-13,8600,
Department of Health,Salisbury NHS Foundation Trust,20-Sep-13,ENERGY WATER - WATER MAINS,Facilities Directorate,BWBSL,4067741834,29168.2,
Department of Health,Salisbury NHS Foundation Trust,20-Sep-13,ENERGY WATER - SEWERAGE CHARGES,Facilities Directorate,BWBSL,4067741834,10394.9,
Department of Health,Salisbury NHS Foundation Trust,20-Sep-13,ENERGY WATER - GAS MAINS,Facilities Directorate,CORONA ENERGY,8618724,7626.28,
Department of Health,Salisbury NHS Foundation Trust,20-Sep-13,ENERGY WATER - GAS MAINS,Facilities Directorate,CORONA ENERGY,8618724,63811.92,
Department of Health,Salisbury NHS Foundation Trust,20-Sep-13,ENERGY WATER - GAS MAINS,Facilities Directorate,CORONA ENERGY,8618724,381.31,
Department of Health,Salisbury NHS Foundation Trust,20-Sep-13,ENERGY WATER - GAS MAINS,Facilities Directorate,CORONA ENERGY,8618724,12762.38,
Department of Health,Salisbury NHS Foundation Trust,20-Sep-13,ENERGY WATER - ELECTRICITY,Facilities Directorate,EDF ENERGY,25,70010.46,
Department of Health,Salisbury NHS Foundation Trust,20-Sep-13,DRUGS,Clinical Support and Family Services,ROCHE PRODUCTS LTD,1321616216,21245.25,
Department of Health,Salisbury NHS Foundation Trust,20-Sep-13,DRUGS,Clinical Support and Family Services,ROCHE PRODUCTS LTD,1321616216,4249.05,
Department of Health,Salisbury NHS Foundation Trust,20-Sep-13,DRUGS,Clinical Support and Family Services,ROCHE PRODUCTS LTD,1321615784,25461.27,
Department of Health,Salisbury NHS Foundation Trust,20-Sep-13,DRUGS,Clinical Support and Family Services,ROCHE PRODUCTS LTD,1321615784,5092.25,
Department of Health,Salisbury NHS Foundation Trust,20-Sep-13,HEALTHCARE - NHS TRUSTS,Clinical Support and Family Services,ROYAL UNITED HOSPITAL BATH NHS TRUST,10316041,67324.32,
Department of Health,Salisbury NHS Foundation Trust,20-Sep-13,HEALTHCARE - NHS TRUSTS,Clinical Support and Family Services,ROYAL UNITED HOSPITAL BATH NHS TRUST,10316041,13464.86,
Department of Health,Salisbury NHS Foundation Trust,20-Sep-13,HEALTHCARE - NHS TRUSTS,Clinical Support and Family Services,ROYAL UNITED HOSPITAL BATH NHS TRUST,10316041,67324.32,
Department of Health,Salisbury NHS Foundation Trust,20-Sep-13,DRESSINGS  -  PROCEDURE PACKS,Clinical Support and Family Services,NHS LOGISTICS,1014087475,72.17,
Department of Health,Salisbury NHS Foundation Trust,20-Sep-13,STATIONERY SUNDRIES,Critical care,NHS LOGISTICS,1014087475,19.08,
Department of Health,Salisbury NHS Foundation Trust,20-Sep-13,ADULTS HEARING AIDS,Surgery,NHS LOGISTICS,1014087475,1045.25,
Department of Health,Salisbury NHS Foundation Trust,20-Sep-13,PATIENT APPLIANCES,Surgery,NHS LOGISTICS,1014087475,16.58,
Department of Health,Salisbury NHS Foundation Trust,20-Sep-13,PATIENT APPLIANCES,Critical care,NHS LOGISTICS,1014087475,21.29,
Department of Health,Salisbury NHS Foundation Trust,20-Sep-13,STATIONERY SUNDRIES,Clinical Support and Family Services,NHS LOGISTICS,1014087475,1.7,
Department of Health,Salisbury NHS Foundation Trust,20-Sep-13,ELECTRICAL EQUIPMENT x,Clinical Support and Family Services,NHS LOGISTICS,1014087475,3.33,
Department of Health,Salisbury NHS Foundation Trust,20-Sep-13,STATIONERY SUNDRIES,Clinical Support and Family Services,NHS LOGISTICS,1014087475,4.15,
Department of Health,Salisbury NHS Foundation Trust,20-Sep-13,PAPER ITEMS GENERAL STATIONERY SUNDRIES,Clinical Support and Family Services,NHS LOGISTICS,1014087475,94.33,
Department of Health,Salisbury NHS Foundation Trust,20-Sep-13,TISSUES HAND TOWELS & TOILET PAPER,Clinical Support and Family Services,NHS LOGISTICS,1014087475,10.9,
Department of Health,Salisbury NHS Foundation Trust,20-Sep-13,TISSUES HAND TOWELS & TOILET PAPER,Clinical Support and Family Services,NHS LOGISTICS,1014087475,24.6,
Department of Health,Salisbury NHS Foundation Trust,20-Sep-13,PAPER ITEMS GENERAL STATIONERY SUNDRIES,Clinical Support and Family Services,NHS LOGISTICS,1014087475,6.13,
Department of Health,Salisbury NHS Foundation Trust,20-Sep-13,PAPER ITEMS GENERAL STATIONERY SUNDRIES,Corporate Directorate,NHS LOGISTICS,1014087475,0.32,
Department of Health,Salisbury NHS Foundation Trust,20-Sep-13,COOKING & KITCHEN UTENSILS,Corporate Directorate,NHS LOGISTICS,1014087475,11.92,
Department of Health,Salisbury NHS Foundation Trust,20-Sep-13,PAPER ITEMS GENERAL STATIONERY SUNDRIES,Surgery,NHS LOGISTICS,1014087475,22.47,
Department of Health,Salisbury NHS Foundation Trust,20-Sep-13,PAPER ITEMS GENERAL STATIONERY SUNDRIES,Surgery,NHS LOGISTICS,1014087475,19.63,
Department of Health,Salisbury NHS Foundation Trust,20-Sep-13,PAPER ITEMS GENERAL STATIONERY SUNDRIES,Corporate Directorate,NHS LOGISTICS,1014087475,30.63,
Department of Health,Salisbury NHS Foundation Trust,20-Sep-13,PAPER ITEMS GENERAL STATIONERY SUNDRIES,Corporate Directorate,NHS LOGISTICS,1014087475,32.5,
Department of Health,Salisbury NHS Foundation Trust,20-Sep-13,PAPER ITEMS GENERAL STATIONERY SUNDRIES,Corporate Directorate,NHS LOGISTICS,1014087475,19,
Department of Health,Salisbury NHS Foundation Trust,20-Sep-13,PAPER ITEMS GENERAL STATIONERY SUNDRIES,Corporate Directorate,NHS LOGISTICS,1014087475,38,
Department of Health,Salisbury NHS Foundation Trust,20-Sep-13,PAPER ITEMS GENERAL STATIONERY SUNDRIES,Corporate Directorate,NHS LOGISTICS,1014087475,32.5,
Department of Health,Salisbury NHS Foundation Trust,20-Sep-13,PAPER ITEMS GENERAL STATIONERY SUNDRIES,Corporate Directorate,NHS LOGISTICS,1014087475,29.17,
Department of Health,Salisbury NHS Foundation Trust,20-Sep-13,PAPER ITEMS GENERAL STATIONERY SUNDRIES,Corporate Directorate,NHS LOGISTICS,1014087475,29.17,
Department of Health,Salisbury NHS Foundation Trust,20-Sep-13,STATIONERY SUNDRIES,Corporate Directorate,NHS LOGISTICS,1014087475,9,
Department of Health,Salisbury NHS Foundation Trust,20-Sep-13,PAPER ITEMS GENERAL STATIONERY SUNDRIES,Corporate Directorate,NHS LOGISTICS,1014087475,2.33,
Department of Health,Salisbury NHS Foundation Trust,20-Sep-13,STATIONERY SUNDRIES,Corporate Directorate,NHS LOGISTICS,1014087475,11.9,
Department of Health,Salisbury NHS Foundation Trust,20-Sep-13,PAPER ITEMS GENERAL STATIONERY SUNDRIES,Corporate Directorate,NHS LOGISTICS,1014087475,9.5,
Department of Health,Salisbury NHS Foundation Trust,20-Sep-13,PAPER ITEMS GENERAL STATIONERY SUNDRIES,Corporate Directorate,NHS LOGISTICS,1014087475,21.96,
Department of Health,Salisbury NHS Foundation Trust,20-Sep-13,STATIONERY SUNDRIES,Corporate Directorate,NHS LOGISTICS,1014087475,1.07,
Department of Health,Salisbury NHS Foundation Trust,20-Sep-13,STATIONERY SUNDRIES,Corporate Directorate,NHS LOGISTICS,1014087475,1.07,
Department of Health,Salisbury NHS Foundation Trust,20-Sep-13,STATIONERY SUNDRIES,Corporate Directorate,NHS LOGISTICS,1014087475,1.07,
Department of Health,Salisbury NHS Foundation Trust,20-Sep-13,STATIONERY SUNDRIES,Corporate Directorate,NHS LOGISTICS,1014087475,4,
Department of Health,Salisbury NHS Foundation Trust,20-Sep-13,STATIONERY SUNDRIES,Corporate Directorate,NHS LOGISTICS,1014087475,0.48,
Department of Health,Salisbury NHS Foundation Trust,20-Sep-13,PAPER ITEMS GENERAL STATIONERY SUNDRIES,Surgery,NHS LOGISTICS,1014087475,3.07,
Department of Health,Salisbury NHS Foundation Trust,20-Sep-13,PAPER ITEMS GENERAL STATIONERY SUNDRIES,Surgery,NHS LOGISTICS,1014087475,10.43,
Department of Health,Salisbury NHS Foundation Trust,20-Sep-13,PAPER ITEMS GENERAL STATIONERY SUNDRIES,Medicine,NHS LOGISTICS,1014087475,0.78,
Department of Health,Salisbury NHS Foundation Trust,20-Sep-13,PAPER ITEMS GENERAL STATIONERY SUNDRIES,Medicine,NHS LOGISTICS,1014087475,3.63,
Department of Health,Salisbury NHS Foundation Trust,20-Sep-13,DRESSINGS - PRE STERILE,Critical care,NHS LOGISTICS,1014087475,22.78,
Department of Health,Salisbury NHS Foundation Trust,20-Sep-13,TISSUES HAND TOWELS & TOILET PAPER,Clinical Support and Family Services,NHS LOGISTICS,1014087475,41.8,
Department of Health,Salisbury NHS Foundation Trust,20-Sep-13,TISSUES HAND TOWELS & TOILET PAPER,Clinical Support and Family Services,NHS LOGISTICS,1014087475,4.58,
Department of Health,Salisbury NHS Foundation Trust,20-Sep-13,DRESSINGS  -  PROCEDURE PACKS,Clinical Support and Family Services,NHS LOGISTICS,1014087475,10.83,
Department of Health,Salisbury NHS Foundation Trust,20-Sep-13,STATIONERY SUNDRIES,Surgery,NHS LOGISTICS,1014087475,2.13,
Department of Health,Salisbury NHS Foundation Trust,20-Sep-13,STATIONERY SUNDRIES,Surgery,NHS LOGISTICS,1014087475,1.83,
Department of Health,Salisbury NHS Foundation Trust,20-Sep-13,DISPOSABLE THEATRE DRAPES WIPES,Clinical Effctiveness Directorate,NHS LOGISTICS,1014087475,1.36,
Department of Health,Salisbury NHS Foundation Trust,20-Sep-13,DISPOSABLE THEATRE DRAPES WIPES,Clinical Effctiveness Directorate,NHS LOGISTICS,1014087475,2.26,
Department of Health,Salisbury NHS Foundation Trust,20-Sep-13,STATIONERY SUNDRIES,Surgery,NHS LOGISTICS,1014087475,1.88,
Department of Health,Salisbury NHS Foundation Trust,20-Sep-13,SURGICAL INSTRUMENTS: GENERAL,Surgery,NHS LOGISTICS,1014087475,173.25,
Department of Health,Salisbury NHS Foundation Trust,20-Sep-13,OTHER MEDICAL SUPPLIES,Surgery,NHS LOGISTICS,1014087475,65.57,
Department of Health,Salisbury NHS Foundation Trust,20-Sep-13,OTHER MEDICAL SUPPLIES,Surgery,NHS LOGISTICS,1014087475,65.57,
Department of Health,Salisbury NHS Foundation Trust,20-Sep-13,OTHER MEDICAL SUPPLIES,Surgery,NHS LOGISTICS,1014087475,65.57,
Department of Health,Salisbury NHS Foundation Trust,20-Sep-13,LAB EQUIP-LABORATORY APPARATUS,Surgery,NHS LOGISTICS,1014087475,20.94,
Department of Health,Salisbury NHS Foundation Trust,20-Sep-13,DISPOSABLE THEATRE DRAPES WIPES,Clinical Support and Family Services,NHS LOGISTICS,1014087475,25.17,
Department of Health,Salisbury NHS Foundation Trust,20-Sep-13,STATIONERY SUNDRIES,Clinical Support and Family Services,NHS LOGISTICS,1014087475,1.88,
Department of Health,Salisbury NHS Foundation Trust,20-Sep-13,HARD/SOFTWARE-COMPUTER CONSUMABLE (EXCLUDING PAPER),Surgery,NHS LOGISTICS,1014087475,63.83,
Department of Health,Salisbury NHS Foundation Trust,20-Sep-13,STATIONERY SUNDRIES,Surgery,NHS LOGISTICS,1014087475,0.4,
Department of Health,Salisbury NHS Foundation Trust,20-Sep-13,STATIONERY SUNDRIES,Surgery,NHS LOGISTICS,1014087475,3.97,
Department of Health,Salisbury NHS Foundation Trust,20-Sep-13,PAPER ITEMS GENERAL STATIONERY SUNDRIES,Clinical Support and Family Services,NHS LOGISTICS,1014087475,19.5,
Department of Health,Salisbury NHS Foundation Trust,20-Sep-13,STATIONERY SUNDRIES,Clinical Effctiveness Directorate,NHS LOGISTICS,1014087475,0.16,
Department of Health,Salisbury NHS Foundation Trust,20-Sep-13,CLEANING MATERIALS PRODUCTS SUNDRIES,Critical care,NHS LOGISTICS,1014087475,13,
Department of Health,Salisbury NHS Foundation Trust,20-Sep-13,PAPER ITEMS GENERAL STATIONERY SUNDRIES,Medicine,NHS LOGISTICS,1014087475,3,
Department of Health,Salisbury NHS Foundation Trust,20-Sep-13,PAPER ITEMS GENERAL STATIONERY SUNDRIES,Medicine,NHS LOGISTICS,1014087475,8.88,
Department of Health,Salisbury NHS Foundation Trust,20-Sep-13,STATIONERY SUNDRIES,Clinical Effctiveness Directorate,NHS LOGISTICS,1014087475,0.07,
Department of Health,Salisbury NHS Foundation Trust,20-Sep-13,PAPER ITEMS GENERAL STATIONERY SUNDRIES,Clinical Effctiveness Directorate,NHS LOGISTICS,1014087475,8.12,
Department of Health,Salisbury NHS Foundation Trust,20-Sep-13,PAPER ITEMS GENERAL STATIONERY SUNDRIES,Clinical Effctiveness Directorate,NHS LOGISTICS,1014087475,11.78,
Department of Health,Salisbury NHS Foundation Trust,20-Sep-13,STATIONERY SUNDRIES,Clinical Effctiveness Directorate,NHS LOGISTICS,1014087475,2,
Department of Health,Salisbury NHS Foundation Trust,20-Sep-13,TOILETRIES PERSONAL HYGIENE PRODUCTS,Clinical Support and Family Services,NHS LOGISTICS,1014087475,15.87,
Department of Health,Salisbury NHS Foundation Trust,20-Sep-13,TOILETRIES PERSONAL HYGIENE PRODUCTS,Clinical Support and Family Services,NHS LOGISTICS,1014087475,30.73,
Department of Health,Salisbury NHS Foundation Trust,20-Sep-13,TOILETRIES PERSONAL HYGIENE PRODUCTS,Clinical Support and Family Services,NHS LOGISTICS,1014087475,0.01,
Department of Health,Salisbury NHS Foundation Trust,20-Sep-13,TOILETRIES PERSONAL HYGIENE PRODUCTS,Clinical Support and Family Services,NHS LOGISTICS,1014087475,0.01,
Department of Health,Salisbury NHS Foundation Trust,20-Sep-13,TOILETRIES PERSONAL HYGIENE PRODUCTS,Clinical Support and Family Services,NHS LOGISTICS,1014087475,36.47,
Department of Health,Salisbury NHS Foundation Trust,20-Sep-13,ELECTRICAL EQUIPMENT x,Medicine,NHS LOGISTICS,1014087475,5,
Department of Health,Salisbury NHS Foundation Trust,20-Sep-13,ELECTRICAL EQUIPMENT x,Medicine,NHS LOGISTICS,1014087475,1.33,
Department of Health,Salisbury NHS Foundation Trust,20-Sep-13,ELECTRICAL EQUIPMENT x,Medicine,NHS LOGISTICS,1014087475,7.87,
Department of Health,Salisbury NHS Foundation Trust,20-Sep-13,ELECTRICAL EQUIPMENT x,Medicine,NHS LOGISTICS,1014087475,2.75,
Department of Health,Salisbury NHS Foundation Trust,20-Sep-13,STATIONERY SUNDRIES,Medicine,NHS LOGISTICS,1014087475,2.74,
Department of Health,Salisbury NHS Foundation Trust,20-Sep-13,STATIONERY SUNDRIES,Medicine,NHS LOGISTICS,1014087475,4.58,
Department of Health,Salisbury NHS Foundation Trust,20-Sep-13,STATIONERY SUNDRIES,Medicine,NHS LOGISTICS,1014087475,2.74,
Department of Health,Salisbury NHS Foundation Trust,20-Sep-13,STATIONERY SUNDRIES,Medicine,NHS LOGISTICS,1014087475,6.03,
Department of Health,Salisbury NHS Foundation Trust,20-Sep-13,STATIONERY SUNDRIES,Medicine,NHS LOGISTICS,1014087475,11.44,
Department of Health,Salisbury NHS Foundation Trust,20-Sep-13,M & S EQUIPELECTEQUIPINST - OTHER,Surgery,NHS LOGISTICS,1014087475,351.7,
Department of Health,Salisbury NHS Foundation Trust,20-Sep-13,PAPER ITEMS GENERAL STATIONERY SUNDRIES,Surgery,NHS LOGISTICS,1014087475,49.07,
Department of Health,Salisbury NHS Foundation Trust,20-Sep-13,HEALTHCARE - WEAR,Clinical Support and Family Services,NHS LOGISTICS,1014087475,168.9,
Department of Health,Salisbury NHS Foundation Trust,20-Sep-13,HEALTHCARE - WEAR,Clinical Support and Family Services,NHS LOGISTICS,1014087475,85.33,
Department of Health,Salisbury NHS Foundation Trust,20-Sep-13,PATIENT APPLIANCES,Medicine,NHS LOGISTICS,1014087475,6.48,
Department of Health,Salisbury NHS Foundation Trust,20-Sep-13,PATIENT APPLIANCES,Medicine,NHS LOGISTICS,1014087475,12.15,
Department of Health,Salisbury NHS Foundation Trust,20-Sep-13,PATIENT APPLIANCES,Medicine,NHS LOGISTICS,1014087475,12.15,
Department of Health,Salisbury NHS Foundation Trust,20-Sep-13,PAPER ITEMS GENERAL STATIONERY SUNDRIES,Clinical Support and Family Services,NHS LOGISTICS,1014087475,15.83,
Department of Health,Salisbury NHS Foundation Trust,20-Sep-13,PAPER ITEMS GENERAL STATIONERY SUNDRIES,Clinical Support and Family Services,NHS LOGISTICS,1014087475,94.33,
Department of Health,Salisbury NHS Foundation Trust,20-Sep-13,MEDSURGCONS-SUTURES,Clinical Support and Family Services,NHS LOGISTICS,1014087475,133.42,
Department of Health,Salisbury NHS Foundation Trust,20-Sep-13,STATIONERY SUNDRIES,Corporate Directorate,NHS LOGISTICS,1014087475,1.5,
Department of Health,Salisbury NHS Foundation Trust,20-Sep-13,PAPER ITEMS GENERAL STATIONERY SUNDRIES,Surgery,NHS LOGISTICS,1014087475,7.44,
Department of Health,Salisbury NHS Foundation Trust,20-Sep-13,STATIONERY SUNDRIES,Surgery,NHS LOGISTICS,1014087475,4.15,
Department of Health,Salisbury NHS Foundation Trust,20-Sep-13,STATIONERY SUNDRIES,Surgery,NHS LOGISTICS,1014087475,3.97,
Department of Health,Salisbury NHS Foundation Trust,20-Sep-13,STATIONERY SUNDRIES,Surgery,NHS LOGISTICS,1014087475,3.7,
Department of Health,Salisbury NHS Foundation Trust,20-Sep-13,DRESSINGS  -  PROCEDURE PACKS,Surgery,NHS LOGISTICS,1014087475,6.04,
Department of Health,Salisbury NHS Foundation Trust,20-Sep-13,ANAESTHETIC EQUIPMENT ACCESSORIES,Surgery,NHS LOGISTICS,1014087475,6,
Department of Health,Salisbury NHS Foundation Trust,20-Sep-13,ANAESTHETIC EQUIPMENT ACCESSORIES,Surgery,NHS LOGISTICS,1014087475,6.5,
Department of Health,Salisbury NHS Foundation Trust,20-Sep-13,TISSUES HAND TOWELS & TOILET PAPER,Surgery,NHS LOGISTICS,1014087475,7.5,
Department of Health,Salisbury NHS Foundation Trust,20-Sep-13,OTHER MEDICAL SUPPLIES,Surgery,NHS LOGISTICS,1014087475,22.22,
Department of Health,Salisbury NHS Foundation Trust,20-Sep-13,OTHER MEDICAL SUPPLIES,Surgery,NHS LOGISTICS,1014087475,36.8,
Department of Health,Salisbury NHS Foundation Trust,20-Sep-13,OTHER MEDICAL SUPPLIES,Surgery,NHS LOGISTICS,1014087475,31.06,
Department of Health,Salisbury NHS Foundation Trust,20-Sep-13,MEDSURGCONS - OTHER,Surgery,NHS LOGISTICS,1014087475,7.4,
Department of Health,Salisbury NHS Foundation Trust,20-Sep-13,MEDSURGCONS - OTHER,Surgery,NHS LOGISTICS,1014087475,26.72,
Department of Health,Salisbury NHS Foundation Trust,20-Sep-13,DISPOSABLE THEATRE DRAPES WIPES,Surgery,NHS LOGISTICS,1014087475,22.7,
Department of Health,Salisbury NHS Foundation Trust,20-Sep-13,OTHER MEDICAL SUPPLIES,Clinical Support and Family Services,NHS LOGISTICS,1014087475,14.27,
Department of Health,Salisbury NHS Foundation Trust,20-Sep-13,MEDSURGCONS - OTHER,Clinical Support and Family Services,NHS LOGISTICS,1014087475,11.82,
Department of Health,Salisbury NHS Foundation Trust,20-Sep-13,MEDSURGCONS - OTHER,Clinical Support and Family Services,NHS LOGISTICS,1014087475,3.88,
Department of Health,Salisbury NHS Foundation Trust,20-Sep-13,PAPER ITEMS GENERAL STATIONERY SUNDRIES,Clinical Support and Family Services,NHS LOGISTICS,1014087475,14.58,
Department of Health,Salisbury NHS Foundation Trust,20-Sep-13,STATIONERY SUNDRIES,Clinical Support and Family Services,NHS LOGISTICS,1014087475,17.75,
Department of Health,Salisbury NHS Foundation Trust,20-Sep-13,STATIONERY SUNDRIES,Clinical Support and Family Services,NHS LOGISTICS,1014087475,16.2,
Department of Health,Salisbury NHS Foundation Trust,20-Sep-13,MEDSURGCONS - OTHER,Clinical Support and Family Services,NHS LOGISTICS,1014087475,26.6,
Department of Health,Salisbury NHS Foundation Trust,20-Sep-13,NON DISPOSABLE BED LINEN,Clinical Support and Family Services,NHS LOGISTICS,1014087475,14.83,
Department of Health,Salisbury NHS Foundation Trust,20-Sep-13,OTHER MEDICAL SUPPLIES,Clinical Support and Family Services,NHS LOGISTICS,1014087475,16.53,
Department of Health,Salisbury NHS Foundation Trust,20-Sep-13,MEDSURGCONS - OTHER,Surgery,NHS LOGISTICS,1014087475,41.98,
Department of Health,Salisbury NHS Foundation Trust,20-Sep-13,LAB EQUIP-LABORATORY APPARATUS,Clinical Support and Family Services,NHS LOGISTICS,1014087475,60.5,
Department of Health,Salisbury NHS Foundation Trust,20-Sep-13,LAB EQUIP-LABORATORY APPARATUS,Clinical Support and Family Services,NHS LOGISTICS,1014087475,352.5,
Department of Health,Salisbury NHS Foundation Trust,20-Sep-13,LAB EQUIP-LABORATORY APPARATUS,Clinical Support and Family Services,NHS LOGISTICS,1014087475,28.2,
Department of Health,Salisbury NHS Foundation Trust,20-Sep-13,LAB EQUIP-LABORATORY APPARATUS,Clinical Support and Family Services,NHS LOGISTICS,1014087475,118.83,
Department of Health,Salisbury NHS Foundation Trust,20-Sep-13,LAB EQUIP-LABORATORY APPARATUS,Clinical Support and Family Services,NHS LOGISTICS,1014087475,213.13,
Department of Health,Salisbury NHS Foundation Trust,20-Sep-13,LAB EQUIP-LABORATORY APPARATUS,Clinical Support and Family Services,NHS LOGISTICS,1014087475,1084.2,
Department of Health,Salisbury NHS Foundation Trust,20-Sep-13,LAB EQUIP-LABORATORY APPARATUS,Clinical Support and Family Services,NHS LOGISTICS,1014087475,12.72,
Department of Health,Salisbury NHS Foundation Trust,20-Sep-13,LAB EQUIP-LABORATORY APPARATUS,Clinical Support and Family Services,NHS LOGISTICS,1014087475,60.83,
Department of Health,Salisbury NHS Foundation Trust,20-Sep-13,LAB EQUIP-LABORATORY APPARATUS,Clinical Support and Family Services,NHS LOGISTICS,1014087475,184.25,
Department of Health,Salisbury NHS Foundation Trust,20-Sep-13,LAB EQUIP-LABORATORY APPARATUS,Clinical Support and Family Services,NHS LOGISTICS,1014087475,355.83,
Department of Health,Salisbury NHS Foundation Trust,20-Sep-13,TISSUES HAND TOWELS & TOILET PAPER,Clinical Support and Family Services,NHS LOGISTICS,1014087475,20.1,
Department of Health,Salisbury NHS Foundation Trust,20-Sep-13,LAB EQUIP-LABORATORY APPARATUS,Clinical Support and Family Services,NHS LOGISTICS,1014087475,9.13,
Department of Health,Salisbury NHS Foundation Trust,20-Sep-13,LAB EQUIP-LABORATORY APPARATUS,Clinical Support and Family Services,NHS LOGISTICS,1014087475,93.6,
Department of Health,Salisbury NHS Foundation Trust,20-Sep-13,OTHER MEDICAL SUPPLIES,Clinical Support and Family Services,NHS LOGISTICS,1014087475,725.33,
Department of Health,Salisbury NHS Foundation Trust,20-Sep-13,OTHER MEDICAL SUPPLIES,Clinical Support and Family Services,NHS LOGISTICS,1014087475,18.97,
Department of Health,Salisbury NHS Foundation Trust,20-Sep-13,OTHER MEDICAL SUPPLIES,Clinical Support and Family Services,NHS LOGISTICS,1014087475,181.33,
Department of Health,Salisbury NHS Foundation Trust,20-Sep-13,DISPOSABLE THEATRE DRAPES WIPES,Clinical Support and Family Services,NHS LOGISTICS,1014087475,12.45,
Department of Health,Salisbury NHS Foundation Trust,20-Sep-13,STATIONERY SUNDRIES,Human Resources,NHS LOGISTICS,1014087475,3.27,
Department of Health,Salisbury NHS Foundation Trust,20-Sep-13,TOILETRIES PERSONAL HYGIENE PRODUCTS,Human Resources,NHS LOGISTICS,1014087475,11.5,
Department of Health,Salisbury NHS Foundation Trust,20-Sep-13,TISSUES HAND TOWELS & TOILET PAPER,Human Resources,NHS LOGISTICS,1014087475,4.58,
Department of Health,Salisbury NHS Foundation Trust,20-Sep-13,STATIONERY SUNDRIES,Human Resources,NHS LOGISTICS,1014087475,6.6,
Department of Health,Salisbury NHS Foundation Trust,20-Sep-13,STATIONERY SUNDRIES,Human Resources,NHS LOGISTICS,1014087475,1.45,
Department of Health,Salisbury NHS Foundation Trust,20-Sep-13,STATIONERY SUNDRIES,Human Resources,NHS LOGISTICS,1014087475,0.22,
Department of Health,Salisbury NHS Foundation Trust,20-Sep-13,DISPOSABLE THEATRE DRAPES WIPES,Human Resources,NHS LOGISTICS,1014087475,7.7,
Department of Health,Salisbury NHS Foundation Trust,20-Sep-13,DISPOSABLE THEATRE DRAPES WIPES,Human Resources,NHS LOGISTICS,1014087475,11.25,
Department of Health,Salisbury NHS Foundation Trust,20-Sep-13,OTHER MEDICAL SUPPLIES,Medicine,NHS LOGISTICS,1014087475,8.83,
Department of Health,Salisbury NHS Foundation Trust,20-Sep-13,TISSUES HAND TOWELS & TOILET PAPER,Medicine,NHS LOGISTICS,1014087475,1.82,
Department of Health,Salisbury NHS Foundation Trust,20-Sep-13,PATIENTS INCONTINENCE,Medicine,NHS LOGISTICS,1014087475,1.85,
Department of Health,Salisbury NHS Foundation Trust,20-Sep-13,PATIENTS INCONTINENCE,Medicine,NHS LOGISTICS,1014087475,40.4,
Department of Health,Salisbury NHS Foundation Trust,20-Sep-13,OTHER MEDICAL SUPPLIES,Medicine,NHS LOGISTICS,1014087475,13.25,
Department of Health,Salisbury NHS Foundation Trust,20-Sep-13,PATIENTS INCONTINENCE,Medicine,NHS LOGISTICS,1014087475,3.42,
Department of Health,Salisbury NHS Foundation Trust,20-Sep-13,MEDSURGCONS - OTHER,Medicine,NHS LOGISTICS,1014087475,4.66,
Department of Health,Salisbury NHS Foundation Trust,20-Sep-13,PATIENTS INCONTINENCE,Medicine,NHS LOGISTICS,1014087475,5.55,
Department of Health,Salisbury NHS Foundation Trust,20-Sep-13,PATIENTS INCONTINENCE,Medicine,NHS LOGISTICS,1014087475,80.8,
Department of Health,Salisbury NHS Foundation Trust,20-Sep-13,PATIENTS INCONTINENCE,Medicine,NHS LOGISTICS,1014087475,3.63,
Department of Health,Salisbury NHS Foundation Trust,20-Sep-13,PATIENTS INCONTINENCE,Medicine,NHS LOGISTICS,1014087475,4.29,
Department of Health,Salisbury NHS Foundation Trust,20-Sep-13,LAB EQUIP-LABORATORY APPARATUS,Medicine,NHS LOGISTICS,1014087475,2.26,
Department of Health,Salisbury NHS Foundation Trust,20-Sep-13,NON DISPOSABLE BED LINEN,Medicine,NHS LOGISTICS,1014087475,21.77,
Department of Health,Salisbury NHS Foundation Trust,20-Sep-13,OTHER MEDICAL SUPPLIES,Medicine,NHS LOGISTICS,1014087475,16.53,
Department of Health,Salisbury NHS Foundation Trust,20-Sep-13,PATIENTS INCONTINENCE,Medicine,NHS LOGISTICS,1014087475,3.63,
Department of Health,Salisbury NHS Foundation Trust,20-Sep-13,NON DISPOSABLE BED LINEN,Medicine,NHS LOGISTICS,1014087475,21.77,
Department of Health,Salisbury NHS Foundation Trust,20-Sep-13,BAGS SACKS - OTHER,Facilities Directorate,NHS LOGISTICS,1014087475,63.29,
Department of Health,Salisbury NHS Foundation Trust,20-Sep-13,BAGS SACKS - OTHER,Facilities Directorate,NHS LOGISTICS,1014087475,350,
Department of Health,Salisbury NHS Foundation Trust,20-Sep-13,CLEANING MATERIALS PRODUCTS SUNDRIES,Facilities Directorate,NHS LOGISTICS,1014087475,33,
Department of Health,Salisbury NHS Foundation Trust,20-Sep-13,CLEANING MATERIALS PRODUCTS SUNDRIES,Facilities Directorate,NHS LOGISTICS,1014087475,33,
Department of Health,Salisbury NHS Foundation Trust,20-Sep-13,CLEANING MATERIALS PRODUCTS SUNDRIES,Facilities Directorate,NHS LOGISTICS,1014087475,66,
Department of Health,Salisbury NHS Foundation Trust,20-Sep-13,CLEANING MATERIALS PRODUCTS SUNDRIES,Facilities Directorate,NHS LOGISTICS,1014087475,64,
Department of Health,Salisbury NHS Foundation Trust,20-Sep-13,CLEANING MATERIALS PRODUCTS SUNDRIES,Facilities Directorate,NHS LOGISTICS,1014087475,9.9,
Department of Health,Salisbury NHS Foundation Trust,20-Sep-13,CLEANING MATERIALS PRODUCTS SUNDRIES,Facilities Directorate,NHS LOGISTICS,1014087475,92.8,
Department of Health,Salisbury NHS Foundation Trust,20-Sep-13,CLEANING MATERIALS PRODUCTS SUNDRIES,Facilities Directorate,NHS LOGISTICS,1014087475,6.75,
Department of Health,Salisbury NHS Foundation Trust,20-Sep-13,PAPER ITEMS GENERAL STATIONERY SUNDRIES,Critical care,NHS LOGISTICS,1014087475,12.74,
Department of Health,Salisbury NHS Foundation Trust,20-Sep-13,OTHER MEDICAL SUPPLIES,Medicine,NHS LOGISTICS,1014087475,4.42,
Department of Health,Salisbury NHS Foundation Trust,20-Sep-13,TISSUES HAND TOWELS & TOILET PAPER,Medicine,NHS LOGISTICS,1014087475,0.88,
Department of Health,Salisbury NHS Foundation Trust,20-Sep-13,MEDSURGCONS - OTHER,Medicine,NHS LOGISTICS,1014087475,4.66,
Department of Health,Salisbury NHS Foundation Trust,20-Sep-13,MEDSURGCONS - OTHER,Medicine,NHS LOGISTICS,1014087475,4.66,
Department of Health,Salisbury NHS Foundation Trust,20-Sep-13,MEDSURGCONS - OTHER,Medicine,NHS LOGISTICS,1014087475,4.66,
Department of Health,Salisbury NHS Foundation Trust,20-Sep-13,MEDSURGCONS - OTHER,Medicine,NHS LOGISTICS,1014087475,1.13,
Department of Health,Salisbury NHS Foundation Trust,20-Sep-13,NON DISPOSABLE BED LINEN,Medicine,NHS LOGISTICS,1014087475,11.18,
Department of Health,Salisbury NHS Foundation Trust,20-Sep-13,TISSUES HAND TOWELS & TOILET PAPER,Medicine,NHS LOGISTICS,1014087475,0.88,
Department of Health,Salisbury NHS Foundation Trust,20-Sep-13,MEDSURGCONS - OTHER,Medicine,NHS LOGISTICS,1014087475,4.71,
Department of Health,Salisbury NHS Foundation Trust,20-Sep-13,OTHER MEDICAL SUPPLIES,Medicine,NHS LOGISTICS,1014087475,1.75,
Department of Health,Salisbury NHS Foundation Trust,20-Sep-13,MEDSURGCONS - OTHER,Medicine,NHS LOGISTICS,1014087475,8.78,
Department of Health,Salisbury NHS Foundation Trust,20-Sep-13,MEDSURGCONS-SUTURES,Medicine,NHS LOGISTICS,1014087475,26.68,
Department of Health,Salisbury NHS Foundation Trust,20-Sep-13,NON DISPOSABLE BED LINEN,Medicine,NHS LOGISTICS,1014087475,11.18,
Department of Health,Salisbury NHS Foundation Trust,20-Sep-13,OTHER MEDICAL SUPPLIES,Medicine,NHS LOGISTICS,1014087475,22.08,
Department of Health,Salisbury NHS Foundation Trust,20-Sep-13,TISSUES HAND TOWELS & TOILET PAPER,Medicine,NHS LOGISTICS,1014087475,1.82,
Department of Health,Salisbury NHS Foundation Trust,20-Sep-13,MED SURG EQUIP REP MAINT CLEANING,Medicine,NHS LOGISTICS,1014087475,17.25,
Department of Health,Salisbury NHS Foundation Trust,20-Sep-13,PATIENTS INCONTINENCE,Medicine,NHS LOGISTICS,1014087475,20.2,
Department of Health,Salisbury NHS Foundation Trust,20-Sep-13,DRESSINGS - PRE STERILE,Medicine,NHS LOGISTICS,1014087475,0.43,
Department of Health,Salisbury NHS Foundation Trust,20-Sep-13,TISSUES HAND TOWELS & TOILET PAPER,Medicine,NHS LOGISTICS,1014087475,0.36,
Department of Health,Salisbury NHS Foundation Trust,20-Sep-13,DRESSINGS - PRE STERILE,Medicine,NHS LOGISTICS,1014087475,29.49,
Department of Health,Salisbury NHS Foundation Trust,20-Sep-13,TISSUES HAND TOWELS & TOILET PAPER,Medicine,NHS LOGISTICS,1014087475,5.45,
Department of Health,Salisbury NHS Foundation Trust,20-Sep-13,DRESSINGS - PRE STERILE,Medicine,NHS LOGISTICS,1014087475,16.09,
Department of Health,Salisbury NHS Foundation Trust,20-Sep-13,STATIONERY SUNDRIES,Directorate of Operations,NHS LOGISTICS,1014087475,4.58,
Department of Health,Salisbury NHS Foundation Trust,20-Sep-13,STATIONERY SUNDRIES,Directorate of Operations,NHS LOGISTICS,1014087475,2.01,
Department of Health,Salisbury NHS Foundation Trust,20-Sep-13,MEDSURGCONS-SUTURES,Medicine,NHS LOGISTICS,1014087475,43.81,
Department of Health,Salisbury NHS Foundation Trust,20-Sep-13,MEDSURGCONS-SUTURES,Medicine,NHS LOGISTICS,1014087475,40.08,
Department of Health,Salisbury NHS Foundation Trust,20-Sep-13,MEDSURGCONS-SUTURES,Medicine,NHS LOGISTICS,1014087475,79.95,
Department of Health,Salisbury NHS Foundation Trust,20-Sep-13,MEDSURGCONS-SUTURES,Medicine,NHS LOGISTICS,1014087475,77.03,
Department of Health,Salisbury NHS Foundation Trust,20-Sep-13,PATIENTS INCONTINENCE,Medicine,NHS LOGISTICS,1014087475,7.21,
Department of Health,Salisbury NHS Foundation Trust,20-Sep-13,COOKING & KITCHEN UTENSILS,Surgery,NHS LOGISTICS,1014087475,16.45,
Department of Health,Salisbury NHS Foundation Trust,20-Sep-13,NON DISPOSABLE THEATRE DRAPES WIPES,Surgery,NHS LOGISTICS,1014087475,41.75,
Department of Health,Salisbury NHS Foundation Trust,20-Sep-13,DRESSINGS - PRE STERILE,Surgery,NHS LOGISTICS,1014087475,29.35,
Department of Health,Salisbury NHS Foundation Trust,20-Sep-13,PATIENTS INCONTINENCE,Medicine,NHS LOGISTICS,1014087475,3.63,
Department of Health,Salisbury NHS Foundation Trust,20-Sep-13,MEDSURGCONS - OTHER,Medicine,NHS LOGISTICS,1014087475,17.91,
Department of Health,Salisbury NHS Foundation Trust,20-Sep-13,SURGICAL INSTRUMENTS: GENERAL,Medicine,NHS LOGISTICS,1014087475,0.78,
Department of Health,Salisbury NHS Foundation Trust,20-Sep-13,NON DISPOSABLE BED LINEN,Medicine,NHS LOGISTICS,1014087475,11.18,
Department of Health,Salisbury NHS Foundation Trust,20-Sep-13,STATIONERY SUNDRIES,Surgery,NHS LOGISTICS,1014087475,1.85,
Department of Health,Salisbury NHS Foundation Trust,20-Sep-13,STATIONERY SUNDRIES,Surgery,NHS LOGISTICS,1014087475,1.85,
Department of Health,Salisbury NHS Foundation Trust,20-Sep-13,STATIONERY SUNDRIES,Clinical Support and Family Services,NHS LOGISTICS,1014087475,0.27,
Department of Health,Salisbury NHS Foundation Trust,20-Sep-13,STATIONERY SUNDRIES,Clinical Support and Family Services,NHS LOGISTICS,1014087475,1.95,
Department of Health,Salisbury NHS Foundation Trust,20-Sep-13,STATIONERY SUNDRIES,Clinical Support and Family Services,NHS LOGISTICS,1014087475,0.54,
Department of Health,Salisbury NHS Foundation Trust,20-Sep-13,STATIONERY SUNDRIES,Clinical Support and Family Services,NHS LOGISTICS,1014087475,118.5,
Department of Health,Salisbury NHS Foundation Trust,20-Sep-13,STATIONERY SUNDRIES,Clinical Support and Family Services,NHS LOGISTICS,1014087475,9,
Department of Health,Salisbury NHS Foundation Trust,20-Sep-13,OFFICE EQUIP MACHINERY  -  OTHER,Clinical Support and Family Services,NHS LOGISTICS,1014087475,0.66,
Department of Health,Salisbury NHS Foundation Trust,20-Sep-13,STATIONERY SUNDRIES,Clinical Support and Family Services,NHS LOGISTICS,1014087475,2.93,
Department of Health,Salisbury NHS Foundation Trust,20-Sep-13,PAPER ITEMS GENERAL STATIONERY SUNDRIES,Clinical Support and Family Services,NHS LOGISTICS,1014087475,12.42,
Department of Health,Salisbury NHS Foundation Trust,20-Sep-13,OTHER MEDICAL SUPPLIES,Surgery,NHS LOGISTICS,1014087475,39.17,
Department of Health,Salisbury NHS Foundation Trust,20-Sep-13,DRESSINGS - PRE STERILE,Surgery,NHS LOGISTICS,1014087475,6.64,
Department of Health,Salisbury NHS Foundation Trust,20-Sep-13,DRESSINGS - PRE STERILE,Surgery,NHS LOGISTICS,1014087475,5.51,
Department of Health,Salisbury NHS Foundation Trust,20-Sep-13,M & S EQUIPELECTEQUIPINST - OTHER,Surgery,NHS LOGISTICS,1014087475,31.82,
Department of Health,Salisbury NHS Foundation Trust,20-Sep-13,MEDSURGCONS - OTHER,Surgery,NHS LOGISTICS,1014087475,20.63,
Department of Health,Salisbury NHS Foundation Trust,20-Sep-13,DRESSINGS - PRE STERILE,Surgery,NHS LOGISTICS,1014087475,0.9,
Department of Health,Salisbury NHS Foundation Trust,20-Sep-13,MEDSURGCONS - OTHER,Surgery,NHS LOGISTICS,1014087475,10.42,
Department of Health,Salisbury NHS Foundation Trust,20-Sep-13,OTHER MEDICAL SUPPLIES,Medicine,NHS LOGISTICS,1014087475,16.53,
Department of Health,Salisbury NHS Foundation Trust,20-Sep-13,NON DISPOSABLE BED LINEN,Medicine,NHS LOGISTICS,1014087475,11.18,
Department of Health,Salisbury NHS Foundation Trust,20-Sep-13,PATIENT APPLIANCES,Medicine,NHS LOGISTICS,1014087475,5.32,
Department of Health,Salisbury NHS Foundation Trust,20-Sep-13,DRESSINGS  -  PROCEDURE PACKS,Surgery,NHS LOGISTICS,1014087475,13.67,
Department of Health,Salisbury NHS Foundation Trust,20-Sep-13,MEDSURGCONS-SUTURES,Surgery,NHS LOGISTICS,1014087475,108.06,
Department of Health,Salisbury NHS Foundation Trust,20-Sep-13,MEDSURGCONS-SUTURES,Surgery,NHS LOGISTICS,1014087475,71.65,
Department of Health,Salisbury NHS Foundation Trust,20-Sep-13,MEDSURGCONS-SUTURES,Surgery,NHS LOGISTICS,1014087475,26.68,
Department of Health,Salisbury NHS Foundation Trust,20-Sep-13,MEDSURGCONS-SUTURES,Surgery,NHS LOGISTICS,1014087475,80.27,
Department of Health,Salisbury NHS Foundation Trust,20-Sep-13,MEDSURGCONS-SUTURES,Surgery,NHS LOGISTICS,1014087475,89.07,
Department of Health,Salisbury NHS Foundation Trust,20-Sep-13,MEDSURGCONS-SUTURES,Surgery,NHS LOGISTICS,1014087475,22.83,
Department of Health,Salisbury NHS Foundation Trust,20-Sep-13,MEDSURGCONS-SUTURES,Surgery,NHS LOGISTICS,1014087475,29.53,
Department of Health,Salisbury NHS Foundation Trust,20-Sep-13,MEDSURGCONS-SUTURES,Surgery,NHS LOGISTICS,1014087475,53.43,
Department of Health,Salisbury NHS Foundation Trust,20-Sep-13,MEDSURGCONS-SUTURES,Surgery,NHS LOGISTICS,1014087475,113.83,
Department of Health,Salisbury NHS Foundation Trust,20-Sep-13,MEDSURGCONS-SUTURES,Surgery,NHS LOGISTICS,1014087475,61.52,
Department of Health,Salisbury NHS Foundation Trust,20-Sep-13,MEDSURGCONS-SUTURES,Surgery,NHS LOGISTICS,1014087475,62.01,
Department of Health,Salisbury NHS Foundation Trust,20-Sep-13,MEDSURGCONS-SUTURES,Surgery,NHS LOGISTICS,1014087475,57.12,
Department of Health,Salisbury NHS Foundation Trust,20-Sep-13,MEDSURGCONS-SUTURES,Surgery,NHS LOGISTICS,1014087475,61.63,
Department of Health,Salisbury NHS Foundation Trust,20-Sep-13,MEDSURGCONS-SUTURES,Surgery,NHS LOGISTICS,1014087475,44.59,
Department of Health,Salisbury NHS Foundation Trust,20-Sep-13,MEDSURGCONS-SUTURES,Surgery,NHS LOGISTICS,1014087475,43.81,
Department of Health,Salisbury NHS Foundation Trust,20-Sep-13,MEDSURGCONS-SUTURES,Surgery,NHS LOGISTICS,1014087475,90.2,
Department of Health,Salisbury NHS Foundation Trust,20-Sep-13,MEDSURGCONS-SUTURES,Surgery,NHS LOGISTICS,1014087475,57.73,
Department of Health,Salisbury NHS Foundation Trust,20-Sep-13,MEDSURGCONS-SUTURES,Surgery,NHS LOGISTICS,1014087475,107.42,
Department of Health,Salisbury NHS Foundation Trust,20-Sep-13,MEDSURGCONS-SUTURES,Surgery,NHS LOGISTICS,1014087475,13.42,
Department of Health,Salisbury NHS Foundation Trust,20-Sep-13,MEDSURGCONS-SUTURES,Surgery,NHS LOGISTICS,1014087475,26.33,
Department of Health,Salisbury NHS Foundation Trust,20-Sep-13,STATIONERY SUNDRIES,Clinical Effctiveness Directorate,NHS LOGISTICS,1014087475,1.81,
Department of Health,Salisbury NHS Foundation Trust,20-Sep-13,STATIONERY SUNDRIES,Clinical Effctiveness Directorate,NHS LOGISTICS,1014087475,2.33,
Department of Health,Salisbury NHS Foundation Trust,20-Sep-13,STATIONERY SUNDRIES,Clinical Effctiveness Directorate,NHS LOGISTICS,1014087475,0.51,
Department of Health,Salisbury NHS Foundation Trust,20-Sep-13,STATIONERY SUNDRIES,Clinical Effctiveness Directorate,NHS LOGISTICS,1014087475,1.16,
Department of Health,Salisbury NHS Foundation Trust,20-Sep-13,STATIONERY SUNDRIES,Nursing Directorate,NHS LOGISTICS,1014087475,0.5,
Department of Health,Salisbury NHS Foundation Trust,20-Sep-13,STATIONERY SUNDRIES,Nursing Directorate,NHS LOGISTICS,1014087475,0.51,
Department of Health,Salisbury NHS Foundation Trust,20-Sep-13,STATIONERY SUNDRIES,Nursing Directorate,NHS LOGISTICS,1014087475,1.16,
Department of Health,Salisbury NHS Foundation Trust,20-Sep-13,STATIONERY SUNDRIES,Surgery,NHS LOGISTICS,1014087475,0.94,
Department of Health,Salisbury NHS Foundation Trust,20-Sep-13,OTHER MEDICAL SUPPLIES,Surgery,NHS LOGISTICS,1014087475,19.37,
Department of Health,Salisbury NHS Foundation Trust,20-Sep-13,OTHER MEDICAL SUPPLIES,Surgery,NHS LOGISTICS,1014087475,16.53,
Department of Health,Salisbury NHS Foundation Trust,20-Sep-13,NON DISPOSABLE BED LINEN,Surgery,NHS LOGISTICS,1014087475,11.18,
Department of Health,Salisbury NHS Foundation Trust,20-Sep-13,PATIENT APPLIANCES,Surgery,NHS LOGISTICS,1014087475,5.32,
Department of Health,Salisbury NHS Foundation Trust,20-Sep-13,STATIONERY SUNDRIES,Clinical Support and Family Services,NHS LOGISTICS,1014087475,0.94,
Department of Health,Salisbury NHS Foundation Trust,20-Sep-13,MEDSURGCONS - OTHER,Medicine,NHS LOGISTICS,1014087475,154.73,
Department of Health,Salisbury NHS Foundation Trust,20-Sep-13,MEDSURGCONS - OTHER,Medicine,NHS LOGISTICS,1014087475,18.83,
Department of Health,Salisbury NHS Foundation Trust,20-Sep-13,ELECTRICAL EQUIPMENT x,Critical care,NHS LOGISTICS,1014087475,5,
Department of Health,Salisbury NHS Foundation Trust,20-Sep-13,ELECTRICAL EQUIPMENT x,Critical care,NHS LOGISTICS,1014087475,2.67,
Department of Health,Salisbury NHS Foundation Trust,20-Sep-13,OTHER MEDICAL SUPPLIES,Surgery,NHS LOGISTICS,1014087475,67.99,
Department of Health,Salisbury NHS Foundation Trust,20-Sep-13,STATIONERY SUNDRIES,Surgery,NHS LOGISTICS,1014087475,0.51,
Department of Health,Salisbury NHS Foundation Trust,20-Sep-13,STATIONERY SUNDRIES,Surgery,NHS LOGISTICS,1014087475,4.7,
Department of Health,Salisbury NHS Foundation Trust,20-Sep-13,TOILETRIES PERSONAL HYGIENE PRODUCTS,Surgery,NHS LOGISTICS,1014087475,3.83,
Department of Health,Salisbury NHS Foundation Trust,20-Sep-13,TISSUES HAND TOWELS & TOILET PAPER,Surgery,NHS LOGISTICS,1014087475,1.88,
Department of Health,Salisbury NHS Foundation Trust,20-Sep-13,DRESSINGS - PRE STERILE,Surgery,NHS LOGISTICS,1014087475,6,
Department of Health,Salisbury NHS Foundation Trust,20-Sep-13,DRESSINGS - PRE STERILE,Clinical Support and Family Services,NHS LOGISTICS,1014087475,0.98,
Department of Health,Salisbury NHS Foundation Trust,20-Sep-13,NON DISPOSABLE BED LINEN,Clinical Support and Family Services,NHS LOGISTICS,1014087475,24.5,
Department of Health,Salisbury NHS Foundation Trust,20-Sep-13,MEDSURGCONS - OTHER,Clinical Support and Family Services,NHS LOGISTICS,1014087475,4.13,
Department of Health,Salisbury NHS Foundation Trust,20-Sep-13,TUBES,Clinical Support and Family Services,NHS LOGISTICS,1014087475,6.92,
Department of Health,Salisbury NHS Foundation Trust,20-Sep-13,PAPER ITEMS GENERAL STATIONERY SUNDRIES,Surgery,NHS LOGISTICS,1014087475,49.67,
Department of Health,Salisbury NHS Foundation Trust,20-Sep-13,STATIONERY SUNDRIES,Surgery,NHS LOGISTICS,1014087475,1.16,
Department of Health,Salisbury NHS Foundation Trust,20-Sep-13,STATIONERY SUNDRIES,Critical care,NHS LOGISTICS,1014087475,5.87,
Department of Health,Salisbury NHS Foundation Trust,20-Sep-13,STATIONERY SUNDRIES,Critical care,NHS LOGISTICS,1014087475,2.32,
Department of Health,Salisbury NHS Foundation Trust,20-Sep-13,NON DISPOSABLE BED LINEN,Clinical Support and Family Services,NHS LOGISTICS,1014087475,11.26,
Department of Health,Salisbury NHS Foundation Trust,20-Sep-13,STATIONERY SUNDRIES,Medicine,NHS LOGISTICS,1014087475,2,
Department of Health,Salisbury NHS Foundation Trust,20-Sep-13,STATIONERY SUNDRIES,Medicine,NHS LOGISTICS,1014087475,0.21,
Department of Health,Salisbury NHS Foundation Trust,20-Sep-13,TISSUES HAND TOWELS & TOILET PAPER,Human Resources,NHS LOGISTICS,1014087475,4.58,
Department of Health,Salisbury NHS Foundation Trust,20-Sep-13,M & S EQUIPELECTEQUIPINST - OTHER,Clinical Support and Family Services,NHS LOGISTICS,1014087475,241,
Department of Health,Salisbury NHS Foundation Trust,20-Sep-13,DRUGS,Clinical Support and Family Services,NHS LOGISTICS,1014087475,5.66,
Department of Health,Salisbury NHS Foundation Trust,20-Sep-13,DRESSINGS - PRE STERILE,Clinical Support and Family Services,NHS LOGISTICS,1014087475,11.77,
Department of Health,Salisbury NHS Foundation Trust,20-Sep-13,STATIONERY SUNDRIES,Facilities Directorate,NHS LOGISTICS,1014087475,1.3,
Department of Health,Salisbury NHS Foundation Trust,20-Sep-13,STATIONERY SUNDRIES,Facilities Directorate,NHS LOGISTICS,1014087475,1.98,
Department of Health,Salisbury NHS Foundation Trust,20-Sep-13,STATIONERY SUNDRIES,Facilities Directorate,NHS LOGISTICS,1014087475,0.73,
Department of Health,Salisbury NHS Foundation Trust,20-Sep-13,STATIONERY SUNDRIES,Facilities Directorate,NHS LOGISTICS,1014087475,0.92,
Department of Health,Salisbury NHS Foundation Trust,20-Sep-13,STATIONERY SUNDRIES,Critical care,NHS LOGISTICS,1014087475,1.07,
Department of Health,Salisbury NHS Foundation Trust,20-Sep-13,STATIONERY SUNDRIES,Critical care,NHS LOGISTICS,1014087475,4.55,
Department of Health,Salisbury NHS Foundation Trust,20-Sep-13,OTHER MEDICAL SUPPLIES,Clinical Support and Family Services,NHS LOGISTICS,1014087475,94.78,
Department of Health,Salisbury NHS Foundation Trust,20-Sep-13,MEDSURGCONS - OTHER,Clinical Support and Family Services,NHS LOGISTICS,1014087475,1.38,
Department of Health,Salisbury NHS Foundation Trust,20-Sep-13,DRESSINGS  -  PROCEDURE PACKS,Surgery,NHS LOGISTICS,1014087475,1.46,
Department of Health,Salisbury NHS Foundation Trust,20-Sep-13,DISPOSABLE THEATRE DRAPES WIPES,Medicine,NHS LOGISTICS,1014087475,23.67,
Department of Health,Salisbury NHS Foundation Trust,20-Sep-13,STATIONERY SUNDRIES,Surgery,NHS LOGISTICS,1014087475,1.85,
Department of Health,Salisbury NHS Foundation Trust,20-Sep-13,STATIONERY SUNDRIES,Surgery,NHS LOGISTICS,1014087475,2.95,
Department of Health,Salisbury NHS Foundation Trust,20-Sep-13,PAPER ITEMS GENERAL STATIONERY SUNDRIES,Surgery,NHS LOGISTICS,1014087475,0.41,
Department of Health,Salisbury NHS Foundation Trust,20-Sep-13,DISPOSABLE THEATRE DRAPES WIPES,Surgery,NHS LOGISTICS,1014087475,1.68,
Department of Health,Salisbury NHS Foundation Trust,20-Sep-13,MEDSURGCONS - OTHER,Critical care,NHS LOGISTICS,1014087475,85.93,
Department of Health,Salisbury NHS Foundation Trust,20-Sep-13,PATIENTS INCONTINENCE,Critical care,NHS LOGISTICS,1014087475,9.08,
Department of Health,Salisbury NHS Foundation Trust,20-Sep-13,PATIENT APPLIANCES,Critical care,NHS LOGISTICS,1014087475,3.92,
Department of Health,Salisbury NHS Foundation Trust,20-Sep-13,TOILETRIES PERSONAL HYGIENE PRODUCTS,Critical care,NHS LOGISTICS,1014087475,6.82,
Department of Health,Salisbury NHS Foundation Trust,20-Sep-13,TISSUES HAND TOWELS & TOILET PAPER,Critical care,NHS LOGISTICS,1014087475,0.36,
Department of Health,Salisbury NHS Foundation Trust,20-Sep-13,CLEANING MATERIALS PRODUCTS SUNDRIES,Facilities Directorate,NHS LOGISTICS,1014087475,12.33,
Department of Health,Salisbury NHS Foundation Trust,20-Sep-13,STATIONERY SUNDRIES,Facilities Directorate,NHS LOGISTICS,1014087475,0.99,
Department of Health,Salisbury NHS Foundation Trust,20-Sep-13,CLEANING MATERIALS PRODUCTS SUNDRIES,Facilities Directorate,NHS LOGISTICS,1014087475,11.62,
Department of Health,Salisbury NHS Foundation Trust,20-Sep-13,CLEANING MATERIALS PRODUCTS SUNDRIES,Facilities Directorate,NHS LOGISTICS,1014087475,8.1,
Department of Health,Salisbury NHS Foundation Trust,20-Sep-13,STATIONERY SUNDRIES,Facilities Directorate,NHS LOGISTICS,1014087475,1.16,
Department of Health,Salisbury NHS Foundation Trust,20-Sep-13,TISSUES HAND TOWELS & TOILET PAPER,Facilities Directorate,NHS LOGISTICS,1014087475,54.5,
Department of Health,Salisbury NHS Foundation Trust,20-Sep-13,BAGS SACKS - OTHER,Critical care,NHS LOGISTICS,1014087475,4.01,
Department of Health,Salisbury NHS Foundation Trust,20-Sep-13,OTHER MEDICAL SUPPLIES,Critical care,NHS LOGISTICS,1014087475,5.68,
Department of Health,Salisbury NHS Foundation Trust,20-Sep-13,NON DISPOSABLE BED LINEN,Critical care,NHS LOGISTICS,1014087475,21.77,
Department of Health,Salisbury NHS Foundation Trust,20-Sep-13,PATIENT APPLIANCES,Critical care,NHS LOGISTICS,1014087475,7.92,
Department of Health,Salisbury NHS Foundation Trust,20-Sep-13,PATIENT APPLIANCES,Critical care,NHS LOGISTICS,1014087475,5.32,
Department of Health,Salisbury NHS Foundation Trust,20-Sep-13,PAPER ITEMS GENERAL STATIONERY SUNDRIES,Clinical Support and Family Services,NHS LOGISTICS,1014087475,47.83,
Department of Health,Salisbury NHS Foundation Trust,20-Sep-13,PAPER ITEMS GENERAL STATIONERY SUNDRIES,Clinical Support and Family Services,NHS LOGISTICS,1014087475,6.12,
Department of Health,Salisbury NHS Foundation Trust,20-Sep-13,STATIONERY SUNDRIES,Clinical Support and Family Services,NHS LOGISTICS,1014087475,1.07,
Department of Health,Salisbury NHS Foundation Trust,20-Sep-13,STATIONERY SUNDRIES,Clinical Support and Family Services,NHS LOGISTICS,1014087475,1.52,
Department of Health,Salisbury NHS Foundation Trust,20-Sep-13,STATIONERY SUNDRIES,Clinical Support and Family Services,NHS LOGISTICS,1014087475,0.92,
Department of Health,Salisbury NHS Foundation Trust,20-Sep-13,DISPOSABLE THEATRE DRAPES WIPES,Clinical Support and Family Services,NHS LOGISTICS,1014087475,4.92,
Department of Health,Salisbury NHS Foundation Trust,20-Sep-13,STATIONERY SUNDRIES,Critical care,NHS LOGISTICS,1014087475,35.75,
Department of Health,Salisbury NHS Foundation Trust,20-Sep-13,STATIONERY SUNDRIES,Critical care,NHS LOGISTICS,1014087475,4,
Department of Health,Salisbury NHS Foundation Trust,20-Sep-13,PATIENTS INCONTINENCE,Clinical Support and Family Services,NHS LOGISTICS,1014087475,8.79,
Department of Health,Salisbury NHS Foundation Trust,20-Sep-13,TISSUES HAND TOWELS & TOILET PAPER,Clinical Support and Family Services,NHS LOGISTICS,1014087475,1.88,
Department of Health,Salisbury NHS Foundation Trust,20-Sep-13,DRESSINGS - PRE STERILE,Clinical Support and Family Services,NHS LOGISTICS,1014087475,3.18,
Department of Health,Salisbury NHS Foundation Trust,20-Sep-13,OTHER MEDICAL SUPPLIES,Clinical Support and Family Services,NHS LOGISTICS,1014087475,14.99,
Department of Health,Salisbury NHS Foundation Trust,20-Sep-13,PATIENTS INCONTINENCE,Critical care,NHS LOGISTICS,1014087475,7.6,
Department of Health,Salisbury NHS Foundation Trust,20-Sep-13,TISSUES HAND TOWELS & TOILET PAPER,Critical care,NHS LOGISTICS,1014087475,1.88,
Department of Health,Salisbury NHS Foundation Trust,20-Sep-13,ANAESTHETIC EQUIPMENT ACCESSORIES,Critical care,NHS LOGISTICS,1014087475,1.17,
Department of Health,Salisbury NHS Foundation Trust,20-Sep-13,TOILETRIES PERSONAL HYGIENE PRODUCTS,Critical care,NHS LOGISTICS,1014087475,4.73,
Department of Health,Salisbury NHS Foundation Trust,20-Sep-13,OTHER MEDICAL SUPPLIES,Critical care,NHS LOGISTICS,1014087475,17.67,
Department of Health,Salisbury NHS Foundation Trust,20-Sep-13,DRESSINGS - PRE STERILE,Critical care,NHS LOGISTICS,1014087475,6.64,
Department of Health,Salisbury NHS Foundation Trust,20-Sep-13,DRESSINGS - PRE STERILE,Critical care,NHS LOGISTICS,1014087475,9.7,
Department of Health,Salisbury NHS Foundation Trust,20-Sep-13,DRESSINGS - PRE STERILE,Critical care,NHS LOGISTICS,1014087475,1.08,
Department of Health,Salisbury NHS Foundation Trust,20-Sep-13,TISSUES HAND TOWELS & TOILET PAPER,Critical care,NHS LOGISTICS,1014087475,1.88,
Department of Health,Salisbury NHS Foundation Trust,20-Sep-13,DRUGS,Critical care,NHS LOGISTICS,1014087475,7.72,
Department of Health,Salisbury NHS Foundation Trust,20-Sep-13,STATIONERY SUNDRIES,Clinical Support and Family Services,NHS LOGISTICS,1014087475,3.88,
Department of Health,Salisbury NHS Foundation Trust,20-Sep-13,TOILETRIES PERSONAL HYGIENE PRODUCTS,Clinical Support and Family Services,NHS LOGISTICS,1014087475,3.83,
Department of Health,Salisbury NHS Foundation Trust,20-Sep-13,NON DISPOSABLE BED LINEN,Clinical Support and Family Services,NHS LOGISTICS,1014087475,5.59,
Department of Health,Salisbury NHS Foundation Trust,20-Sep-13,OTHER MEDICAL SUPPLIES,Critical care,NHS LOGISTICS,1014087475,19.37,
Department of Health,Salisbury NHS Foundation Trust,20-Sep-13,LAB EQUIP-LABORATORY APPARATUS,Critical care,NHS LOGISTICS,1014087475,2.26,
Department of Health,Salisbury NHS Foundation Trust,20-Sep-13,PATIENT APPLIANCES,Critical care,NHS LOGISTICS,1014087475,5.32,
Department of Health,Salisbury NHS Foundation Trust,20-Sep-13,PAPER ITEMS GENERAL STATIONERY SUNDRIES,Surgery,NHS LOGISTICS,1014087475,2.33,
Department of Health,Salisbury NHS Foundation Trust,20-Sep-13,STATIONERY SUNDRIES,Surgery,NHS LOGISTICS,1014087475,5.92,
Department of Health,Salisbury NHS Foundation Trust,20-Sep-13,STATIONERY SUNDRIES,Surgery,NHS LOGISTICS,1014087475,4.27,
Department of Health,Salisbury NHS Foundation Trust,20-Sep-13,STATIONERY SUNDRIES,Surgery,NHS LOGISTICS,1014087475,2.13,
Department of Health,Salisbury NHS Foundation Trust,20-Sep-13,STATIONERY SUNDRIES,Surgery,NHS LOGISTICS,1014087475,5.48,
Department of Health,Salisbury NHS Foundation Trust,20-Sep-13,STATIONERY SUNDRIES,Clinical Support and Family Services,NHS LOGISTICS,1014087475,0.11,
Department of Health,Salisbury NHS Foundation Trust,20-Sep-13,STATIONERY SUNDRIES,Clinical Support and Family Services,NHS LOGISTICS,1014087475,10.27,
Department of Health,Salisbury NHS Foundation Trust,20-Sep-13,STATIONERY SUNDRIES,Clinical Support and Family Services,NHS LOGISTICS,1014087475,0.99,
Department of Health,Salisbury NHS Foundation Trust,20-Sep-13,PAPER ITEMS GENERAL STATIONERY SUNDRIES,Clinical Support and Family Services,NHS LOGISTICS,1014087475,49.07,
Department of Health,Salisbury NHS Foundation Trust,20-Sep-13,PAPER ITEMS GENERAL STATIONERY SUNDRIES,Clinical Support and Family Services,NHS LOGISTICS,1014087475,12.15,
Department of Health,Salisbury NHS Foundation Trust,20-Sep-13,PAPER ITEMS GENERAL STATIONERY SUNDRIES,Clinical Support and Family Services,NHS LOGISTICS,1014087475,41.7,
Department of Health,Salisbury NHS Foundation Trust,20-Sep-13,PAPER ITEMS GENERAL STATIONERY SUNDRIES,Clinical Support and Family Services,NHS LOGISTICS,1014087475,3.99,
Department of Health,Salisbury NHS Foundation Trust,20-Sep-13,PAPER ITEMS GENERAL STATIONERY SUNDRIES,Clinical Support and Family Services,NHS LOGISTICS,1014087475,3.42,
Department of Health,Salisbury NHS Foundation Trust,20-Sep-13,STATIONERY SUNDRIES,Clinical Support and Family Services,NHS LOGISTICS,1014087475,2.13,
Department of Health,Salisbury NHS Foundation Trust,20-Sep-13,STATIONERY SUNDRIES,Clinical Support and Family Services,NHS LOGISTICS,1014087475,1.02,
Department of Health,Salisbury NHS Foundation Trust,20-Sep-13,STATIONERY SUNDRIES,Clinical Support and Family Services,NHS LOGISTICS,1014087475,9.27,
Department of Health,Salisbury NHS Foundation Trust,20-Sep-13,STATIONERY SUNDRIES,Clinical Support and Family Services,NHS LOGISTICS,1014087475,1.52,
Department of Health,Salisbury NHS Foundation Trust,20-Sep-13,TUBES,Surgery,NHS LOGISTICS,1014087475,405.96,
Department of Health,Salisbury NHS Foundation Trust,20-Sep-13,STATIONERY SUNDRIES,Medicine,NHS LOGISTICS,1014087475,1.12,
Department of Health,Salisbury NHS Foundation Trust,20-Sep-13,STATIONERY SUNDRIES,Medicine,NHS LOGISTICS,1014087475,2.91,
Department of Health,Salisbury NHS Foundation Trust,20-Sep-13,STATIONERY SUNDRIES,Medicine,NHS LOGISTICS,1014087475,4.48,
Department of Health,Salisbury NHS Foundation Trust,20-Sep-13,STATIONERY SUNDRIES,Medicine,NHS LOGISTICS,1014087475,1,
Department of Health,Salisbury NHS Foundation Trust,20-Sep-13,SEATING GENERAL,Medicine,NHS LOGISTICS,1014087475,4.83,
Department of Health,Salisbury NHS Foundation Trust,20-Sep-13,STATIONERY SUNDRIES,Medicine,NHS LOGISTICS,1014087475,0.58,
Department of Health,Salisbury NHS Foundation Trust,20-Sep-13,PAPER ITEMS GENERAL STATIONERY SUNDRIES,Medicine,NHS LOGISTICS,1014087475,30.42,
Department of Health,Salisbury NHS Foundation Trust,20-Sep-13,STATIONERY SUNDRIES,Medicine,NHS LOGISTICS,1014087475,13.75,
Department of Health,Salisbury NHS Foundation Trust,20-Sep-13,STATIONERY SUNDRIES,Medicine,NHS LOGISTICS,1014087475,0.78,
Department of Health,Salisbury NHS Foundation Trust,20-Sep-13,STATIONERY SUNDRIES,Medicine,NHS LOGISTICS,1014087475,3.03,
Department of Health,Salisbury NHS Foundation Trust,20-Sep-13,ELECTRICAL EQUIPMENT x,Medicine,NHS LOGISTICS,1014087475,4,
Department of Health,Salisbury NHS Foundation Trust,20-Sep-13,M & S EQUIPELECTEQUIPINST - OTHER,Medicine,NHS LOGISTICS,1014087475,2.98,
Department of Health,Salisbury NHS Foundation Trust,20-Sep-13,STATIONERY SUNDRIES,Medicine,NHS LOGISTICS,1014087475,3.6,
Department of Health,Salisbury NHS Foundation Trust,20-Sep-13,DRESSINGS - PRE STERILE,Critical care,NHS LOGISTICS,1014087475,12.75,
Department of Health,Salisbury NHS Foundation Trust,20-Sep-13,DRESSINGS - PRE STERILE,Critical care,NHS LOGISTICS,1014087475,6.03,
Department of Health,Salisbury NHS Foundation Trust,20-Sep-13,DRESSINGS - PRE STERILE,Critical care,NHS LOGISTICS,1014087475,7.91,
Department of Health,Salisbury NHS Foundation Trust,20-Sep-13,ADULTS HEARING AIDS,Surgery,NHS LOGISTICS,1014087475,376.27,
Department of Health,Salisbury NHS Foundation Trust,20-Sep-13,ADULTS HEARING AIDS,Surgery,NHS LOGISTICS,1014087475,723.5,
Department of Health,Salisbury NHS Foundation Trust,20-Sep-13,STATIONERY SUNDRIES,Medicine,NHS LOGISTICS,1014087475,2,
Department of Health,Salisbury NHS Foundation Trust,20-Sep-13,STATIONERY SUNDRIES,Medicine,NHS LOGISTICS,1014087475,2.74,
Department of Health,Salisbury NHS Foundation Trust,20-Sep-13,MEDPROSTH - OTHER,Surgery,NHS LOGISTICS,1014087475,535.72,
Department of Health,Salisbury NHS Foundation Trust,20-Sep-13,OTHER MEDICAL SUPPLIES,Surgery,NHS LOGISTICS,1014087475,17.67,
Department of Health,Salisbury NHS Foundation Trust,20-Sep-13,BAGS SACKS - OTHER,Surgery,NHS LOGISTICS,1014087475,4.78,
Department of Health,Salisbury NHS Foundation Trust,20-Sep-13,BEVERAGES & AMBIENT FOOD,Surgery,NHS LOGISTICS,1014087475,1.52,
Department of Health,Salisbury NHS Foundation Trust,20-Sep-13,MEDSURGCONS - OTHER,Surgery,NHS LOGISTICS,1014087475,63.6,
Department of Health,Salisbury NHS Foundation Trust,20-Sep-13,DRESSINGS - PRE STERILE,Surgery,NHS LOGISTICS,1014087475,3.63,
Department of Health,Salisbury NHS Foundation Trust,20-Sep-13,BEVERAGES & AMBIENT FOOD,Surgery,NHS LOGISTICS,1014087475,1.01,
Department of Health,Salisbury NHS Foundation Trust,20-Sep-13,MEDSURGCONS - OTHER,Surgery,NHS LOGISTICS,1014087475,7.33,
Department of Health,Salisbury NHS Foundation Trust,20-Sep-13,DISPOSABLE THEATRE DRAPES WIPES,Surgery,NHS LOGISTICS,1014087475,9.47,
Department of Health,Salisbury NHS Foundation Trust,20-Sep-13,OTHER MEDICAL SUPPLIES,Critical care,NHS LOGISTICS,1014087475,39.17,
Department of Health,Salisbury NHS Foundation Trust,20-Sep-13,HEALTHCARE - WEAR,Critical care,NHS LOGISTICS,1014087475,93.38,
Department of Health,Salisbury NHS Foundation Trust,20-Sep-13,HEALTHCARE - WEAR,Critical care,NHS LOGISTICS,1014087475,36.1,
Department of Health,Salisbury NHS Foundation Trust,20-Sep-13,MEDSURGCONS - OTHER,Critical care,NHS LOGISTICS,1014087475,30.1,
Department of Health,Salisbury NHS Foundation Trust,20-Sep-13,TISSUES HAND TOWELS & TOILET PAPER,Critical care,NHS LOGISTICS,1014087475,5.65,
Department of Health,Salisbury NHS Foundation Trust,20-Sep-13,TISSUES HAND TOWELS & TOILET PAPER,Critical care,NHS LOGISTICS,1014087475,10.7,
Department of Health,Salisbury NHS Foundation Trust,20-Sep-13,M & S EQUIPELECTEQUIPINST - OTHER,Critical care,NHS LOGISTICS,1014087475,27.13,
Department of Health,Salisbury NHS Foundation Trust,20-Sep-13,PATIENT APPLIANCES,Critical care,NHS LOGISTICS,1014087475,3.92,
Department of Health,Salisbury NHS Foundation Trust,20-Sep-13,PATIENT APPLIANCES,Critical care,NHS LOGISTICS,1014087475,3.92,
Department of Health,Salisbury NHS Foundation Trust,20-Sep-13,PATIENT APPLIANCES,Critical care,NHS LOGISTICS,1014087475,3.22,
Department of Health,Salisbury NHS Foundation Trust,20-Sep-13,PATIENT APPLIANCES,Critical care,NHS LOGISTICS,1014087475,3.9,
Department of Health,Salisbury NHS Foundation Trust,20-Sep-13,DISPOSABLE THEATRE DRAPES WIPES,Clinical Support and Family Services,NHS LOGISTICS,1014087475,16.75,
Department of Health,Salisbury NHS Foundation Trust,20-Sep-13,STATIONERY SUNDRIES,Clinical Support and Family Services,NHS LOGISTICS,1014087475,14.23,
Department of Health,Salisbury NHS Foundation Trust,20-Sep-13,PAPER ITEMS GENERAL STATIONERY SUNDRIES,Clinical Support and Family Services,NHS LOGISTICS,1014087475,1.45,
Department of Health,Salisbury NHS Foundation Trust,20-Sep-13,PAPER ITEMS GENERAL STATIONERY SUNDRIES,Clinical Support and Family Services,NHS LOGISTICS,1014087475,1.13,
Department of Health,Salisbury NHS Foundation Trust,20-Sep-13,STATIONERY SUNDRIES,Clinical Support and Family Services,NHS LOGISTICS,1014087475,3.82,
Department of Health,Salisbury NHS Foundation Trust,20-Sep-13,STATIONERY SUNDRIES,Clinical Support and Family Services,NHS LOGISTICS,1014087475,3.82,
Department of Health,Salisbury NHS Foundation Trust,20-Sep-13,STATIONERY SUNDRIES,Clinical Support and Family Services,NHS LOGISTICS,1014087475,4.65,
Department of Health,Salisbury NHS Foundation Trust,20-Sep-13,STATIONERY SUNDRIES,Clinical Support and Family Services,NHS LOGISTICS,1014087475,6.68,
Department of Health,Salisbury NHS Foundation Trust,20-Sep-13,STATIONERY SUNDRIES,Clinical Support and Family Services,NHS LOGISTICS,1014087475,2.78,
Department of Health,Salisbury NHS Foundation Trust,20-Sep-13,PAPER ITEMS GENERAL STATIONERY SUNDRIES,Clinical Support and Family Services,NHS LOGISTICS,1014087475,6.13,
Department of Health,Salisbury NHS Foundation Trust,20-Sep-13,STATIONERY SUNDRIES,Clinical Support and Family Services,NHS LOGISTICS,1014087475,2.32,
Department of Health,Salisbury NHS Foundation Trust,20-Sep-13,STATIONERY SUNDRIES,Clinical Support and Family Services,NHS LOGISTICS,1014087475,2.88,
Department of Health,Salisbury NHS Foundation Trust,20-Sep-13,BAGS SACKS - OTHER,Surgery,NHS LOGISTICS,1014087475,3.45,
Department of Health,Salisbury NHS Foundation Trust,20-Sep-13,MEDSURGCONS - OTHER,Surgery,NHS LOGISTICS,1014087475,20.63,
Department of Health,Salisbury NHS Foundation Trust,20-Sep-13,PATIENT APPLIANCES,Surgery,NHS LOGISTICS,1014087475,7.92,
Department of Health,Salisbury NHS Foundation Trust,20-Sep-13,PATIENT APPLIANCES,Surgery,NHS LOGISTICS,1014087475,7.92,
Department of Health,Salisbury NHS Foundation Trust,20-Sep-13,PATIENT APPLIANCES,Surgery,NHS LOGISTICS,1014087475,5.32,
Department of Health,Salisbury NHS Foundation Trust,20-Sep-13,DISPOSABLE THEATRE DRAPES WIPES,Surgery,NHS LOGISTICS,1014087475,1.93,
Department of Health,Salisbury NHS Foundation Trust,20-Sep-13,OTHER MEDICAL SUPPLIES,Critical care,NHS LOGISTICS,1014087475,16.53,
Department of Health,Salisbury NHS Foundation Trust,20-Sep-13,MEDSURGCONS - OTHER,Critical care,NHS LOGISTICS,1014087475,11.31,
Department of Health,Salisbury NHS Foundation Trust,20-Sep-13,PATIENT APPLIANCES,Critical care,NHS LOGISTICS,1014087475,3.5,
Department of Health,Salisbury NHS Foundation Trust,20-Sep-13,LAB EQUIP-ANALYSERS,Critical care,NHS LOGISTICS,1014087475,7.9,
Department of Health,Salisbury NHS Foundation Trust,20-Sep-13,PATIENT APPLIANCES,Critical care,NHS LOGISTICS,1014087475,53.17,
Department of Health,Salisbury NHS Foundation Trust,20-Sep-13,PATIENT APPLIANCES,Critical care,NHS LOGISTICS,1014087475,3.83,
Department of Health,Salisbury NHS Foundation Trust,20-Sep-13,CLEANING MATERIALS PRODUCTS SUNDRIES,Critical care,NHS LOGISTICS,1014087475,2.35,
Department of Health,Salisbury NHS Foundation Trust,20-Sep-13,ADULTS HEARING AIDS,Surgery,NHS LOGISTICS,1014087475,2363,
Department of Health,Salisbury NHS Foundation Trust,20-Sep-13,DRESSINGS - PRE STERILE,Surgery,NHS LOGISTICS,1014087475,13.28,
Department of Health,Salisbury NHS Foundation Trust,20-Sep-13,DRESSINGS - PRE STERILE,Surgery,NHS LOGISTICS,1014087475,6.3,
Department of Health,Salisbury NHS Foundation Trust,20-Sep-13,PATIENTS INCONTINENCE,Surgery,NHS LOGISTICS,1014087475,18.17,
Department of Health,Salisbury NHS Foundation Trust,20-Sep-13,DRESSINGS - PRE STERILE,Surgery,NHS LOGISTICS,1014087475,0.85,
Department of Health,Salisbury NHS Foundation Trust,20-Sep-13,DRESSINGS - PRE STERILE,Surgery,NHS LOGISTICS,1014087475,2.76,
Department of Health,Salisbury NHS Foundation Trust,20-Sep-13,TISSUES HAND TOWELS & TOILET PAPER,Surgery,NHS LOGISTICS,1014087475,20.9,
Department of Health,Salisbury NHS Foundation Trust,20-Sep-13,BABY TEXTURE MODIFIED FOODS,Clinical Support and Family Services,NHS LOGISTICS,1014087475,10,
Department of Health,Salisbury NHS Foundation Trust,20-Sep-13,BABY TEXTURE MODIFIED FOODS,Clinical Support and Family Services,NHS LOGISTICS,1014087475,10.23,
Department of Health,Salisbury NHS Foundation Trust,20-Sep-13,TOILETRIES PERSONAL HYGIENE PRODUCTS,Surgery,NHS LOGISTICS,1014087475,0.82,
Department of Health,Salisbury NHS Foundation Trust,20-Sep-13,DISPOSABLE BED LINEN,Surgery,NHS LOGISTICS,1014087475,22.96,
Department of Health,Salisbury NHS Foundation Trust,20-Sep-13,M & S EQUIPELECTEQUIPINST - OTHER,Clinical Support and Family Services,NHS LOGISTICS,1014087475,100.32,
Department of Health,Salisbury NHS Foundation Trust,20-Sep-13,OTHER MEDICAL SUPPLIES,Clinical Support and Family Services,NHS LOGISTICS,1014087475,4.42,
Department of Health,Salisbury NHS Foundation Trust,20-Sep-13,MED SURG EQUIP REP MAINT CLEANING,Clinical Support and Family Services,NHS LOGISTICS,1014087475,55.38,
Department of Health,Salisbury NHS Foundation Trust,20-Sep-13,TISSUES HAND TOWELS & TOILET PAPER,Clinical Support and Family Services,NHS LOGISTICS,1014087475,0.46,
Department of Health,Salisbury NHS Foundation Trust,20-Sep-13,MEDSURGCONS - OTHER,Clinical Support and Family Services,NHS LOGISTICS,1014087475,7.12,
Department of Health,Salisbury NHS Foundation Trust,20-Sep-13,MEDSURGCONS - OTHER,Clinical Support and Family Services,NHS LOGISTICS,1014087475,5.21,
Department of Health,Salisbury NHS Foundation Trust,20-Sep-13,DRESSINGS - PRE STERILE,Surgery,NHS LOGISTICS,1014087475,24.7,
Department of Health,Salisbury NHS Foundation Trust,20-Sep-13,DRESSINGS - PRE STERILE,Surgery,NHS LOGISTICS,1014087475,10.19,
Department of Health,Salisbury NHS Foundation Trust,20-Sep-13,TISSUES HAND TOWELS & TOILET PAPER,Surgery,NHS LOGISTICS,1014087475,5.65,
Department of Health,Salisbury NHS Foundation Trust,20-Sep-13,TISSUES HAND TOWELS & TOILET PAPER,Surgery,NHS LOGISTICS,1014087475,0.46,
Department of Health,Salisbury NHS Foundation Trust,20-Sep-13,PATIENT APPLIANCES,Critical care,NHS LOGISTICS,1014087475,16.4,
Department of Health,Salisbury NHS Foundation Trust,20-Sep-13,PATIENT APPLIANCES,Critical care,NHS LOGISTICS,1014087475,16.4,
Department of Health,Salisbury NHS Foundation Trust,20-Sep-13,ANAESTHETIC EQUIPMENT ACCESSORIES,Critical care,NHS LOGISTICS,1014087475,4.08,
Department of Health,Salisbury NHS Foundation Trust,20-Sep-13,ANAESTHETIC EQUIPMENT ACCESSORIES,Critical care,NHS LOGISTICS,1014087475,19.58,
Department of Health,Salisbury NHS Foundation Trust,20-Sep-13,DRESSINGS  -  PROCEDURE PACKS,Surgery,NHS LOGISTICS,1014087475,2.78,
Department of Health,Salisbury NHS Foundation Trust,20-Sep-13,DRESSINGS  -  PROCEDURE PACKS,Surgery,NHS LOGISTICS,1014087475,1.17,
Department of Health,Salisbury NHS Foundation Trust,20-Sep-13,DRESSINGS  -  PROCEDURE PACKS,Surgery,NHS LOGISTICS,1014087475,3.5,
Department of Health,Salisbury NHS Foundation Trust,20-Sep-13,DRUGS,Surgery,NHS LOGISTICS,1014087475,23.15,
Department of Health,Salisbury NHS Foundation Trust,20-Sep-13,DRUGS,Surgery,NHS LOGISTICS,1014087475,45.3,
Department of Health,Salisbury NHS Foundation Trust,20-Sep-13,DRUGS,Surgery,NHS LOGISTICS,1014087475,5,
Department of Health,Salisbury NHS Foundation Trust,20-Sep-13,DRUGS,Surgery,NHS LOGISTICS,1014087475,7.72,
Department of Health,Salisbury NHS Foundation Trust,20-Sep-13,DRESSINGS - PRE STERILE,Surgery,NHS LOGISTICS,1014087475,34.8,
Department of Health,Salisbury NHS Foundation Trust,20-Sep-13,DRESSINGS  -  PROCEDURE PACKS,Surgery,NHS LOGISTICS,1014087475,2.04,
Department of Health,Salisbury NHS Foundation Trust,20-Sep-13,DRESSINGS - PRE STERILE,Surgery,NHS LOGISTICS,1014087475,29.35,
Department of Health,Salisbury NHS Foundation Trust,20-Sep-13,ADULTS HEARING AIDS,Surgery,NHS LOGISTICS,1014087475,4726,
Department of Health,Salisbury NHS Foundation Trust,20-Sep-13,TUBES,Clinical Support and Family Services,NHS LOGISTICS,1014087475,1.17,
Department of Health,Salisbury NHS Foundation Trust,20-Sep-13,TUBES,Clinical Support and Family Services,NHS LOGISTICS,1014087475,1.13,
Department of Health,Salisbury NHS Foundation Trust,20-Sep-13,TUBES,Clinical Support and Family Services,NHS LOGISTICS,1014087475,1.13,
Department of Health,Salisbury NHS Foundation Trust,20-Sep-13,PATIENTS INCONTINENCE,Surgery,NHS LOGISTICS,1014087475,7.21,
Department of Health,Salisbury NHS Foundation Trust,20-Sep-13,NON DISPOSABLE BED LINEN,Surgery,NHS LOGISTICS,1014087475,21.77,
Department of Health,Salisbury NHS Foundation Trust,20-Sep-13,OTHER MEDICAL SUPPLIES,Surgery,NHS LOGISTICS,1014087475,25.33,
Department of Health,Salisbury NHS Foundation Trust,20-Sep-13,DRESSINGS  -  PROCEDURE PACKS,Surgery,NHS LOGISTICS,1014087475,6.83,
Department of Health,Salisbury NHS Foundation Trust,20-Sep-13,STATIONERY SUNDRIES,Medicine,NHS LOGISTICS,1014087475,3.2,
Department of Health,Salisbury NHS Foundation Trust,20-Sep-13,STATIONERY SUNDRIES,Medicine,NHS LOGISTICS,1014087475,1.07,
Department of Health,Salisbury NHS Foundation Trust,20-Sep-13,OTHER MEDICAL SUPPLIES,Medicine,NHS LOGISTICS,1014087475,17.67,
Department of Health,Salisbury NHS Foundation Trust,20-Sep-13,DRESSINGS - PRE STERILE,Medicine,NHS LOGISTICS,1014087475,1.08,
Department of Health,Salisbury NHS Foundation Trust,20-Sep-13,DRESSINGS - PRE STERILE,Medicine,NHS LOGISTICS,1014087475,6.64,
Department of Health,Salisbury NHS Foundation Trust,20-Sep-13,DRESSINGS - PRE STERILE,Medicine,NHS LOGISTICS,1014087475,9.7,
Department of Health,Salisbury NHS Foundation Trust,20-Sep-13,DRESSINGS - PRE STERILE,Medicine,NHS LOGISTICS,1014087475,4.13,
Department of Health,Salisbury NHS Foundation Trust,20-Sep-13,DRESSINGS - PRE STERILE,Medicine,NHS LOGISTICS,1014087475,2.73,
Department of Health,Salisbury NHS Foundation Trust,20-Sep-13,MEDSURGCONS - OTHER,Medicine,NHS LOGISTICS,1014087475,1.13,
Department of Health,Salisbury NHS Foundation Trust,20-Sep-13,PATIENT APPLIANCES,Medicine,NHS LOGISTICS,1014087475,4.12,
Department of Health,Salisbury NHS Foundation Trust,20-Sep-13,PATIENT APPLIANCES,Medicine,NHS LOGISTICS,1014087475,4.12,
Department of Health,Salisbury NHS Foundation Trust,20-Sep-13,PATIENT APPLIANCES,Medicine,NHS LOGISTICS,1014087475,8.23,
Department of Health,Salisbury NHS Foundation Trust,20-Sep-13,PATIENT APPLIANCES,Medicine,NHS LOGISTICS,1014087475,4.12,
Department of Health,Salisbury NHS Foundation Trust,20-Sep-13,OTHER MEDICAL SUPPLIES,Medicine,NHS LOGISTICS,1014087475,22.22,
Department of Health,Salisbury NHS Foundation Trust,20-Sep-13,M & S EQUIPELECTEQUIPINST - OTHER,Medicine,NHS LOGISTICS,1014087475,15.91,
Department of Health,Salisbury NHS Foundation Trust,20-Sep-13,OTHER MEDICAL SUPPLIES,Medicine,NHS LOGISTICS,1014087475,3.26,
Department of Health,Salisbury NHS Foundation Trust,20-Sep-13,DRUGS,Medicine,NHS LOGISTICS,1014087475,7.72,
Department of Health,Salisbury NHS Foundation Trust,20-Sep-13,MEDSURGCONS - OTHER,Medicine,NHS LOGISTICS,1014087475,6.87,
Department of Health,Salisbury NHS Foundation Trust,20-Sep-13,MEDSURGCONS - OTHER,Medicine,NHS LOGISTICS,1014087475,6.87,
Department of Health,Salisbury NHS Foundation Trust,20-Sep-13,DRESSINGS - PRE STERILE,Critical care,NHS LOGISTICS,1014087475,2.34,
Department of Health,Salisbury NHS Foundation Trust,20-Sep-13,DRESSINGS - PRE STERILE,Critical care,NHS LOGISTICS,1014087475,22.78,
Department of Health,Salisbury NHS Foundation Trust,20-Sep-13,DRESSINGS - PRE STERILE,Critical care,NHS LOGISTICS,1014087475,22.78,
Department of Health,Salisbury NHS Foundation Trust,20-Sep-13,DRESSINGS - PRE STERILE,Critical care,NHS LOGISTICS,1014087475,136.27,
Department of Health,Salisbury NHS Foundation Trust,20-Sep-13,DRESSINGS - PRE STERILE,Critical care,NHS LOGISTICS,1014087475,16.5,
Department of Health,Salisbury NHS Foundation Trust,20-Sep-13,PATIENTS FOOTWEAR,Critical care,NHS LOGISTICS,1014087475,38.29,
Department of Health,Salisbury NHS Foundation Trust,20-Sep-13,PATIENTS FOOTWEAR,Critical care,NHS LOGISTICS,1014087475,38.29,
Department of Health,Salisbury NHS Foundation Trust,20-Sep-13,TISSUES HAND TOWELS & TOILET PAPER,Critical care,NHS LOGISTICS,1014087475,7.53,
Department of Health,Salisbury NHS Foundation Trust,20-Sep-13,DRESSINGS - PRE STERILE,Critical care,NHS LOGISTICS,1014087475,47.58,
Department of Health,Salisbury NHS Foundation Trust,20-Sep-13,DRESSINGS - PRE STERILE,Critical care,NHS LOGISTICS,1014087475,47.58,
Department of Health,Salisbury NHS Foundation Trust,20-Sep-13,DRESSINGS - PRE STERILE,Critical care,NHS LOGISTICS,1014087475,47.58,
Department of Health,Salisbury NHS Foundation Trust,20-Sep-13,DRESSINGS - PRE STERILE,Critical care,NHS LOGISTICS,1014087475,28.22,
Department of Health,Salisbury NHS Foundation Trust,20-Sep-13,DRESSINGS - PRE STERILE,Critical care,NHS LOGISTICS,1014087475,6.68,
Department of Health,Salisbury NHS Foundation Trust,20-Sep-13,DRESSINGS - PRE STERILE,Critical care,NHS LOGISTICS,1014087475,139.63,
Department of Health,Salisbury NHS Foundation Trust,20-Sep-13,DRESSINGS - PRE STERILE,Critical care,NHS LOGISTICS,1014087475,26.57,
Department of Health,Salisbury NHS Foundation Trust,20-Sep-13,DRESSINGS - PRE STERILE,Critical care,NHS LOGISTICS,1014087475,16.53,
Department of Health,Salisbury NHS Foundation Trust,20-Sep-13,DRESSINGS - PRE STERILE,Critical care,NHS LOGISTICS,1014087475,4.57,
Department of Health,Salisbury NHS Foundation Trust,20-Sep-13,M & S EQUIPELECTEQUIPINST - OTHER,Medicine,NHS LOGISTICS,1014087475,90.51,
Department of Health,Salisbury NHS Foundation Trust,20-Sep-13,MEDSURGCONS - OTHER,Medicine,NHS LOGISTICS,1014087475,4.56,
Department of Health,Salisbury NHS Foundation Trust,20-Sep-13,OTHER MEDICAL SUPPLIES,Medicine,NHS LOGISTICS,1014087475,5.68,
Department of Health,Salisbury NHS Foundation Trust,20-Sep-13,MEDSURGCONS-SUTURES,Medicine,NHS LOGISTICS,1014087475,46.23,
Department of Health,Salisbury NHS Foundation Trust,20-Sep-13,MEDSURGCONS-SUTURES,Medicine,NHS LOGISTICS,1014087475,87.9,
Department of Health,Salisbury NHS Foundation Trust,20-Sep-13,MEDSURGCONS-SUTURES,Medicine,NHS LOGISTICS,1014087475,41.25,
Department of Health,Salisbury NHS Foundation Trust,20-Sep-13,MEDSURGCONS-SUTURES,Medicine,NHS LOGISTICS,1014087475,13.42,
Department of Health,Salisbury NHS Foundation Trust,20-Sep-13,NON DISPOSABLE BED LINEN,Medicine,NHS LOGISTICS,1014087475,16.77,
Department of Health,Salisbury NHS Foundation Trust,20-Sep-13,PATIENT APPLIANCES,Medicine,NHS LOGISTICS,1014087475,5.32,
Department of Health,Salisbury NHS Foundation Trust,20-Sep-13,MEDSURGCONS - OTHER,Critical care,NHS LOGISTICS,1014087475,3.51,
Department of Health,Salisbury NHS Foundation Trust,20-Sep-13,MEDSURGCONS-SUTURES,Critical care,NHS LOGISTICS,1014087475,43.81,
Department of Health,Salisbury NHS Foundation Trust,20-Sep-13,MEDSURGCONS-SUTURES,Critical care,NHS LOGISTICS,1014087475,30.07,
Department of Health,Salisbury NHS Foundation Trust,20-Sep-13,MEDSURGCONS-SUTURES,Critical care,NHS LOGISTICS,1014087475,54.05,
Department of Health,Salisbury NHS Foundation Trust,20-Sep-13,MEDSURGCONS-SUTURES,Critical care,NHS LOGISTICS,1014087475,56,
Department of Health,Salisbury NHS Foundation Trust,20-Sep-13,ANAESTHETIC EQUIPMENT ACCESSORIES,Surgery,NHS LOGISTICS,1014087475,110.38,
Department of Health,Salisbury NHS Foundation Trust,20-Sep-13,STATIONERY SUNDRIES,Critical care,NHS LOGISTICS,1014087475,4.4,
Department of Health,Salisbury NHS Foundation Trust,20-Sep-13,PAPER ITEMS GENERAL STATIONERY SUNDRIES,Surgery,NHS LOGISTICS,1014087475,12.74,
Department of Health,Salisbury NHS Foundation Trust,20-Sep-13,DISPOSABLE THEATRE DRAPES WIPES,Surgery,NHS LOGISTICS,1014087475,3.85,
Department of Health,Salisbury NHS Foundation Trust,20-Sep-13,DISPOSABLE THEATRE DRAPES WIPES,Surgery,NHS LOGISTICS,1014087475,11.25,
Department of Health,Salisbury NHS Foundation Trust,20-Sep-13,MEDSURGCONS - OTHER,Medicine,NHS LOGISTICS,1014087475,2.73,
Department of Health,Salisbury NHS Foundation Trust,20-Sep-13,BEVERAGES & AMBIENT FOOD,Clinical Support and Family Services,NHS LOGISTICS,1014087475,10.45,
Department of Health,Salisbury NHS Foundation Trust,20-Sep-13,TISSUES HAND TOWELS & TOILET PAPER,Clinical Support and Family Services,NHS LOGISTICS,1014087475,31.35,
Department of Health,Salisbury NHS Foundation Trust,20-Sep-13,LAB EQUIP-LABORATORY APPARATUS,Clinical Support and Family Services,NHS LOGISTICS,1014087475,18.88,
Department of Health,Salisbury NHS Foundation Trust,20-Sep-13,NON DISPOSABLE BED LINEN,Clinical Support and Family Services,NHS LOGISTICS,1014087475,22.83,
Department of Health,Salisbury NHS Foundation Trust,20-Sep-13,OTHER MEDICAL SUPPLIES,Surgery,NHS LOGISTICS,1014087475,17.67,
Department of Health,Salisbury NHS Foundation Trust,20-Sep-13,DRESSINGS - PRE STERILE,Surgery,NHS LOGISTICS,1014087475,5.13,
Department of Health,Salisbury NHS Foundation Trust,20-Sep-13,TOILETRIES PERSONAL HYGIENE PRODUCTS,Surgery,NHS LOGISTICS,1014087475,4.06,
Department of Health,Salisbury NHS Foundation Trust,20-Sep-13,TOILETRIES PERSONAL HYGIENE PRODUCTS,Surgery,NHS LOGISTICS,1014087475,7.83,
Department of Health,Salisbury NHS Foundation Trust,20-Sep-13,MEDSURGCONS - OTHER,Surgery,NHS LOGISTICS,1014087475,127.2,
Department of Health,Salisbury NHS Foundation Trust,20-Sep-13,OTHER MEDICAL SUPPLIES,Medicine,NHS LOGISTICS,1014087475,115.41,
Department of Health,Salisbury NHS Foundation Trust,20-Sep-13,DRESSINGS - PRE STERILE,Medicine,NHS LOGISTICS,1014087475,1.14,
Department of Health,Salisbury NHS Foundation Trust,20-Sep-13,DISPOSABLE THEATRE DRAPES WIPES,Critical care,NHS LOGISTICS,1014087475,5.58,
Department of Health,Salisbury NHS Foundation Trust,20-Sep-13,NON DISPOSABLE THEATRE DRAPES WIPES,Clinical Support and Family Services,NHS LOGISTICS,1014087475,72.61,
Department of Health,Salisbury NHS Foundation Trust,20-Sep-13,NON DISPOSABLE BED LINEN,Clinical Support and Family Services,NHS LOGISTICS,1014087475,21.77,
Department of Health,Salisbury NHS Foundation Trust,20-Sep-13,DRESSINGS  -  PROCEDURE PACKS,Surgery,NHS LOGISTICS,1014087475,15.83,
Department of Health,Salisbury NHS Foundation Trust,20-Sep-13,OTHER MEDICAL SUPPLIES,Surgery,NHS LOGISTICS,1014087475,16.53,
Department of Health,Salisbury NHS Foundation Trust,20-Sep-13,MEDSURGCONS-SUTURES,Surgery,NHS LOGISTICS,1014087475,38.38,
Department of Health,Salisbury NHS Foundation Trust,20-Sep-13,MEDSURGCONS-SUTURES,Surgery,NHS LOGISTICS,1014087475,72.12,
Department of Health,Salisbury NHS Foundation Trust,20-Sep-13,MEDSURGCONS-SUTURES,Surgery,NHS LOGISTICS,1014087475,22.27,
Department of Health,Salisbury NHS Foundation Trust,20-Sep-13,MEDSURGCONS-SUTURES,Surgery,NHS LOGISTICS,1014087475,22.27,
Department of Health,Salisbury NHS Foundation Trust,20-Sep-13,MEDSURGCONS-SUTURES,Surgery,NHS LOGISTICS,1014087475,29.53,
Department of Health,Salisbury NHS Foundation Trust,20-Sep-13,MEDSURGCONS-SUTURES,Surgery,NHS LOGISTICS,1014087475,26.72,
Department of Health,Salisbury NHS Foundation Trust,20-Sep-13,MEDSURGCONS-SUTURES,Surgery,NHS LOGISTICS,1014087475,28.46,
Department of Health,Salisbury NHS Foundation Trust,20-Sep-13,MEDSURGCONS-SUTURES,Surgery,NHS LOGISTICS,1014087475,77.42,
Department of Health,Salisbury NHS Foundation Trust,20-Sep-13,MEDSURGCONS-SUTURES,Surgery,NHS LOGISTICS,1014087475,29.64,
Department of Health,Salisbury NHS Foundation Trust,20-Sep-13,MEDSURGCONS-SUTURES,Surgery,NHS LOGISTICS,1014087475,123.03,
Department of Health,Salisbury NHS Foundation Trust,20-Sep-13,MEDSURGCONS-SUTURES,Surgery,NHS LOGISTICS,1014087475,33.13,
Department of Health,Salisbury NHS Foundation Trust,20-Sep-13,MEDSURGCONS-SUTURES,Surgery,NHS LOGISTICS,1014087475,32.21,
Department of Health,Salisbury NHS Foundation Trust,20-Sep-13,MEDSURGCONS-SUTURES,Surgery,NHS LOGISTICS,1014087475,92.47,
Department of Health,Salisbury NHS Foundation Trust,20-Sep-13,MEDSURGCONS-SUTURES,Surgery,NHS LOGISTICS,1014087475,133.78,
Department of Health,Salisbury NHS Foundation Trust,20-Sep-13,MEDSURGCONS-SUTURES,Surgery,NHS LOGISTICS,1014087475,43.81,
Department of Health,Salisbury NHS Foundation Trust,20-Sep-13,MEDSURGCONS-SUTURES,Surgery,NHS LOGISTICS,1014087475,37.55,
Department of Health,Salisbury NHS Foundation Trust,20-Sep-13,MEDSURGCONS-SUTURES,Surgery,NHS LOGISTICS,1014087475,22.9,
Department of Health,Salisbury NHS Foundation Trust,20-Sep-13,MEDSURGCONS-SUTURES,Surgery,NHS LOGISTICS,1014087475,98.9,
Department of Health,Salisbury NHS Foundation Trust,20-Sep-13,MEDSURGCONS-SUTURES,Surgery,NHS LOGISTICS,1014087475,57.73,
Department of Health,Salisbury NHS Foundation Trust,20-Sep-13,MEDSURGCONS-SUTURES,Surgery,NHS LOGISTICS,1014087475,32.47,
Department of Health,Salisbury NHS Foundation Trust,20-Sep-13,STATIONERY SUNDRIES,Medicine,NHS LOGISTICS,1014087475,3.07,
Department of Health,Salisbury NHS Foundation Trust,20-Sep-13,STATIONERY SUNDRIES,Medicine,NHS LOGISTICS,1014087475,6.08,
Department of Health,Salisbury NHS Foundation Trust,20-Sep-13,STATIONERY SUNDRIES,Medicine,NHS LOGISTICS,1014087475,3.2,
Department of Health,Salisbury NHS Foundation Trust,20-Sep-13,STATIONERY SUNDRIES,Medicine,NHS LOGISTICS,1014087475,3.2,
Department of Health,Salisbury NHS Foundation Trust,20-Sep-13,STATIONERY SUNDRIES,Surgery,NHS LOGISTICS,1014087475,4.13,
Department of Health,Salisbury NHS Foundation Trust,20-Sep-13,STATIONERY SUNDRIES,Medicine,NHS LOGISTICS,1014087475,10.18,
Department of Health,Salisbury NHS Foundation Trust,20-Sep-13,STATIONERY SUNDRIES,Medicine,NHS LOGISTICS,1014087475,1.53,
Department of Health,Salisbury NHS Foundation Trust,20-Sep-13,STATIONERY SUNDRIES,Medicine,NHS LOGISTICS,1014087475,2.77,
Department of Health,Salisbury NHS Foundation Trust,20-Sep-13,STATIONERY SUNDRIES,Medicine,NHS LOGISTICS,1014087475,2.77,
Department of Health,Salisbury NHS Foundation Trust,20-Sep-13,STATIONERY SUNDRIES,Medicine,NHS LOGISTICS,1014087475,1.85,
Department of Health,Salisbury NHS Foundation Trust,20-Sep-13,STATIONERY SUNDRIES,Medicine,NHS LOGISTICS,1014087475,3.7,
Department of Health,Salisbury NHS Foundation Trust,20-Sep-13,STATIONERY SUNDRIES,Medicine,NHS LOGISTICS,1014087475,1.85,
Department of Health,Salisbury NHS Foundation Trust,20-Sep-13,STATIONERY SUNDRIES,Medicine,NHS LOGISTICS,1014087475,0.83,
Department of Health,Salisbury NHS Foundation Trust,20-Sep-13,BAGS SACKS - OTHER,Surgery,NHS LOGISTICS,1014087475,23.1,
Department of Health,Salisbury NHS Foundation Trust,20-Sep-13,M & S EQUIPELECTEQUIPINST - OTHER,Surgery,NHS LOGISTICS,1014087475,36,
Department of Health,Salisbury NHS Foundation Trust,20-Sep-13,TISSUES HAND TOWELS & TOILET PAPER,Surgery,NHS LOGISTICS,1014087475,5.65,
Department of Health,Salisbury NHS Foundation Trust,20-Sep-13,COOKING & KITCHEN UTENSILS,Surgery,NHS LOGISTICS,1014087475,16.45,
Department of Health,Salisbury NHS Foundation Trust,20-Sep-13,BEVERAGES & AMBIENT FOOD,Surgery,NHS LOGISTICS,1014087475,6.08,
Department of Health,Salisbury NHS Foundation Trust,20-Sep-13,M & S EQUIPELECTEQUIPINST - OTHER,Surgery,NHS LOGISTICS,1014087475,38.5,
Department of Health,Salisbury NHS Foundation Trust,20-Sep-13,NON DISPOSABLE THEATRE DRAPES WIPES,Surgery,NHS LOGISTICS,1014087475,41.75,
Department of Health,Salisbury NHS Foundation Trust,20-Sep-13,DRUGS,Surgery,NHS LOGISTICS,1014087475,90.6,
Department of Health,Salisbury NHS Foundation Trust,20-Sep-13,MEDSURGCONS - OTHER,Surgery,NHS LOGISTICS,1014087475,62.98,
Department of Health,Salisbury NHS Foundation Trust,20-Sep-13,BEVERAGES & AMBIENT FOOD,Surgery,NHS LOGISTICS,1014087475,4.04,
Department of Health,Salisbury NHS Foundation Trust,20-Sep-13,DRUGS,Surgery,NHS LOGISTICS,1014087475,11.58,
Department of Health,Salisbury NHS Foundation Trust,20-Sep-13,DRUGS,Surgery,NHS LOGISTICS,1014087475,45.3,
Department of Health,Salisbury NHS Foundation Trust,20-Sep-13,DRESSINGS - PRE STERILE,Surgery,NHS LOGISTICS,1014087475,8.2,
Department of Health,Salisbury NHS Foundation Trust,20-Sep-13,CLEANING MATERIALS PRODUCTS SUNDRIES,Surgery,NHS LOGISTICS,1014087475,3.38,
Department of Health,Salisbury NHS Foundation Trust,20-Sep-13,DISPOSABLE THEATRE DRAPES WIPES,Surgery,NHS LOGISTICS,1014087475,9.47,
Department of Health,Salisbury NHS Foundation Trust,20-Sep-13,DRESSINGS - PRE STERILE,Surgery,NHS LOGISTICS,1014087475,28.87,
Department of Health,Salisbury NHS Foundation Trust,20-Sep-13,PATIENTS INCONTINENCE,Medicine,NHS LOGISTICS,1014087475,7.6,
Department of Health,Salisbury NHS Foundation Trust,20-Sep-13,TISSUES HAND TOWELS & TOILET PAPER,Medicine,NHS LOGISTICS,1014087475,1.88,
Department of Health,Salisbury NHS Foundation Trust,20-Sep-13,TISSUES HAND TOWELS & TOILET PAPER,Medicine,NHS LOGISTICS,1014087475,2.75,
Department of Health,Salisbury NHS Foundation Trust,20-Sep-13,TOILETRIES PERSONAL HYGIENE PRODUCTS,Medicine,NHS LOGISTICS,1014087475,10.6,
Department of Health,Salisbury NHS Foundation Trust,20-Sep-13,PATIENTS INCONTINENCE,Medicine,NHS LOGISTICS,1014087475,5.05,
Department of Health,Salisbury NHS Foundation Trust,20-Sep-13,MEDSURGCONS - OTHER,Medicine,NHS LOGISTICS,1014087475,5.21,
Department of Health,Salisbury NHS Foundation Trust,20-Sep-13,DISPOSABLE THEATRE DRAPES WIPES,Medicine,NHS LOGISTICS,1014087475,12.53,
Department of Health,Salisbury NHS Foundation Trust,20-Sep-13,OTHER MEDICAL SUPPLIES,Surgery,NHS LOGISTICS,1014087475,39.17,
Department of Health,Salisbury NHS Foundation Trust,20-Sep-13,TUBES,Surgery,NHS LOGISTICS,1014087475,27.5,
Department of Health,Salisbury NHS Foundation Trust,20-Sep-13,OTHER MEDICAL SUPPLIES,Surgery,NHS LOGISTICS,1014087475,11.63,
Department of Health,Salisbury NHS Foundation Trust,20-Sep-13,MEDSURGCONS - OTHER,Surgery,NHS LOGISTICS,1014087475,17.09,
Department of Health,Salisbury NHS Foundation Trust,20-Sep-13,OTHER MEDICAL SUPPLIES,Medicine,NHS LOGISTICS,1014087475,19.37,
Department of Health,Salisbury NHS Foundation Trust,20-Sep-13,NON DISPOSABLE BED LINEN,Medicine,NHS LOGISTICS,1014087475,11.18,
Department of Health,Salisbury NHS Foundation Trust,20-Sep-13,PATIENT APPLIANCES,Medicine,NHS LOGISTICS,1014087475,5.32,
Department of Health,Salisbury NHS Foundation Trust,20-Sep-13,PATIENT APPLIANCES,Medicine,NHS LOGISTICS,1014087475,1.92,
Department of Health,Salisbury NHS Foundation Trust,20-Sep-13,M & S EQUIPELECTEQUIPINST - OTHER,Medicine,NHS LOGISTICS,1014087475,3.52,
Department of Health,Salisbury NHS Foundation Trust,20-Sep-13,BAGS SACKS - OTHER,Surgery,NHS LOGISTICS,1014087475,6.9,
Department of Health,Salisbury NHS Foundation Trust,20-Sep-13,CLEANING MATERIALS PRODUCTS SUNDRIES,Surgery,NHS LOGISTICS,1014087475,33.4,
Department of Health,Salisbury NHS Foundation Trust,20-Sep-13,BEVERAGES & AMBIENT FOOD,Surgery,NHS LOGISTICS,1014087475,14.73,
Department of Health,Salisbury NHS Foundation Trust,20-Sep-13,MEDSURGCONS - OTHER,Surgery,NHS LOGISTICS,1014087475,31.3,
Department of Health,Salisbury NHS Foundation Trust,20-Sep-13,MEDSURGCONS - OTHER,Surgery,NHS LOGISTICS,1014087475,20.87,
Department of Health,Salisbury NHS Foundation Trust,20-Sep-13,OTHER MEDICAL SUPPLIES,Surgery,NHS LOGISTICS,1014087475,246.16,
Department of Health,Salisbury NHS Foundation Trust,20-Sep-13,PATIENT APPLIANCES,Surgery,NHS LOGISTICS,1014087475,21.27,
Department of Health,Salisbury NHS Foundation Trust,20-Sep-13,DRUGS,Surgery,NHS LOGISTICS,1014087475,24.26,
Department of Health,Salisbury NHS Foundation Trust,20-Sep-13,DRESSINGS - PRE STERILE,Surgery,NHS LOGISTICS,1014087475,65.52,
Department of Health,Salisbury NHS Foundation Trust,20-Sep-13,MEDSURGCONS - OTHER,Surgery,NHS LOGISTICS,1014087475,27.5,
Department of Health,Salisbury NHS Foundation Trust,20-Sep-13,OTHER MEDICAL SUPPLIES,Surgery,NHS LOGISTICS,1014087475,11.67,
Department of Health,Salisbury NHS Foundation Trust,20-Sep-13,OTHER MEDICAL SUPPLIES,Surgery,NHS LOGISTICS,1014087475,22.33,
Department of Health,Salisbury NHS Foundation Trust,20-Sep-13,OTHER MEDICAL SUPPLIES,Surgery,NHS LOGISTICS,1014087475,11.67,
Department of Health,Salisbury NHS Foundation Trust,20-Sep-13,OTHER MEDICAL SUPPLIES,Surgery,NHS LOGISTICS,1014087475,5.83,
Department of Health,Salisbury NHS Foundation Trust,20-Sep-13,OTHER MEDICAL SUPPLIES,Surgery,NHS LOGISTICS,1014087475,11.67,
Department of Health,Salisbury NHS Foundation Trust,20-Sep-13,OTHER MEDICAL SUPPLIES,Medicine,NHS LOGISTICS,1014087475,8.83,
Department of Health,Salisbury NHS Foundation Trust,20-Sep-13,DRESSINGS - PRE STERILE,Medicine,NHS LOGISTICS,1014087475,6.64,
Department of Health,Salisbury NHS Foundation Trust,20-Sep-13,TISSUES HAND TOWELS & TOILET PAPER,Medicine,NHS LOGISTICS,1014087475,1.88,
Department of Health,Salisbury NHS Foundation Trust,20-Sep-13,PATIENTS INCONTINENCE,Medicine,NHS LOGISTICS,1014087475,3.42,
Department of Health,Salisbury NHS Foundation Trust,20-Sep-13,MED SURG EQUIP REP MAINT CLEANING,Medicine,NHS LOGISTICS,1014087475,34.5,
Department of Health,Salisbury NHS Foundation Trust,20-Sep-13,PATIENTS INCONTINENCE,Medicine,NHS LOGISTICS,1014087475,60.6,
Department of Health,Salisbury NHS Foundation Trust,20-Sep-13,PATIENT APPLIANCES,Medicine,NHS LOGISTICS,1014087475,3.22,
Department of Health,Salisbury NHS Foundation Trust,20-Sep-13,PATIENT APPLIANCES,Medicine,NHS LOGISTICS,1014087475,3.22,
Department of Health,Salisbury NHS Foundation Trust,20-Sep-13,PATIENT APPLIANCES,Medicine,NHS LOGISTICS,1014087475,3.92,
Department of Health,Salisbury NHS Foundation Trust,20-Sep-13,PATIENT APPLIANCES,Medicine,NHS LOGISTICS,1014087475,3.92,
Department of Health,Salisbury NHS Foundation Trust,20-Sep-13,TISSUES HAND TOWELS & TOILET PAPER,Medicine,NHS LOGISTICS,1014087475,0.36,
Department of Health,Salisbury NHS Foundation Trust,20-Sep-13,OTHER MEDICAL SUPPLIES,Medicine,NHS LOGISTICS,1014087475,22.08,
Department of Health,Salisbury NHS Foundation Trust,20-Sep-13,OTHER MEDICAL SUPPLIES,Medicine,NHS LOGISTICS,1014087475,39.17,
Department of Health,Salisbury NHS Foundation Trust,20-Sep-13,PATIENTS INCONTINENCE,Medicine,NHS LOGISTICS,1014087475,27.35,
Department of Health,Salisbury NHS Foundation Trust,20-Sep-13,PATIENTS INCONTINENCE,Medicine,NHS LOGISTICS,1014087475,8.79,
Department of Health,Salisbury NHS Foundation Trust,20-Sep-13,MED SURG EQUIP REP MAINT CLEANING,Medicine,NHS LOGISTICS,1014087475,34.5,
Department of Health,Salisbury NHS Foundation Trust,20-Sep-13,PATIENTS INCONTINENCE,Medicine,NHS LOGISTICS,1014087475,9.08,
Department of Health,Salisbury NHS Foundation Trust,20-Sep-13,DRESSINGS - PRE STERILE,Medicine,NHS LOGISTICS,1014087475,1.28,
Department of Health,Salisbury NHS Foundation Trust,20-Sep-13,OTHER MEDICAL SUPPLIES,Medicine,NHS LOGISTICS,1014087475,8.83,
Department of Health,Salisbury NHS Foundation Trust,20-Sep-13,TOILETRIES PERSONAL HYGIENE PRODUCTS,Medicine,NHS LOGISTICS,1014087475,34.28,
Department of Health,Salisbury NHS Foundation Trust,20-Sep-13,TISSUES HAND TOWELS & TOILET PAPER,Medicine,NHS LOGISTICS,1014087475,1.88,
Department of Health,Salisbury NHS Foundation Trust,20-Sep-13,MED SURG EQUIP REP MAINT CLEANING,Medicine,NHS LOGISTICS,1014087475,34.5,
Department of Health,Salisbury NHS Foundation Trust,20-Sep-13,PATIENTS INCONTINENCE,Medicine,NHS LOGISTICS,1014087475,40.4,
Department of Health,Salisbury NHS Foundation Trust,20-Sep-13,MEDSURGCONS - OTHER,Medicine,NHS LOGISTICS,1014087475,2.44,
Department of Health,Salisbury NHS Foundation Trust,20-Sep-13,TOILETRIES PERSONAL HYGIENE PRODUCTS,Medicine,NHS LOGISTICS,1014087475,4.73,
Department of Health,Salisbury NHS Foundation Trust,20-Sep-13,DRESSINGS - PRE STERILE,Medicine,NHS LOGISTICS,1014087475,0.85,
Department of Health,Salisbury NHS Foundation Trust,20-Sep-13,DRESSINGS - PRE STERILE,Medicine,NHS LOGISTICS,1014087475,5.73,
Department of Health,Salisbury NHS Foundation Trust,20-Sep-13,OTHER MEDICAL SUPPLIES,Medicine,NHS LOGISTICS,1014087475,22.08,
Department of Health,Salisbury NHS Foundation Trust,20-Sep-13,OTHER MEDICAL SUPPLIES,Medicine,NHS LOGISTICS,1014087475,39.17,
Department of Health,Salisbury NHS Foundation Trust,20-Sep-13,DRESSINGS - PRE STERILE,Medicine,NHS LOGISTICS,1014087475,1.08,
Department of Health,Salisbury NHS Foundation Trust,20-Sep-13,DRESSINGS  -  PROCEDURE PACKS,Medicine,NHS LOGISTICS,1014087475,0.92,
Department of Health,Salisbury NHS Foundation Trust,20-Sep-13,MED SURG EQUIP REP MAINT CLEANING,Medicine,NHS LOGISTICS,1014087475,17.25,
Department of Health,Salisbury NHS Foundation Trust,20-Sep-13,TUBES,Medicine,NHS LOGISTICS,1014087475,6.16,
Department of Health,Salisbury NHS Foundation Trust,20-Sep-13,PATIENTS INCONTINENCE,Medicine,NHS LOGISTICS,1014087475,40.4,
Department of Health,Salisbury NHS Foundation Trust,20-Sep-13,DRESSINGS - PRE STERILE,Medicine,NHS LOGISTICS,1014087475,0.43,
Department of Health,Salisbury NHS Foundation Trust,20-Sep-13,TISSUES HAND TOWELS & TOILET PAPER,Medicine,NHS LOGISTICS,1014087475,0.72,
Department of Health,Salisbury NHS Foundation Trust,20-Sep-13,OTHER MEDICAL SUPPLIES,Surgery,NHS LOGISTICS,1014087475,39.17,
Department of Health,Salisbury NHS Foundation Trust,20-Sep-13,DRESSINGS - PRE STERILE,Surgery,NHS LOGISTICS,1014087475,6.64,
Department of Health,Salisbury NHS Foundation Trust,20-Sep-13,DRESSINGS - PRE STERILE,Surgery,NHS LOGISTICS,1014087475,5.51,
Department of Health,Salisbury NHS Foundation Trust,20-Sep-13,M & S EQUIPELECTEQUIPINST - OTHER,Surgery,NHS LOGISTICS,1014087475,31.82,
Department of Health,Salisbury NHS Foundation Trust,20-Sep-13,MEDSURGCONS - OTHER,Surgery,NHS LOGISTICS,1014087475,20.63,
Department of Health,Salisbury NHS Foundation Trust,20-Sep-13,DRESSINGS - PRE STERILE,Surgery,NHS LOGISTICS,1014087475,0.9,
Department of Health,Salisbury NHS Foundation Trust,20-Sep-13,PATIENTS INCONTINENCE,Surgery,NHS LOGISTICS,1014087475,4.54,
Department of Health,Salisbury NHS Foundation Trust,20-Sep-13,MEDSURGCONS - OTHER,Surgery,NHS LOGISTICS,1014087475,10.42,
Department of Health,Salisbury NHS Foundation Trust,20-Sep-13,TISSUES HAND TOWELS & TOILET PAPER,Surgery,NHS LOGISTICS,1014087475,0.72,
Department of Health,Salisbury NHS Foundation Trust,20-Sep-13,MED SURG EQUIP REP MAINT CLEANING,Surgery,NHS LOGISTICS,1014087475,11.1,
Department of Health,Salisbury NHS Foundation Trust,20-Sep-13,M & S EQUIPELECTEQUIPINST - OTHER,Clinical Support and Family Services,NHS LOGISTICS,1014087475,119.83,
Department of Health,Salisbury NHS Foundation Trust,20-Sep-13,OTHER MEDICAL SUPPLIES,Medicine,NHS LOGISTICS,1014087475,8.83,
Department of Health,Salisbury NHS Foundation Trust,20-Sep-13,MEDSURGCONS - OTHER,Medicine,NHS LOGISTICS,1014087475,7.58,
Department of Health,Salisbury NHS Foundation Trust,20-Sep-13,TISSUES HAND TOWELS & TOILET PAPER,Medicine,NHS LOGISTICS,1014087475,3.77,
Department of Health,Salisbury NHS Foundation Trust,20-Sep-13,TISSUES HAND TOWELS & TOILET PAPER,Medicine,NHS LOGISTICS,1014087475,1.83,
Department of Health,Salisbury NHS Foundation Trust,20-Sep-13,MEDSURGCONS - OTHER,Medicine,NHS LOGISTICS,1014087475,18.63,
Department of Health,Salisbury NHS Foundation Trust,20-Sep-13,MEDSURGCONS - OTHER,Medicine,NHS LOGISTICS,1014087475,23.29,
Department of Health,Salisbury NHS Foundation Trust,20-Sep-13,MEDSURGCONS - OTHER,Medicine,NHS LOGISTICS,1014087475,35,
Department of Health,Salisbury NHS Foundation Trust,20-Sep-13,PATIENTS INCONTINENCE,Medicine,NHS LOGISTICS,1014087475,5.77,
Department of Health,Salisbury NHS Foundation Trust,20-Sep-13,DRESSINGS - PRE STERILE,Medicine,NHS LOGISTICS,1014087475,4.03,
Department of Health,Salisbury NHS Foundation Trust,20-Sep-13,TISSUES HAND TOWELS & TOILET PAPER,Medicine,NHS LOGISTICS,1014087475,0.72,
Department of Health,Salisbury NHS Foundation Trust,20-Sep-13,OTHER MEDICAL SUPPLIES,Medicine,NHS LOGISTICS,1014087475,78.33,
Department of Health,Salisbury NHS Foundation Trust,20-Sep-13,PATIENTS INCONTINENCE,Medicine,NHS LOGISTICS,1014087475,9.08,
Department of Health,Salisbury NHS Foundation Trust,20-Sep-13,DRESSINGS - PRE STERILE,Medicine,NHS LOGISTICS,1014087475,2.15,
Department of Health,Salisbury NHS Foundation Trust,20-Sep-13,DRESSINGS - PRE STERILE,Medicine,NHS LOGISTICS,1014087475,6.64,
Department of Health,Salisbury NHS Foundation Trust,20-Sep-13,M & S EQUIPELECTEQUIPINST - OTHER,Medicine,NHS LOGISTICS,1014087475,4.5,
Department of Health,Salisbury NHS Foundation Trust,20-Sep-13,CLEANING MATERIALS PRODUCTS SUNDRIES,Medicine,NHS LOGISTICS,1014087475,6.93,
Department of Health,Salisbury NHS Foundation Trust,20-Sep-13,PATIENTS INCONTINENCE,Medicine,NHS LOGISTICS,1014087475,9.08,
Department of Health,Salisbury NHS Foundation Trust,20-Sep-13,PATIENT APPLIANCES,Medicine,NHS LOGISTICS,1014087475,4.91,
Department of Health,Salisbury NHS Foundation Trust,20-Sep-13,OTHER MEDICAL SUPPLIES,Medicine,NHS LOGISTICS,1014087475,16.53,
Department of Health,Salisbury NHS Foundation Trust,20-Sep-13,PATIENTS INCONTINENCE,Medicine,NHS LOGISTICS,1014087475,7.27,
Department of Health,Salisbury NHS Foundation Trust,20-Sep-13,PATIENTS INCONTINENCE,Medicine,NHS LOGISTICS,1014087475,12.88,
Department of Health,Salisbury NHS Foundation Trust,20-Sep-13,NON DISPOSABLE BED LINEN,Medicine,NHS LOGISTICS,1014087475,21.77,
Department of Health,Salisbury NHS Foundation Trust,20-Sep-13,PATIENT APPLIANCES,Medicine,NHS LOGISTICS,1014087475,7.92,
Department of Health,Salisbury NHS Foundation Trust,20-Sep-13,PATIENT APPLIANCES,Medicine,NHS LOGISTICS,1014087475,7.92,
Department of Health,Salisbury NHS Foundation Trust,20-Sep-13,PATIENTS INCONTINENCE,Medicine,NHS LOGISTICS,1014087475,10.9,
Department of Health,Salisbury NHS Foundation Trust,20-Sep-13,PATIENTS INCONTINENCE,Medicine,NHS LOGISTICS,1014087475,8.58,
Department of Health,Salisbury NHS Foundation Trust,20-Sep-13,NON DISPOSABLE BED LINEN,Medicine,NHS LOGISTICS,1014087475,21.77,
Department of Health,Salisbury NHS Foundation Trust,20-Sep-13,OTHER MEDICAL SUPPLIES,Medicine,NHS LOGISTICS,1014087475,16.53,
Department of Health,Salisbury NHS Foundation Trust,20-Sep-13,MEDSURGCONS - OTHER,Medicine,NHS LOGISTICS,1014087475,17.91,
Department of Health,Salisbury NHS Foundation Trust,20-Sep-13,NON DISPOSABLE BED LINEN,Medicine,NHS LOGISTICS,1014087475,11.18,
Department of Health,Salisbury NHS Foundation Trust,20-Sep-13,OTHER MEDICAL SUPPLIES,Medicine,NHS LOGISTICS,1014087475,16.53,
Department of Health,Salisbury NHS Foundation Trust,20-Sep-13,PATIENTS INCONTINENCE,Medicine,NHS LOGISTICS,1014087475,3.63,
Department of Health,Salisbury NHS Foundation Trust,20-Sep-13,NON DISPOSABLE BED LINEN,Medicine,NHS LOGISTICS,1014087475,21.77,
Department of Health,Salisbury NHS Foundation Trust,20-Sep-13,PATIENT APPLIANCES,Medicine,NHS LOGISTICS,1014087475,1.92,
Department of Health,Salisbury NHS Foundation Trust,20-Sep-13,OTHER MEDICAL SUPPLIES,Surgery,NHS LOGISTICS,1014087475,5.68,
Department of Health,Salisbury NHS Foundation Trust,20-Sep-13,NON DISPOSABLE BED LINEN,Surgery,NHS LOGISTICS,1014087475,11.18,
Department of Health,Salisbury NHS Foundation Trust,20-Sep-13,PATIENT APPLIANCES,Surgery,NHS LOGISTICS,1014087475,5.32,
Department of Health,Salisbury NHS Foundation Trust,20-Sep-13,OTHER MEDICAL SUPPLIES,Medicine,NHS LOGISTICS,1014087475,5.97,
Department of Health,Salisbury NHS Foundation Trust,20-Sep-13,PATIENT APPLIANCES,Medicine,NHS LOGISTICS,1014087475,5.32,
Department of Health,Salisbury NHS Foundation Trust,20-Sep-13,OTHER MEDICAL SUPPLIES,Medicine,NHS LOGISTICS,1014087475,25.88,
Department of Health,Salisbury NHS Foundation Trust,20-Sep-13,PATIENTS INCONTINENCE,Medicine,NHS LOGISTICS,1014087475,3.63,
Department of Health,Salisbury NHS Foundation Trust,20-Sep-13,PATIENTS INCONTINENCE,Medicine,NHS LOGISTICS,1014087475,4.29,
Department of Health,Salisbury NHS Foundation Trust,20-Sep-13,OTHER MEDICAL SUPPLIES,Medicine,NHS LOGISTICS,1014087475,5.68,
Department of Health,Salisbury NHS Foundation Trust,20-Sep-13,MEDSURGCONS - OTHER,Medicine,NHS LOGISTICS,1014087475,59.69,
Department of Health,Salisbury NHS Foundation Trust,20-Sep-13,SURGICAL INSTRUMENTS: GENERAL,Medicine,NHS LOGISTICS,1014087475,9.37,
Department of Health,Salisbury NHS Foundation Trust,20-Sep-13,NON DISPOSABLE BED LINEN,Medicine,NHS LOGISTICS,1014087475,16.77,
Department of Health,Salisbury NHS Foundation Trust,20-Sep-13,MEDSURGCONS - OTHER,Surgery,NHS LOGISTICS,1014087475,92.5,
Department of Health,Salisbury NHS Foundation Trust,20-Sep-13,MEDSURGCONS - OTHER,Surgery,NHS LOGISTICS,1014087475,30.83,
Department of Health,Salisbury NHS Foundation Trust,20-Sep-13,MEDSURGCONS - OTHER,Surgery,NHS LOGISTICS,1014087475,30.83,
Department of Health,Salisbury NHS Foundation Trust,20-Sep-13,TISSUES HAND TOWELS & TOILET PAPER,Surgery,NHS LOGISTICS,1014087475,3.77,
Department of Health,Salisbury NHS Foundation Trust,20-Sep-13,TISSUES HAND TOWELS & TOILET PAPER,Surgery,NHS LOGISTICS,1014087475,1.83,
Department of Health,Salisbury NHS Foundation Trust,20-Sep-13,STATIONERY SUNDRIES,Critical care,NHS LOGISTICS,1014087475,3.2,
Department of Health,Salisbury NHS Foundation Trust,20-Sep-13,M & S EQUIPELECTEQUIPINST - OTHER,Critical care,NHS LOGISTICS,1014087475,13.19,
Department of Health,Salisbury NHS Foundation Trust,20-Sep-13,TISSUES HAND TOWELS & TOILET PAPER,Critical care,NHS LOGISTICS,1014087475,3.77,
Department of Health,Salisbury NHS Foundation Trust,20-Sep-13,DRESSINGS - PRE STERILE,Critical care,NHS LOGISTICS,1014087475,6.38,
Department of Health,Salisbury NHS Foundation Trust,20-Sep-13,MEDSURGCONS - OTHER,Critical care,NHS LOGISTICS,1014087475,21.48,
Department of Health,Salisbury NHS Foundation Trust,20-Sep-13,M & S EQUIPELECTEQUIPINST - OTHER,Critical care,NHS LOGISTICS,1014087475,40.7,
Department of Health,Salisbury NHS Foundation Trust,20-Sep-13,OTHER MEDICAL SUPPLIES,Critical care,NHS LOGISTICS,1014087475,3.26,
Department of Health,Salisbury NHS Foundation Trust,20-Sep-13,PATIENTS INCONTINENCE,Critical care,NHS LOGISTICS,1014087475,9.08,
Department of Health,Salisbury NHS Foundation Trust,20-Sep-13,PATIENT APPLIANCES,Critical care,NHS LOGISTICS,1014087475,3.92,
Department of Health,Salisbury NHS Foundation Trust,20-Sep-13,TOILETRIES PERSONAL HYGIENE PRODUCTS,Critical care,NHS LOGISTICS,1014087475,3.22,
Department of Health,Salisbury NHS Foundation Trust,20-Sep-13,TOILETRIES PERSONAL HYGIENE PRODUCTS,Critical care,NHS LOGISTICS,1014087475,4.73,
Department of Health,Salisbury NHS Foundation Trust,20-Sep-13,COOKING & KITCHEN UTENSILS,Surgery,NHS LOGISTICS,1014087475,74.23,
Department of Health,Salisbury NHS Foundation Trust,20-Sep-13,COOKING & KITCHEN UTENSILS,Surgery,NHS LOGISTICS,1014087475,74.23,
Department of Health,Salisbury NHS Foundation Trust,20-Sep-13,BAGS SACKS - OTHER,Critical care,NHS LOGISTICS,1014087475,4.01,
Department of Health,Salisbury NHS Foundation Trust,20-Sep-13,OTHER MEDICAL SUPPLIES,Critical care,NHS LOGISTICS,1014087475,16.53,
Department of Health,Salisbury NHS Foundation Trust,20-Sep-13,NON DISPOSABLE BED LINEN,Critical care,NHS LOGISTICS,1014087475,12.67,
Department of Health,Salisbury NHS Foundation Trust,20-Sep-13,OTHER MEDICAL SUPPLIES,Critical care,NHS LOGISTICS,1014087475,5.68,
Department of Health,Salisbury NHS Foundation Trust,20-Sep-13,MEDSURGCONS - OTHER,Critical care,NHS LOGISTICS,1014087475,17.91,
Department of Health,Salisbury NHS Foundation Trust,20-Sep-13,MEDSURGCONS - OTHER,Critical care,NHS LOGISTICS,1014087475,15.17,
Department of Health,Salisbury NHS Foundation Trust,20-Sep-13,NON DISPOSABLE BED LINEN,Critical care,NHS LOGISTICS,1014087475,5.59,
Department of Health,Salisbury NHS Foundation Trust,20-Sep-13,NON DISPOSABLE BED LINEN,Critical care,NHS LOGISTICS,1014087475,21.77,
Department of Health,Salisbury NHS Foundation Trust,20-Sep-13,PATIENT APPLIANCES,Critical care,NHS LOGISTICS,1014087475,7.92,
Department of Health,Salisbury NHS Foundation Trust,20-Sep-13,PATIENT APPLIANCES,Critical care,NHS LOGISTICS,1014087475,5.32,
Department of Health,Salisbury NHS Foundation Trust,20-Sep-13,OTHER MEDICAL SUPPLIES,Clinical Support and Family Services,NHS LOGISTICS,1014087475,4.42,
Department of Health,Salisbury NHS Foundation Trust,20-Sep-13,M & S EQUIPELECTEQUIPINST - OTHER,Clinical Support and Family Services,NHS LOGISTICS,1014087475,9,
Department of Health,Salisbury NHS Foundation Trust,20-Sep-13,PATIENTS BEDWEAR UNISEX,Clinical Support and Family Services,NHS LOGISTICS,1014087475,4.14,
Department of Health,Salisbury NHS Foundation Trust,20-Sep-13,TISSUES HAND TOWELS & TOILET PAPER,Clinical Support and Family Services,NHS LOGISTICS,1014087475,1.88,
Department of Health,Salisbury NHS Foundation Trust,20-Sep-13,DRESSINGS - PRE STERILE,Clinical Support and Family Services,NHS LOGISTICS,1014087475,5.89,
Department of Health,Salisbury NHS Foundation Trust,20-Sep-13,DRESSINGS  -  PROCEDURE PACKS,Surgery,NHS LOGISTICS,1014087475,12.08,
Department of Health,Salisbury NHS Foundation Trust,20-Sep-13,TISSUES HAND TOWELS & TOILET PAPER,Surgery,NHS LOGISTICS,1014087475,5.65,
Department of Health,Salisbury NHS Foundation Trust,20-Sep-13,DRESSINGS - PRE STERILE,Surgery,NHS LOGISTICS,1014087475,50.43,
Department of Health,Salisbury NHS Foundation Trust,20-Sep-13,CLEANING MATERIALS PRODUCTS SUNDRIES,Surgery,NHS LOGISTICS,1014087475,8.86,
Department of Health,Salisbury NHS Foundation Trust,20-Sep-13,PAPER ITEMS GENERAL STATIONERY SUNDRIES,Surgery,NHS LOGISTICS,1014087475,30.42,
Department of Health,Salisbury NHS Foundation Trust,20-Sep-13,STATIONERY SUNDRIES,Surgery,NHS LOGISTICS,1014087475,0.98,
Department of Health,Salisbury NHS Foundation Trust,20-Sep-13,TOILETRIES PERSONAL HYGIENE PRODUCTS,Surgery,NHS LOGISTICS,1014087475,7.48,
Department of Health,Salisbury NHS Foundation Trust,20-Sep-13,TOILETRIES PERSONAL HYGIENE PRODUCTS,Surgery,NHS LOGISTICS,1014087475,3.17,
Department of Health,Salisbury NHS Foundation Trust,20-Sep-13,DRUGS,Surgery,NHS LOGISTICS,1014087475,46.08,
Department of Health,Salisbury NHS Foundation Trust,20-Sep-13,SURGICAL INSTRUMENTS: GENERAL,Surgery,NHS LOGISTICS,1014087475,15.83,
Department of Health,Salisbury NHS Foundation Trust,20-Sep-13,MEDSURGCONS - OTHER,Surgery,NHS LOGISTICS,1014087475,7.48,
Department of Health,Salisbury NHS Foundation Trust,20-Sep-13,MEDSURGCONS - OTHER,Surgery,NHS LOGISTICS,1014087475,28.07,
Department of Health,Salisbury NHS Foundation Trust,20-Sep-13,TISSUES HAND TOWELS & TOILET PAPER,Surgery,NHS LOGISTICS,1014087475,124,
Department of Health,Salisbury NHS Foundation Trust,20-Sep-13,OTHER MEDICAL SUPPLIES,Surgery,NHS LOGISTICS,1014087475,276.22,
Department of Health,Salisbury NHS Foundation Trust,20-Sep-13,DISPOSABLE THEATRE DRAPES WIPES,Surgery,NHS LOGISTICS,1014087475,16.75,
Department of Health,Salisbury NHS Foundation Trust,20-Sep-13,M & S EQUIPELECTEQUIPINST - OTHER,Surgery,NHS LOGISTICS,1014087475,3.52,
Department of Health,Salisbury NHS Foundation Trust,20-Sep-13,DRESSINGS - PRE STERILE,Surgery,NHS LOGISTICS,1014087475,14.43,
Department of Health,Salisbury NHS Foundation Trust,20-Sep-13,MEDSURGCONS-SUTURES,Clinical Support and Family Services,NHS LOGISTICS,1014087475,37.55,
Department of Health,Salisbury NHS Foundation Trust,20-Sep-13,NON DISPOSABLE BED LINEN,Surgery,NHS LOGISTICS,1014087475,49.83,
Department of Health,Salisbury NHS Foundation Trust,20-Sep-13,PAPER ITEMS GENERAL STATIONERY SUNDRIES,Medicine,NHS LOGISTICS,1014087475,7.83,
Department of Health,Salisbury NHS Foundation Trust,20-Sep-13,PAPER ITEMS GENERAL STATIONERY SUNDRIES,Medicine,NHS LOGISTICS,1014087475,12.42,
Department of Health,Salisbury NHS Foundation Trust,20-Sep-13,OTHER MEDICAL SUPPLIES,Critical care,NHS LOGISTICS,1014087475,4.42,
Department of Health,Salisbury NHS Foundation Trust,20-Sep-13,OTHER MEDICAL SUPPLIES,Critical care,NHS LOGISTICS,1014087475,17.67,
Department of Health,Salisbury NHS Foundation Trust,20-Sep-13,TISSUES HAND TOWELS & TOILET PAPER,Clinical Support and Family Services,NHS LOGISTICS,1014087475,2.75,
Department of Health,Salisbury NHS Foundation Trust,20-Sep-13,DRESSINGS - PRE STERILE,Clinical Support and Family Services,NHS LOGISTICS,1014087475,0.9,
Department of Health,Salisbury NHS Foundation Trust,20-Sep-13,NON DISPOSABLE BED LINEN,Clinical Support and Family Services,NHS LOGISTICS,1014087475,5.59,
Department of Health,Salisbury NHS Foundation Trust,20-Sep-13,PATIENTS INCONTINENCE,Clinical Support and Family Services,NHS LOGISTICS,1014087475,8.79,
Department of Health,Salisbury NHS Foundation Trust,20-Sep-13,TISSUES HAND TOWELS & TOILET PAPER,Clinical Support and Family Services,NHS LOGISTICS,1014087475,1.88,
Department of Health,Salisbury NHS Foundation Trust,20-Sep-13,MED SURG EQUIP REP MAINT CLEANING,Clinical Support and Family Services,NHS LOGISTICS,1014087475,34.5,
Department of Health,Salisbury NHS Foundation Trust,20-Sep-13,TUBES,Clinical Support and Family Services,NHS LOGISTICS,1014087475,6.16,
Department of Health,Salisbury NHS Foundation Trust,20-Sep-13,MEDSURGCONS - OTHER,Clinical Support and Family Services,NHS LOGISTICS,1014087475,4.97,
Department of Health,Salisbury NHS Foundation Trust,20-Sep-13,DRESSINGS - PRE STERILE,Clinical Support and Family Services,NHS LOGISTICS,1014087475,1.59,
Department of Health,Salisbury NHS Foundation Trust,20-Sep-13,PATIENT APPLIANCES,Clinical Support and Family Services,NHS LOGISTICS,1014087475,28.18,
Department of Health,Salisbury NHS Foundation Trust,20-Sep-13,OTHER MEDICAL SUPPLIES,Medicine,NHS LOGISTICS,1014087475,8.83,
Department of Health,Salisbury NHS Foundation Trust,20-Sep-13,MEDSURGCONS - OTHER,Medicine,NHS LOGISTICS,1014087475,41.25,
Department of Health,Salisbury NHS Foundation Trust,20-Sep-13,PATIENTS INCONTINENCE,Medicine,NHS LOGISTICS,1014087475,4.54,
Department of Health,Salisbury NHS Foundation Trust,20-Sep-13,PATIENT APPLIANCES,Medicine,NHS LOGISTICS,1014087475,3.22,
Department of Health,Salisbury NHS Foundation Trust,20-Sep-13,TOILETRIES PERSONAL HYGIENE PRODUCTS,Medicine,NHS LOGISTICS,1014087475,9.54,
Department of Health,Salisbury NHS Foundation Trust,20-Sep-13,MEDSURGCONS - OTHER,Medicine,NHS LOGISTICS,1014087475,5.21,
Department of Health,Salisbury NHS Foundation Trust,20-Sep-13,TISSUES HAND TOWELS & TOILET PAPER,Medicine,NHS LOGISTICS,1014087475,1.08,
Department of Health,Salisbury NHS Foundation Trust,20-Sep-13,OTHER MEDICAL SUPPLIES,Critical care,NHS LOGISTICS,1014087475,13.25,
Department of Health,Salisbury NHS Foundation Trust,20-Sep-13,PATIENTS INCONTINENCE,Critical care,NHS LOGISTICS,1014087475,8.79,
Department of Health,Salisbury NHS Foundation Trust,20-Sep-13,DRESSINGS - PRE STERILE,Critical care,NHS LOGISTICS,1014087475,33.21,
Department of Health,Salisbury NHS Foundation Trust,20-Sep-13,DRESSINGS - PRE STERILE,Critical care,NHS LOGISTICS,1014087475,48.5,
Department of Health,Salisbury NHS Foundation Trust,20-Sep-13,MEDSURGCONS - OTHER,Critical care,NHS LOGISTICS,1014087475,11.55,
Department of Health,Salisbury NHS Foundation Trust,20-Sep-13,DRUGS,Critical care,NHS LOGISTICS,1014087475,7.72,
Department of Health,Salisbury NHS Foundation Trust,20-Sep-13,DRESSINGS - PRE STERILE,Critical care,NHS LOGISTICS,1014087475,6.03,
Department of Health,Salisbury NHS Foundation Trust,20-Sep-13,OTHER MEDICAL SUPPLIES,Critical care,NHS LOGISTICS,1014087475,22.08,
Department of Health,Salisbury NHS Foundation Trust,20-Sep-13,DRESSINGS - PRE STERILE,Critical care,NHS LOGISTICS,1014087475,13.28,
Department of Health,Salisbury NHS Foundation Trust,20-Sep-13,DRESSINGS - PRE STERILE,Critical care,NHS LOGISTICS,1014087475,9.7,
Department of Health,Salisbury NHS Foundation Trust,20-Sep-13,TISSUES HAND TOWELS & TOILET PAPER,Critical care,NHS LOGISTICS,1014087475,1.88,
Department of Health,Salisbury NHS Foundation Trust,20-Sep-13,PATIENTS INCONTINENCE,Critical care,NHS LOGISTICS,1014087475,4.54,
Department of Health,Salisbury NHS Foundation Trust,20-Sep-13,DRUGS,Critical care,NHS LOGISTICS,1014087475,3.86,
Department of Health,Salisbury NHS Foundation Trust,20-Sep-13,TISSUES HAND TOWELS & TOILET PAPER,Critical care,NHS LOGISTICS,1014087475,0.36,
Department of Health,Salisbury NHS Foundation Trust,20-Sep-13,STATIONERY SUNDRIES,Directorate of Finance and Procurement,NHS LOGISTICS,1014087475,20.33,
Department of Health,Salisbury NHS Foundation Trust,20-Sep-13,DENTAL SURGERY SUNDRIES,Critical care,NHS LOGISTICS,1014087475,37.16,
Department of Health,Salisbury NHS Foundation Trust,20-Sep-13,OTHER MEDICAL SUPPLIES,Medicine,NHS LOGISTICS,1014087475,26.5,
Department of Health,Salisbury NHS Foundation Trust,20-Sep-13,DRESSINGS - PRE STERILE,Medicine,NHS LOGISTICS,1014087475,1.08,
Department of Health,Salisbury NHS Foundation Trust,20-Sep-13,DRESSINGS - PRE STERILE,Medicine,NHS LOGISTICS,1014087475,5.74,
Department of Health,Salisbury NHS Foundation Trust,20-Sep-13,DRESSINGS - PRE STERILE,Medicine,NHS LOGISTICS,1014087475,5.47,
Department of Health,Salisbury NHS Foundation Trust,20-Sep-13,PATIENT APPLIANCES,Medicine,NHS LOGISTICS,1014087475,4.12,
Department of Health,Salisbury NHS Foundation Trust,20-Sep-13,PATIENT APPLIANCES,Medicine,NHS LOGISTICS,1014087475,8.23,
Department of Health,Salisbury NHS Foundation Trust,20-Sep-13,PATIENT APPLIANCES,Medicine,NHS LOGISTICS,1014087475,4.12,
Department of Health,Salisbury NHS Foundation Trust,20-Sep-13,OTHER MEDICAL SUPPLIES,Medicine,NHS LOGISTICS,1014087475,11.11,
Department of Health,Salisbury NHS Foundation Trust,20-Sep-13,TUBES,Medicine,NHS LOGISTICS,1014087475,6.16,
Department of Health,Salisbury NHS Foundation Trust,20-Sep-13,M & S EQUIPELECTEQUIPINST - OTHER,Medicine,NHS LOGISTICS,1014087475,15.91,
Department of Health,Salisbury NHS Foundation Trust,20-Sep-13,PATIENTS INCONTINENCE,Medicine,NHS LOGISTICS,1014087475,4.54,
Department of Health,Salisbury NHS Foundation Trust,20-Sep-13,DRUGS,Medicine,NHS LOGISTICS,1014087475,3.86,
Department of Health,Salisbury NHS Foundation Trust,20-Sep-13,DRESSINGS - PRE STERILE,Medicine,NHS LOGISTICS,1014087475,0.8,
Department of Health,Salisbury NHS Foundation Trust,20-Sep-13,SURGICAL INSTRUMENTS: GENERAL,Medicine,NHS LOGISTICS,1014087475,0.7,
Department of Health,Salisbury NHS Foundation Trust,20-Sep-13,TISSUES HAND TOWELS & TOILET PAPER,Clinical Support and Family Services,NHS LOGISTICS,1014087475,5.65,
Department of Health,Salisbury NHS Foundation Trust,20-Sep-13,MEDSURGCONS - OTHER,Clinical Support and Family Services,NHS LOGISTICS,1014087475,5.21,
Department of Health,Salisbury NHS Foundation Trust,20-Sep-13,OTHER MEDICAL SUPPLIES,Surgery,NHS LOGISTICS,1014087475,22.08,
Department of Health,Salisbury NHS Foundation Trust,20-Sep-13,OTHER MEDICAL SUPPLIES,Surgery,NHS LOGISTICS,1014087475,39.17,
Department of Health,Salisbury NHS Foundation Trust,20-Sep-13,DRESSINGS - PRE STERILE,Surgery,NHS LOGISTICS,1014087475,6.64,
Department of Health,Salisbury NHS Foundation Trust,20-Sep-13,OTHER MEDICAL SUPPLIES,Surgery,NHS LOGISTICS,1014087475,8.83,
Department of Health,Salisbury NHS Foundation Trust,20-Sep-13,BAGS SACKS - OTHER,Surgery,NHS LOGISTICS,1014087475,4.78,
Department of Health,Salisbury NHS Foundation Trust,20-Sep-13,DISPOSABLE THEATRE DRAPES WIPES,Surgery,NHS LOGISTICS,1014087475,9.47,
Department of Health,Salisbury NHS Foundation Trust,20-Sep-13,BABY TEXTURE MODIFIED FOODS,Clinical Support and Family Services,NHS LOGISTICS,1014087475,5,
Department of Health,Salisbury NHS Foundation Trust,20-Sep-13,BABY TEXTURE MODIFIED FOODS,Clinical Support and Family Services,NHS LOGISTICS,1014087475,30.69,
Department of Health,Salisbury NHS Foundation Trust,20-Sep-13,TISSUES HAND TOWELS & TOILET PAPER,Clinical Support and Family Services,NHS LOGISTICS,1014087475,5.65,
Department of Health,Salisbury NHS Foundation Trust,20-Sep-13,SURGICAL INSTRUMENTS: DISPOSABLE,Clinical Support and Family Services,NHS LOGISTICS,1014087475,24.73,
Department of Health,Salisbury NHS Foundation Trust,20-Sep-13,OTHER MEDICAL SUPPLIES,Clinical Support and Family Services,NHS LOGISTICS,1014087475,9.48,
Department of Health,Salisbury NHS Foundation Trust,20-Sep-13,PATIENT APPLIANCES,Clinical Support and Family Services,NHS LOGISTICS,1014087475,14.09,
Department of Health,Salisbury NHS Foundation Trust,20-Sep-13,SURGICAL INSTRUMENTS: DISPOSABLE,Clinical Support and Family Services,NHS LOGISTICS,1014087475,13.38,
Department of Health,Salisbury NHS Foundation Trust,20-Sep-13,PAPER ITEMS GENERAL STATIONERY SUNDRIES,Clinical Support and Family Services,NHS LOGISTICS,1014087475,8,
Department of Health,Salisbury NHS Foundation Trust,20-Sep-13,STATIONERY SUNDRIES,Clinical Support and Family Services,NHS LOGISTICS,1014087475,0.94,
Department of Health,Salisbury NHS Foundation Trust,20-Sep-13,STATIONERY SUNDRIES,Clinical Support and Family Services,NHS LOGISTICS,1014087475,4,
Department of Health,Salisbury NHS Foundation Trust,20-Sep-13,STATIONERY SUNDRIES,Clinical Support and Family Services,NHS LOGISTICS,1014087475,10.4,
Department of Health,Salisbury NHS Foundation Trust,20-Sep-13,STATIONERY SUNDRIES,Clinical Support and Family Services,NHS LOGISTICS,1014087475,1.07,
Department of Health,Salisbury NHS Foundation Trust,20-Sep-13,STATIONERY SUNDRIES,Clinical Support and Family Services,NHS LOGISTICS,1014087475,1.07,
Department of Health,Salisbury NHS Foundation Trust,20-Sep-13,PATIENTS BEDWEAR UNISEX,Critical care,NHS LOGISTICS,1014087475,52.51,
Department of Health,Salisbury NHS Foundation Trust,20-Sep-13,PATIENTS BEDWEAR UNISEX,Critical care,NHS LOGISTICS,1014087475,52.51,
Department of Health,Salisbury NHS Foundation Trust,20-Sep-13,OTHER MEDICAL SUPPLIES,Medicine,NHS LOGISTICS,1014087475,16.53,
Department of Health,Salisbury NHS Foundation Trust,20-Sep-13,NON DISPOSABLE BED LINEN,Medicine,NHS LOGISTICS,1014087475,5.59,
Department of Health,Salisbury NHS Foundation Trust,20-Sep-13,PATIENT APPLIANCES,Medicine,NHS LOGISTICS,1014087475,5.32,
Department of Health,Salisbury NHS Foundation Trust,20-Sep-13,NON DISPOSABLE BED LINEN,Critical care,NHS LOGISTICS,1014087475,11.18,
Department of Health,Salisbury NHS Foundation Trust,20-Sep-13,CLEANING MATERIALS PRODUCTS SUNDRIES,Critical care,NHS LOGISTICS,1014087475,7.91,
Department of Health,Salisbury NHS Foundation Trust,20-Sep-13,NON DISPOSABLE BED LINEN,Critical care,NHS LOGISTICS,1014087475,5.59,
Department of Health,Salisbury NHS Foundation Trust,20-Sep-13,MEDSURGCONS - OTHER,Medicine,NHS LOGISTICS,1014087475,9.12,
Department of Health,Salisbury NHS Foundation Trust,20-Sep-13,LAB EQUIP-ANALYSERS,Medicine,NHS LOGISTICS,1014087475,5.93,
Department of Health,Salisbury NHS Foundation Trust,20-Sep-13,MEDSURGCONS-SUTURES,Medicine,NHS LOGISTICS,1014087475,46.23,
Department of Health,Salisbury NHS Foundation Trust,20-Sep-13,MEDSURGCONS-SUTURES,Medicine,NHS LOGISTICS,1014087475,13.75,
Department of Health,Salisbury NHS Foundation Trust,20-Sep-13,MEDSURGCONS-SUTURES,Medicine,NHS LOGISTICS,1014087475,13.42,
Department of Health,Salisbury NHS Foundation Trust,20-Sep-13,NON DISPOSABLE BED LINEN,Medicine,NHS LOGISTICS,1014087475,21.77,
Department of Health,Salisbury NHS Foundation Trust,20-Sep-13,NON DISPOSABLE BED LINEN,Clinical Support and Family Services,NHS LOGISTICS,1014087475,21.77,
Department of Health,Salisbury NHS Foundation Trust,20-Sep-13,OTHER MEDICAL SUPPLIES,Surgery,NHS LOGISTICS,1014087475,16.53,
Department of Health,Salisbury NHS Foundation Trust,20-Sep-13,SURGICAL INSTRUMENTS: GENERAL,Surgery,NHS LOGISTICS,1014087475,0.78,
Department of Health,Salisbury NHS Foundation Trust,20-Sep-13,NON DISPOSABLE BED LINEN,Surgery,NHS LOGISTICS,1014087475,21.77,
Department of Health,Salisbury NHS Foundation Trust,20-Sep-13,PATIENT APPLIANCES,Surgery,NHS LOGISTICS,1014087475,7.92,
Department of Health,Salisbury NHS Foundation Trust,20-Sep-13,PATIENT APPLIANCES,Surgery,NHS LOGISTICS,1014087475,5.32,
Department of Health,Salisbury NHS Foundation Trust,20-Sep-13,MEDSURGCONS-SUTURES,Surgery,NHS LOGISTICS,1014087475,324.18,
Department of Health,Salisbury NHS Foundation Trust,20-Sep-13,MEDSURGCONS-SUTURES,Surgery,NHS LOGISTICS,1014087475,108.18,
Department of Health,Salisbury NHS Foundation Trust,20-Sep-13,MEDSURGCONS-SUTURES,Surgery,NHS LOGISTICS,1014087475,71.05,
Department of Health,Salisbury NHS Foundation Trust,20-Sep-13,MEDSURGCONS-SUTURES,Surgery,NHS LOGISTICS,1014087475,68.48,
Department of Health,Salisbury NHS Foundation Trust,20-Sep-13,MEDSURGCONS-SUTURES,Surgery,NHS LOGISTICS,1014087475,89.07,
Department of Health,Salisbury NHS Foundation Trust,20-Sep-13,MEDSURGCONS-SUTURES,Surgery,NHS LOGISTICS,1014087475,30.83,
Department of Health,Salisbury NHS Foundation Trust,20-Sep-13,MEDSURGCONS-SUTURES,Surgery,NHS LOGISTICS,1014087475,53.43,
Department of Health,Salisbury NHS Foundation Trust,20-Sep-13,MEDSURGCONS-SUTURES,Surgery,NHS LOGISTICS,1014087475,28.46,
Department of Health,Salisbury NHS Foundation Trust,20-Sep-13,MEDSURGCONS-SUTURES,Surgery,NHS LOGISTICS,1014087475,28.46,
Department of Health,Salisbury NHS Foundation Trust,20-Sep-13,MEDSURGCONS-SUTURES,Surgery,NHS LOGISTICS,1014087475,92.28,
Department of Health,Salisbury NHS Foundation Trust,20-Sep-13,MEDSURGCONS-SUTURES,Surgery,NHS LOGISTICS,1014087475,62.01,
Department of Health,Salisbury NHS Foundation Trust,20-Sep-13,MEDSURGCONS-SUTURES,Surgery,NHS LOGISTICS,1014087475,57.12,
Department of Health,Salisbury NHS Foundation Trust,20-Sep-13,MEDSURGCONS-SUTURES,Surgery,NHS LOGISTICS,1014087475,70.68,
Department of Health,Salisbury NHS Foundation Trust,20-Sep-13,MEDSURGCONS-SUTURES,Surgery,NHS LOGISTICS,1014087475,23.51,
Department of Health,Salisbury NHS Foundation Trust,20-Sep-13,MEDSURGCONS-SUTURES,Surgery,NHS LOGISTICS,1014087475,89.18,
Department of Health,Salisbury NHS Foundation Trust,20-Sep-13,MEDSURGCONS-SUTURES,Surgery,NHS LOGISTICS,1014087475,43.81,
Department of Health,Salisbury NHS Foundation Trust,20-Sep-13,MEDSURGCONS-SUTURES,Surgery,NHS LOGISTICS,1014087475,107.42,
Department of Health,Salisbury NHS Foundation Trust,20-Sep-13,MEDSURGCONS-SUTURES,Surgery,NHS LOGISTICS,1014087475,57.73,
Department of Health,Salisbury NHS Foundation Trust,20-Sep-13,MEDSURGCONS-SUTURES,Surgery,NHS LOGISTICS,1014087475,95.35,
Department of Health,Salisbury NHS Foundation Trust,20-Sep-13,MEDSURGCONS-SUTURES,Surgery,NHS LOGISTICS,1014087475,31.57,
Department of Health,Salisbury NHS Foundation Trust,20-Sep-13,PATIENT APPLIANCES,Clinical Support and Family Services,NHS LOGISTICS,1014087475,38.55,
Department of Health,Salisbury NHS Foundation Trust,20-Sep-13,DRESSINGS - PRE STERILE,Surgery,NHS LOGISTICS,1014087475,32.76,
Department of Health,Salisbury NHS Foundation Trust,20-Sep-13,DRESSINGS  -  PROCEDURE PACKS,Surgery,NHS LOGISTICS,1014087475,15.83,
Department of Health,Salisbury NHS Foundation Trust,20-Sep-13,OTHER MEDICAL SUPPLIES,Surgery,NHS LOGISTICS,1014087475,138.11,
Department of Health,Salisbury NHS Foundation Trust,20-Sep-13,TISSUES HAND TOWELS & TOILET PAPER,Clinical Support and Family Services,NHS LOGISTICS,1014087475,41.8,
Department of Health,Salisbury NHS Foundation Trust,20-Sep-13,MEDSURGCONS - OTHER,Clinical Support and Family Services,NHS LOGISTICS,1014087475,9.32,
Department of Health,Salisbury NHS Foundation Trust,20-Sep-13,NON DISPOSABLE BED LINEN,Clinical Support and Family Services,NHS LOGISTICS,1014087475,11.42,
Department of Health,Salisbury NHS Foundation Trust,20-Sep-13,NON DISPOSABLE BED LINEN,Clinical Support and Family Services,NHS LOGISTICS,1014087475,11.18,
Department of Health,Salisbury NHS Foundation Trust,20-Sep-13,DRESSINGS - PRE STERILE,Clinical Support and Family Services,NHS LOGISTICS,1014087475,21.71,
Department of Health,Salisbury NHS Foundation Trust,20-Sep-13,STATIONERY SUNDRIES,Surgery,NHS LOGISTICS,1014087475,79.14,
Department of Health,Salisbury NHS Foundation Trust,20-Sep-13,TUBES,Medicine,NHS LOGISTICS,1014087475,38.35,
Department of Health,Salisbury NHS Foundation Trust,20-Sep-13,PATIENTS BEDWEAR UNISEX,Medicine,NHS LOGISTICS,1014087475,52.51,
Department of Health,Salisbury NHS Foundation Trust,20-Sep-13,DRESSINGS - PRE STERILE,Medicine,NHS LOGISTICS,1014087475,8.07,
Department of Health,Salisbury NHS Foundation Trust,20-Sep-13,M & S EQUIPELECTEQUIPINST - OTHER,Surgery,NHS LOGISTICS,1014087475,15.67,
Department of Health,Salisbury NHS Foundation Trust,20-Sep-13,OTHER MEDICAL SUPPLIES,Clinical Support and Family Services,NHS LOGISTICS,1014087475,2.07,
Department of Health,Salisbury NHS Foundation Trust,20-Sep-13,OTHER MEDICAL SUPPLIES,Clinical Support and Family Services,NHS LOGISTICS,1014087475,0.7,
Department of Health,Salisbury NHS Foundation Trust,20-Sep-13,LAB EQUIP-LABORATORY APPARATUS,Clinical Support and Family Services,NHS LOGISTICS,1014087475,18.88,
Department of Health,Salisbury NHS Foundation Trust,20-Sep-13,DRUGS,Clinical Support and Family Services,NHS LOGISTICS,1014087475,0.84,
Department of Health,Salisbury NHS Foundation Trust,20-Sep-13,DRESSINGS - PRE STERILE,Clinical Support and Family Services,NHS LOGISTICS,1014087475,0.7,
Department of Health,Salisbury NHS Foundation Trust,20-Sep-13,TISSUES HAND TOWELS & TOILET PAPER,Clinical Support and Family Services,NHS LOGISTICS,1014087475,20.9,
Department of Health,Salisbury NHS Foundation Trust,20-Sep-13,DISPOSABLE THEATRE DRAPES WIPES,Clinical Support and Family Services,NHS LOGISTICS,1014087475,6.3,
Department of Health,Salisbury NHS Foundation Trust,20-Sep-13,BABY TEXTURE MODIFIED FOODS,Clinical Support and Family Services,NHS LOGISTICS,1014087475,29.53,
Department of Health,Salisbury NHS Foundation Trust,20-Sep-13,TISSUES HAND TOWELS & TOILET PAPER,Clinical Support and Family Services,NHS LOGISTICS,1014087475,1.88,
Department of Health,Salisbury NHS Foundation Trust,20-Sep-13,OTHER MEDICAL SUPPLIES,Clinical Support and Family Services,NHS LOGISTICS,1014087475,1.4,
Department of Health,Salisbury NHS Foundation Trust,20-Sep-13,OTHER MEDICAL SUPPLIES,Clinical Support and Family Services,NHS LOGISTICS,1014087475,8.42,
Department of Health,Salisbury NHS Foundation Trust,20-Sep-13,TOILETRIES PERSONAL HYGIENE PRODUCTS,Clinical Support and Family Services,NHS LOGISTICS,1014087475,7.93,
Department of Health,Salisbury NHS Foundation Trust,20-Sep-13,MEDSURGCONS - OTHER,Clinical Support and Family Services,NHS LOGISTICS,1014087475,11.42,
Department of Health,Salisbury NHS Foundation Trust,20-Sep-13,MEDSURGCONS - OTHER,Clinical Support and Family Services,NHS LOGISTICS,1014087475,22.83,
Department of Health,Salisbury NHS Foundation Trust,20-Sep-13,COOKING & KITCHEN UTENSILS,Clinical Support and Family Services,NHS LOGISTICS,1014087475,1.19,
Department of Health,Salisbury NHS Foundation Trust,20-Sep-13,M & S EQUIPELECTEQUIPINST - OTHER,Clinical Support and Family Services,NHS LOGISTICS,1014087475,3.52,
Department of Health,Salisbury NHS Foundation Trust,20-Sep-13,DISPOSABLE THEATRE DRAPES WIPES,Clinical Support and Family Services,NHS LOGISTICS,1014087475,3.71,
Department of Health,Salisbury NHS Foundation Trust,20-Sep-13,DISPOSABLE THEATRE DRAPES WIPES,Clinical Support and Family Services,NHS LOGISTICS,1014087475,9.45,
Department of Health,Salisbury NHS Foundation Trust,20-Sep-13,TISSUES HAND TOWELS & TOILET PAPER,Clinical Support and Family Services,NHS LOGISTICS,1014087475,46.5,
Department of Health,Salisbury NHS Foundation Trust,20-Sep-13,OTHER MEDICAL SUPPLIES,Clinical Support and Family Services,NHS LOGISTICS,1014087475,3.26,
Department of Health,Salisbury NHS Foundation Trust,20-Sep-13,DRESSINGS  -  PROCEDURE PACKS,Clinical Support and Family Services,NHS LOGISTICS,1014087475,0.75,
Department of Health,Salisbury NHS Foundation Trust,20-Sep-13,DISPOSABLE THEATRE DRAPES WIPES,Clinical Support and Family Services,NHS LOGISTICS,1014087475,3.63,
Department of Health,Salisbury NHS Foundation Trust,20-Sep-13,DRESSINGS - PRE STERILE,Clinical Support and Family Services,NHS LOGISTICS,1014087475,11.77,
Department of Health,Salisbury NHS Foundation Trust,20-Sep-13,DRESSINGS - PRE STERILE,Clinical Support and Family Services,NHS LOGISTICS,1014087475,3.23,
Department of Health,Salisbury NHS Foundation Trust,20-Sep-13,MEDSURGCONS - OTHER,Clinical Support and Family Services,NHS LOGISTICS,1014087475,6.87,
Department of Health,Salisbury NHS Foundation Trust,20-Sep-13,MEDSURGCONS - OTHER,Clinical Support and Family Services,NHS LOGISTICS,1014087475,4.58,
Department of Health,Salisbury NHS Foundation Trust,20-Sep-13,MEDSURGCONS - OTHER,Clinical Support and Family Services,NHS LOGISTICS,1014087475,3.88,
Department of Health,Salisbury NHS Foundation Trust,20-Sep-13,M & S EQUIPELECTEQUIPINST - OTHER,Clinical Support and Family Services,NHS LOGISTICS,1014087475,15.91,
Department of Health,Salisbury NHS Foundation Trust,20-Sep-13,DRUGS,Clinical Support and Family Services,NHS LOGISTICS,1014087475,0.84,
Department of Health,Salisbury NHS Foundation Trust,20-Sep-13,MEDSURGCONS - OTHER,Clinical Support and Family Services,NHS LOGISTICS,1014087475,21.48,
Department of Health,Salisbury NHS Foundation Trust,20-Sep-13,SURGICAL INSTRUMENTS: GENERAL,Clinical Support and Family Services,NHS LOGISTICS,1014087475,6.03,
Department of Health,Salisbury NHS Foundation Trust,20-Sep-13,M & S EQUIPELECTEQUIPINST - OTHER,Clinical Support and Family Services,NHS LOGISTICS,1014087475,0.63,
Department of Health,Salisbury NHS Foundation Trust,20-Sep-13,SURGICAL INSTRUMENTS: GENERAL,Clinical Support and Family Services,NHS LOGISTICS,1014087475,1.75,
Department of Health,Salisbury NHS Foundation Trust,20-Sep-13,MEDSURGCONS - OTHER,Clinical Support and Family Services,NHS LOGISTICS,1014087475,7.48,
Department of Health,Salisbury NHS Foundation Trust,20-Sep-13,M & S EQUIPELECTEQUIPINST - OTHER,Clinical Support and Family Services,NHS LOGISTICS,1014087475,45.11,
Department of Health,Salisbury NHS Foundation Trust,20-Sep-13,MEDSURGCONS-SUTURES,Surgery,NHS LOGISTICS,1014087475,33.13,
Department of Health,Salisbury NHS Foundation Trust,20-Sep-13,MEDSURGCONS-SUTURES,Surgery,NHS LOGISTICS,1014087475,43.81,
Department of Health,Salisbury NHS Foundation Trust,20-Sep-13,MEDSURGCONS-SUTURES,Surgery,NHS LOGISTICS,1014087475,35.53,
Department of Health,Salisbury NHS Foundation Trust,20-Sep-13,DRESSINGS - PRE STERILE,Clinical Support and Family Services,NHS LOGISTICS,1014087475,21.71,
Department of Health,Salisbury NHS Foundation Trust,20-Sep-13,DRESSINGS - PRE STERILE,Clinical Support and Family Services,NHS LOGISTICS,1014087475,14.39,
Department of Health,Salisbury NHS Foundation Trust,20-Sep-13,DRESSINGS - PRE STERILE,Clinical Support and Family Services,NHS LOGISTICS,1014087475,360.33,
Department of Health,Salisbury NHS Foundation Trust,20-Sep-13,DRESSINGS - PRE STERILE,Clinical Support and Family Services,NHS LOGISTICS,1014087475,241.07,
Department of Health,Salisbury NHS Foundation Trust,20-Sep-13,DRUGS,Clinical Support and Family Services,NHS LOGISTICS,1014087475,37.7,
Department of Health,Salisbury NHS Foundation Trust,20-Sep-13,DRESSINGS - PRE STERILE,Clinical Support and Family Services,NHS LOGISTICS,1014087475,18.8,
Department of Health,Salisbury NHS Foundation Trust,20-Sep-13,DRESSINGS - PRE STERILE,Clinical Support and Family Services,NHS LOGISTICS,1014087475,133.05,
Department of Health,Salisbury NHS Foundation Trust,20-Sep-13,DRESSINGS - PRE STERILE,Clinical Support and Family Services,NHS LOGISTICS,1014087475,143.05,
Department of Health,Salisbury NHS Foundation Trust,20-Sep-13,SERVICES FROM NHS BODIES,Clinical Support and Family Services,NHS LOGISTICS,1014087475,45,
Department of Health,Salisbury NHS Foundation Trust,20-Sep-13,SERVICES FROM NHS BODIES,Clinical Support and Family Services,NHS LOGISTICS,1014087475,163.6,
Department of Health,Salisbury NHS Foundation Trust,20-Sep-13,DRESSINGS - PRE STERILE,Clinical Support and Family Services,NHS LOGISTICS,1014087475,195.6,
Department of Health,Salisbury NHS Foundation Trust,20-Sep-13,MED SURG EQUIP REP MAINT CLEANING,Clinical Support and Family Services,NHS LOGISTICS,1014087475,20.07,
Department of Health,Salisbury NHS Foundation Trust,20-Sep-13,DRUGS,Clinical Support and Family Services,NHS LOGISTICS,1014087475,90.6,
Department of Health,Salisbury NHS Foundation Trust,20-Sep-13,DRUGS,Clinical Support and Family Services,NHS LOGISTICS,1014087475,19.95,
Department of Health,Salisbury NHS Foundation Trust,20-Sep-13,EGGS MILK OTHER DAIRY PRODUCTS,Facilities Directorate,NHS LOGISTICS,1014087475,74.06,
Department of Health,Salisbury NHS Foundation Trust,20-Sep-13,FRUIT & VEGETABLES,Facilities Directorate,NHS LOGISTICS,1014087475,20.08,
Department of Health,Salisbury NHS Foundation Trust,20-Sep-13,BEVERAGES & AMBIENT FOOD,Facilities Directorate,NHS LOGISTICS,1014087475,28.59,
Department of Health,Salisbury NHS Foundation Trust,20-Sep-13,BEVERAGES & AMBIENT FOOD,Facilities Directorate,NHS LOGISTICS,1014087475,8.19,
Department of Health,Salisbury NHS Foundation Trust,20-Sep-13,BEVERAGES & AMBIENT FOOD,Facilities Directorate,NHS LOGISTICS,1014087475,36,
Department of Health,Salisbury NHS Foundation Trust,20-Sep-13,BEVERAGES & AMBIENT FOOD,Facilities Directorate,NHS LOGISTICS,1014087475,9.6,
Department of Health,Salisbury NHS Foundation Trust,20-Sep-13,BEVERAGES & AMBIENT FOOD,Facilities Directorate,NHS LOGISTICS,1014087475,14.4,
Department of Health,Salisbury NHS Foundation Trust,20-Sep-13,BEVERAGES & AMBIENT FOOD,Facilities Directorate,NHS LOGISTICS,1014087475,16.72,
Department of Health,Salisbury NHS Foundation Trust,20-Sep-13,BEVERAGES & AMBIENT FOOD,Facilities Directorate,NHS LOGISTICS,1014087475,33.16,
Department of Health,Salisbury NHS Foundation Trust,20-Sep-13,BEVERAGES & AMBIENT FOOD,Facilities Directorate,NHS LOGISTICS,1014087475,23.91,
Department of Health,Salisbury NHS Foundation Trust,20-Sep-13,BEVERAGES & AMBIENT FOOD,Facilities Directorate,NHS LOGISTICS,1014087475,4.64,
Department of Health,Salisbury NHS Foundation Trust,20-Sep-13,BEVERAGES & AMBIENT FOOD,Facilities Directorate,NHS LOGISTICS,1014087475,7.4,
Department of Health,Salisbury NHS Foundation Trust,20-Sep-13,BEVERAGES & AMBIENT FOOD,Facilities Directorate,NHS LOGISTICS,1014087475,6.34,
Department of Health,Salisbury NHS Foundation Trust,20-Sep-13,BEVERAGES & AMBIENT FOOD,Facilities Directorate,NHS LOGISTICS,1014087475,11.27,
Department of Health,Salisbury NHS Foundation Trust,20-Sep-13,BEVERAGES & AMBIENT FOOD,Facilities Directorate,NHS LOGISTICS,1014087475,9.84,
Department of Health,Salisbury NHS Foundation Trust,20-Sep-13,BEVERAGES & AMBIENT FOOD,Facilities Directorate,NHS LOGISTICS,1014087475,4.7,
Department of Health,Salisbury NHS Foundation Trust,20-Sep-13,BEVERAGES & AMBIENT FOOD,Facilities Directorate,NHS LOGISTICS,1014087475,16.92,
Department of Health,Salisbury NHS Foundation Trust,20-Sep-13,FRUIT & VEGETABLES,Facilities Directorate,NHS LOGISTICS,1014087475,14.76,
Department of Health,Salisbury NHS Foundation Trust,20-Sep-13,EGGS MILK OTHER DAIRY PRODUCTS,Facilities Directorate,NHS LOGISTICS,1014087475,37.2,
Department of Health,Salisbury NHS Foundation Trust,20-Sep-13,LIQUID REFRESHMENTS,Facilities Directorate,NHS LOGISTICS,1014087475,123,
Department of Health,Salisbury NHS Foundation Trust,20-Sep-13,BEVERAGES & AMBIENT FOOD,Facilities Directorate,NHS LOGISTICS,1014087475,29.1,
Department of Health,Salisbury NHS Foundation Trust,20-Sep-13,BEVERAGES & AMBIENT FOOD,Facilities Directorate,NHS LOGISTICS,1014087475,82.72,
Department of Health,Salisbury NHS Foundation Trust,20-Sep-13,BEVERAGES & AMBIENT FOOD,Facilities Directorate,NHS LOGISTICS,1014087475,10.26,
Department of Health,Salisbury NHS Foundation Trust,20-Sep-13,FRUIT & VEGETABLES,Facilities Directorate,NHS LOGISTICS,1014087475,53.4,
Department of Health,Salisbury NHS Foundation Trust,20-Sep-13,FRUIT & VEGETABLES,Facilities Directorate,NHS LOGISTICS,1014087475,30.24,
Department of Health,Salisbury NHS Foundation Trust,20-Sep-13,FRUIT & VEGETABLES,Facilities Directorate,NHS LOGISTICS,1014087475,18.12,
Department of Health,Salisbury NHS Foundation Trust,20-Sep-13,LIQUID REFRESHMENTS,Facilities Directorate,NHS LOGISTICS,1014087475,15.35,
Department of Health,Salisbury NHS Foundation Trust,20-Sep-13,LIQUID REFRESHMENTS,Facilities Directorate,NHS LOGISTICS,1014087475,16.98,
Department of Health,Salisbury NHS Foundation Trust,20-Sep-13,LIQUID REFRESHMENTS,Facilities Directorate,NHS LOGISTICS,1014087475,17.12,
Department of Health,Salisbury NHS Foundation Trust,20-Sep-13,LIQUID REFRESHMENTS,Facilities Directorate,NHS LOGISTICS,1014087475,17.12,
Department of Health,Salisbury NHS Foundation Trust,20-Sep-13,LIQUID REFRESHMENTS,Facilities Directorate,NHS LOGISTICS,1014087475,27.93,
Department of Health,Salisbury NHS Foundation Trust,20-Sep-13,BEVERAGES & AMBIENT FOOD,Facilities Directorate,NHS LOGISTICS,1014087475,21.08,
Department of Health,Salisbury NHS Foundation Trust,20-Sep-13,BEVERAGES & AMBIENT FOOD,Facilities Directorate,NHS LOGISTICS,1014087475,19.74,
Department of Health,Salisbury NHS Foundation Trust,20-Sep-13,BEVERAGES & AMBIENT FOOD,Facilities Directorate,NHS LOGISTICS,1014087475,24.3,
Department of Health,Salisbury NHS Foundation Trust,20-Sep-13,FLAVOURINGS HERBS SPICES,Facilities Directorate,NHS LOGISTICS,1014087475,2.96,
Department of Health,Salisbury NHS Foundation Trust,20-Sep-13,LIQUID REFRESHMENTS,Facilities Directorate,NHS LOGISTICS,1014087475,9.2,
Department of Health,Salisbury NHS Foundation Trust,20-Sep-13,LIQUID REFRESHMENTS,Facilities Directorate,NHS LOGISTICS,1014087475,13.8,
Department of Health,Salisbury NHS Foundation Trust,20-Sep-13,LIQUID REFRESHMENTS,Facilities Directorate,NHS LOGISTICS,1014087475,4.43,
Department of Health,Salisbury NHS Foundation Trust,20-Sep-13,BEVERAGES & AMBIENT FOOD,Facilities Directorate,NHS LOGISTICS,1014087475,34.92,
Department of Health,Salisbury NHS Foundation Trust,20-Sep-13,BAGS SACKS - OTHER,Facilities Directorate,NHS LOGISTICS,1014087475,6.48,
Department of Health,Salisbury NHS Foundation Trust,20-Sep-13,HEALTHCARE - WEAR,Facilities Directorate,NHS LOGISTICS,1014087475,51.8,
Department of Health,Salisbury NHS Foundation Trust,20-Sep-13,HEALTHCARE - WEAR,Facilities Directorate,NHS LOGISTICS,1014087475,51.8,
Department of Health,Salisbury NHS Foundation Trust,20-Sep-13,FRUIT & VEGETABLES,Facilities Directorate,NHS LOGISTICS,1014087475,5.85,
Department of Health,Salisbury NHS Foundation Trust,20-Sep-13,FRUIT & VEGETABLES,Facilities Directorate,NHS LOGISTICS,1014087475,22.2,
Department of Health,Salisbury NHS Foundation Trust,20-Sep-13,BEVERAGES & AMBIENT FOOD,Facilities Directorate,NHS LOGISTICS,1014087475,18.06,
Department of Health,Salisbury NHS Foundation Trust,20-Sep-13,STATIONERY SUNDRIES,Directorate of Finance and Procurement,NHS LOGISTICS,1014087475,9.33,
Department of Health,Salisbury NHS Foundation Trust,20-Sep-13,STATIONERY SUNDRIES,Clinical Support and Family Services,NHS LOGISTICS,1014087475,12.45,
Department of Health,Salisbury NHS Foundation Trust,20-Sep-13,OTHER MEDICAL SUPPLIES,Clinical Support and Family Services,NHS LOGISTICS,1014087475,1.45,
Department of Health,Salisbury NHS Foundation Trust,20-Sep-13,MEDSURGCONS-SUTURES,Surgery,NHS LOGISTICS,1014087475,40.13,
Department of Health,Salisbury NHS Foundation Trust,20-Sep-13,MEDSURGCONS-SUTURES,Surgery,NHS LOGISTICS,1014087475,61.63,
Department of Health,Salisbury NHS Foundation Trust,20-Sep-13,MEDSURGCONS-SUTURES,Surgery,NHS LOGISTICS,1014087475,34.98,
Department of Health,Salisbury NHS Foundation Trust,20-Sep-13,MEDSURGCONS-SUTURES,Surgery,NHS LOGISTICS,1014087475,28.12,
Department of Health,Salisbury NHS Foundation Trust,20-Sep-13,MEDSURGCONS-SUTURES,Surgery,NHS LOGISTICS,1014087475,42.76,
Department of Health,Salisbury NHS Foundation Trust,20-Sep-13,MEDSURGCONS-SUTURES,Surgery,NHS LOGISTICS,1014087475,89.18,
Department of Health,Salisbury NHS Foundation Trust,20-Sep-13,MEDSURGCONS-SUTURES,Surgery,NHS LOGISTICS,1014087475,46.23,
Department of Health,Salisbury NHS Foundation Trust,20-Sep-13,OTHER MEDICAL SUPPLIES,Surgery,NHS LOGISTICS,1014087475,40.58,
Department of Health,Salisbury NHS Foundation Trust,20-Sep-13,MEDSURGCONS-SUTURES,Critical care,NHS LOGISTICS,1014087475,268.78,
Department of Health,Salisbury NHS Foundation Trust,20-Sep-13,ANAESTHETIC EQUIPMENT ACCESSORIES,Surgery,NHS LOGISTICS,1014087475,7.5,
Department of Health,Salisbury NHS Foundation Trust,20-Sep-13,TISSUES HAND TOWELS & TOILET PAPER,Medicine,NHS LOGISTICS,1014087475,5.65,
Department of Health,Salisbury NHS Foundation Trust,20-Sep-13,MEDSURGCONS - OTHER,Medicine,NHS LOGISTICS,1014087475,152.83,
Department of Health,Salisbury NHS Foundation Trust,20-Sep-13,MEDSURGCONS - OTHER,Medicine,NHS LOGISTICS,1014087475,26.55,
Department of Health,Salisbury NHS Foundation Trust,20-Sep-13,MEDSURGCONS - OTHER,Medicine,NHS LOGISTICS,1014087475,51.12,
Department of Health,Salisbury NHS Foundation Trust,20-Sep-13,MEDSURGCONS - OTHER,Medicine,NHS LOGISTICS,1014087475,5.71,
Department of Health,Salisbury NHS Foundation Trust,20-Sep-13,ELECTRICAL EQUIPMENT x,Medicine,NHS LOGISTICS,1014087475,6.67,
Department of Health,Salisbury NHS Foundation Trust,20-Sep-13,ELECTRICAL EQUIPMENT x,Medicine,NHS LOGISTICS,1014087475,5.33,
Department of Health,Salisbury NHS Foundation Trust,20-Sep-13,ANAESTHETIC EQUIPMENT ACCESSORIES,Surgery,NHS LOGISTICS,1014087475,6.75,
Department of Health,Salisbury NHS Foundation Trust,20-Sep-13,HARD/SOFTWARE-MEDIA  TAPES  DISCS,Clinical Support and Family Services,NHS LOGISTICS,1014087475,8.36,
Department of Health,Salisbury NHS Foundation Trust,20-Sep-13,MEDSURGCONS - OTHER,Surgery,NHS LOGISTICS,1014087475,39.78,
Department of Health,Salisbury NHS Foundation Trust,20-Sep-13,MEDSURGCONS - OTHER,Surgery,NHS LOGISTICS,1014087475,49.24,
Department of Health,Salisbury NHS Foundation Trust,20-Sep-13,DRESSINGS - PRE STERILE,Surgery,NHS LOGISTICS,1014087475,34,
Department of Health,Salisbury NHS Foundation Trust,20-Sep-13,LAB EQUIP-LABORATORY APPARATUS,Surgery,NHS LOGISTICS,1014087475,9.73,
Department of Health,Salisbury NHS Foundation Trust,20-Sep-13,LAB EQUIP-LABORATORY APPARATUS,Clinical Support and Family Services,NHS LOGISTICS,1014087475,7.41,
Department of Health,Salisbury NHS Foundation Trust,20-Sep-13,OTHER MEDICAL SUPPLIES,Surgery,NHS LOGISTICS,1014087475,308.58,
Department of Health,Salisbury NHS Foundation Trust,20-Sep-13,DRESSINGS  -  PROCEDURE PACKS,Facilities Directorate,NHS LOGISTICS,1014087475,121.5,
Department of Health,Salisbury NHS Foundation Trust,20-Sep-13,TISSUES HAND TOWELS & TOILET PAPER,Facilities Directorate,NHS LOGISTICS,1014087475,20.9,
Department of Health,Salisbury NHS Foundation Trust,20-Sep-13,COOKING & KITCHEN UTENSILS,Facilities Directorate,NHS LOGISTICS,1014087475,23.33,
Department of Health,Salisbury NHS Foundation Trust,20-Sep-13,HEALTHCARE - WEAR,Facilities Directorate,NHS LOGISTICS,1014087475,7.73,
Department of Health,Salisbury NHS Foundation Trust,20-Sep-13,HEALTHCARE - WEAR,Facilities Directorate,NHS LOGISTICS,1014087475,5.47,
Department of Health,Salisbury NHS Foundation Trust,20-Sep-13,HEALTHCARE - WEAR,Facilities Directorate,NHS LOGISTICS,1014087475,7.83,
Department of Health,Salisbury NHS Foundation Trust,20-Sep-13,MEDSURGCONS - OTHER,Facilities Directorate,NHS LOGISTICS,1014087475,29.92,
Department of Health,Salisbury NHS Foundation Trust,20-Sep-13,HEALTHCARE - WEAR,Facilities Directorate,NHS LOGISTICS,1014087475,18.53,
Department of Health,Salisbury NHS Foundation Trust,20-Sep-13,MEDSURGCONS - OTHER,Facilities Directorate,NHS LOGISTICS,1014087475,13.39,
Department of Health,Salisbury NHS Foundation Trust,20-Sep-13,MEDSURGCONS - OTHER,Facilities Directorate,NHS LOGISTICS,1014087475,10.42,
Department of Health,Salisbury NHS Foundation Trust,20-Sep-13,MEDSURGCONS - OTHER,Facilities Directorate,NHS LOGISTICS,1014087475,43.13,
Department of Health,Salisbury NHS Foundation Trust,20-Sep-13,OTHER MEDICAL SUPPLIES,Facilities Directorate,NHS LOGISTICS,1014087475,311.13,
Department of Health,Salisbury NHS Foundation Trust,20-Sep-13,OTHER MEDICAL SUPPLIES,Facilities Directorate,NHS LOGISTICS,1014087475,194.46,
Department of Health,Salisbury NHS Foundation Trust,20-Sep-13,DRESSINGS - PRE STERILE,Facilities Directorate,NHS LOGISTICS,1014087475,31.08,
Department of Health,Salisbury NHS Foundation Trust,20-Sep-13,DRESSINGS - PRE STERILE,Facilities Directorate,NHS LOGISTICS,1014087475,8.95,
Department of Health,Salisbury NHS Foundation Trust,20-Sep-13,DRESSINGS - PRE STERILE,Facilities Directorate,NHS LOGISTICS,1014087475,38.17,
Department of Health,Salisbury NHS Foundation Trust,20-Sep-13,BAGS SACKS - OTHER,Facilities Directorate,NHS LOGISTICS,1014087475,12.83,
Department of Health,Salisbury NHS Foundation Trust,20-Sep-13,CLEANING MATERIALS PRODUCTS SUNDRIES,Facilities Directorate,NHS LOGISTICS,1014087475,8.5,
Department of Health,Salisbury NHS Foundation Trust,20-Sep-13,PAPER ITEMS GENERAL STATIONERY SUNDRIES,Facilities Directorate,NHS LOGISTICS,1014087475,3.93,
Department of Health,Salisbury NHS Foundation Trust,20-Sep-13,COOKING & KITCHEN UTENSILS,Directorate of Finance and Procurement,NHS LOGISTICS,1014087475,100,
Department of Health,Salisbury NHS Foundation Trust,20-Sep-13,SURGICAL INSTRUMENTS: DISPOSABLE,Surgery,NHS LOGISTICS,1014087475,20.43,
Department of Health,Salisbury NHS Foundation Trust,20-Sep-13,MEDSURGCONS-SUTURES,Surgery,NHS LOGISTICS,1014087475,125.05,
Department of Health,Salisbury NHS Foundation Trust,20-Sep-13,MEDSURGCONS-SUTURES,Surgery,NHS LOGISTICS,1014087475,138.93,
Department of Health,Salisbury NHS Foundation Trust,20-Sep-13,MEDSURGCONS-SUTURES,Surgery,NHS LOGISTICS,1014087475,143.85,
Department of Health,Salisbury NHS Foundation Trust,20-Sep-13,MEDSURGCONS-SUTURES,Surgery,NHS LOGISTICS,1014087475,150.68,
Department of Health,Salisbury NHS Foundation Trust,20-Sep-13,MEDSURGCONS-SUTURES,Surgery,NHS LOGISTICS,1014087475,39.98,
Department of Health,Salisbury NHS Foundation Trust,20-Sep-13,MEDSURGCONS-SUTURES,Surgery,NHS LOGISTICS,1014087475,36.3,
Department of Health,Salisbury NHS Foundation Trust,20-Sep-13,MEDSURGCONS-SUTURES,Surgery,NHS LOGISTICS,1014087475,46.23,
Department of Health,Salisbury NHS Foundation Trust,20-Sep-13,MEDSURGCONS-SUTURES,Surgery,NHS LOGISTICS,1014087475,17.72,
Department of Health,Salisbury NHS Foundation Trust,20-Sep-13,MEDSURGCONS-SUTURES,Surgery,NHS LOGISTICS,1014087475,65.39,
Department of Health,Salisbury NHS Foundation Trust,20-Sep-13,DRESSINGS - PRE STERILE,Critical care,NHS LOGISTICS,1014087475,2.28,
Department of Health,Salisbury NHS Foundation Trust,20-Sep-13,EGGS MILK OTHER DAIRY PRODUCTS,Facilities Directorate,NHS LOGISTICS,1014087475,74.06,
Department of Health,Salisbury NHS Foundation Trust,20-Sep-13,FRUIT & VEGETABLES,Facilities Directorate,NHS LOGISTICS,1014087475,40.16,
Department of Health,Salisbury NHS Foundation Trust,20-Sep-13,BEVERAGES & AMBIENT FOOD,Facilities Directorate,NHS LOGISTICS,1014087475,28.59,
Department of Health,Salisbury NHS Foundation Trust,20-Sep-13,BEVERAGES & AMBIENT FOOD,Facilities Directorate,NHS LOGISTICS,1014087475,36,
Department of Health,Salisbury NHS Foundation Trust,20-Sep-13,FLAVOURINGS HERBS SPICES,Facilities Directorate,NHS LOGISTICS,1014087475,16.38,
Department of Health,Salisbury NHS Foundation Trust,20-Sep-13,BEVERAGES & AMBIENT FOOD,Facilities Directorate,NHS LOGISTICS,1014087475,9.6,
Department of Health,Salisbury NHS Foundation Trust,20-Sep-13,BEVERAGES & AMBIENT FOOD,Facilities Directorate,NHS LOGISTICS,1014087475,8.86,
Department of Health,Salisbury NHS Foundation Trust,20-Sep-13,BEVERAGES & AMBIENT FOOD,Facilities Directorate,NHS LOGISTICS,1014087475,33.16,
Department of Health,Salisbury NHS Foundation Trust,20-Sep-13,BEVERAGES & AMBIENT FOOD,Facilities Directorate,NHS LOGISTICS,1014087475,15.94,
Department of Health,Salisbury NHS Foundation Trust,20-Sep-13,BEVERAGES & AMBIENT FOOD,Facilities Directorate,NHS LOGISTICS,1014087475,4.64,
Department of Health,Salisbury NHS Foundation Trust,20-Sep-13,BEVERAGES & AMBIENT FOOD,Facilities Directorate,NHS LOGISTICS,1014087475,6.34,
Department of Health,Salisbury NHS Foundation Trust,20-Sep-13,BEVERAGES & AMBIENT FOOD,Facilities Directorate,NHS LOGISTICS,1014087475,6.2,
Department of Health,Salisbury NHS Foundation Trust,20-Sep-13,BEVERAGES & AMBIENT FOOD,Facilities Directorate,NHS LOGISTICS,1014087475,11,
Department of Health,Salisbury NHS Foundation Trust,20-Sep-13,FLAVOURINGS HERBS SPICES,Facilities Directorate,NHS LOGISTICS,1014087475,5.38,
Department of Health,Salisbury NHS Foundation Trust,20-Sep-13,COOKING & KITCHEN UTENSILS,Facilities Directorate,NHS LOGISTICS,1014087475,23.33,
Department of Health,Salisbury NHS Foundation Trust,20-Sep-13,BEVERAGES & AMBIENT FOOD,Facilities Directorate,NHS LOGISTICS,1014087475,11.98,
Department of Health,Salisbury NHS Foundation Trust,20-Sep-13,BEVERAGES & AMBIENT FOOD,Facilities Directorate,NHS LOGISTICS,1014087475,9.84,
Department of Health,Salisbury NHS Foundation Trust,20-Sep-13,BEVERAGES & AMBIENT FOOD,Facilities Directorate,NHS LOGISTICS,1014087475,2.94,
Department of Health,Salisbury NHS Foundation Trust,20-Sep-13,BEVERAGES & AMBIENT FOOD,Facilities Directorate,NHS LOGISTICS,1014087475,2.94,
Department of Health,Salisbury NHS Foundation Trust,20-Sep-13,FLAVOURINGS HERBS SPICES,Facilities Directorate,NHS LOGISTICS,1014087475,12.12,
Department of Health,Salisbury NHS Foundation Trust,20-Sep-13,FRUIT & VEGETABLES,Facilities Directorate,NHS LOGISTICS,1014087475,9.84,
Department of Health,Salisbury NHS Foundation Trust,20-Sep-13,EGGS MILK OTHER DAIRY PRODUCTS,Facilities Directorate,NHS LOGISTICS,1014087475,18.6,
Department of Health,Salisbury NHS Foundation Trust,20-Sep-13,LIQUID REFRESHMENTS,Facilities Directorate,NHS LOGISTICS,1014087475,123,
Department of Health,Salisbury NHS Foundation Trust,20-Sep-13,BEVERAGES & AMBIENT FOOD,Facilities Directorate,NHS LOGISTICS,1014087475,29.1,
Department of Health,Salisbury NHS Foundation Trust,20-Sep-13,BEVERAGES & AMBIENT FOOD,Facilities Directorate,NHS LOGISTICS,1014087475,10.45,
Department of Health,Salisbury NHS Foundation Trust,20-Sep-13,BEVERAGES & AMBIENT FOOD,Facilities Directorate,NHS LOGISTICS,1014087475,82.72,
Department of Health,Salisbury NHS Foundation Trust,20-Sep-13,BABY TEXTURE MODIFIED FOODS,Facilities Directorate,NHS LOGISTICS,1014087475,18.62,
Department of Health,Salisbury NHS Foundation Trust,20-Sep-13,BABY TEXTURE MODIFIED FOODS,Facilities Directorate,NHS LOGISTICS,1014087475,51.96,
Department of Health,Salisbury NHS Foundation Trust,20-Sep-13,DIETETIC FOOD,Facilities Directorate,NHS LOGISTICS,1014087475,13.92,
Department of Health,Salisbury NHS Foundation Trust,20-Sep-13,DIETETIC FOOD,Facilities Directorate,NHS LOGISTICS,1014087475,27.84,
Department of Health,Salisbury NHS Foundation Trust,20-Sep-13,BEVERAGES & AMBIENT FOOD,Facilities Directorate,NHS LOGISTICS,1014087475,10.26,
Department of Health,Salisbury NHS Foundation Trust,20-Sep-13,DIETETIC FOOD,Facilities Directorate,NHS LOGISTICS,1014087475,19.68,
Department of Health,Salisbury NHS Foundation Trust,20-Sep-13,DIETETIC FOOD,Facilities Directorate,NHS LOGISTICS,1014087475,19.68,
Department of Health,Salisbury NHS Foundation Trust,20-Sep-13,FRUIT & VEGETABLES,Facilities Directorate,NHS LOGISTICS,1014087475,42.72,
Department of Health,Salisbury NHS Foundation Trust,20-Sep-13,FRUIT & VEGETABLES,Facilities Directorate,NHS LOGISTICS,1014087475,10.26,
Department of Health,Salisbury NHS Foundation Trust,20-Sep-13,FRUIT & VEGETABLES,Facilities Directorate,NHS LOGISTICS,1014087475,12.06,
Department of Health,Salisbury NHS Foundation Trust,20-Sep-13,FRUIT & VEGETABLES,Facilities Directorate,NHS LOGISTICS,1014087475,10.86,
Department of Health,Salisbury NHS Foundation Trust,20-Sep-13,FRUIT & VEGETABLES,Facilities Directorate,NHS LOGISTICS,1014087475,60.48,
Department of Health,Salisbury NHS Foundation Trust,20-Sep-13,FRUIT & VEGETABLES,Facilities Directorate,NHS LOGISTICS,1014087475,21.54,
Department of Health,Salisbury NHS Foundation Trust,20-Sep-13,FRUIT & VEGETABLES,Facilities Directorate,NHS LOGISTICS,1014087475,29.04,
Department of Health,Salisbury NHS Foundation Trust,20-Sep-13,FRUIT & VEGETABLES,Facilities Directorate,NHS LOGISTICS,1014087475,18.12,
Department of Health,Salisbury NHS Foundation Trust,20-Sep-13,BEVERAGES & AMBIENT FOOD,Facilities Directorate,NHS LOGISTICS,1014087475,3.44,
Department of Health,Salisbury NHS Foundation Trust,20-Sep-13,BEVERAGES & AMBIENT FOOD,Facilities Directorate,NHS LOGISTICS,1014087475,21.08,
Department of Health,Salisbury NHS Foundation Trust,20-Sep-13,BEVERAGES & AMBIENT FOOD,Facilities Directorate,NHS LOGISTICS,1014087475,21.54,
Department of Health,Salisbury NHS Foundation Trust,20-Sep-13,BEVERAGES & AMBIENT FOOD,Facilities Directorate,NHS LOGISTICS,1014087475,8,
Department of Health,Salisbury NHS Foundation Trust,20-Sep-13,BEVERAGES & AMBIENT FOOD,Facilities Directorate,NHS LOGISTICS,1014087475,9.87,
Department of Health,Salisbury NHS Foundation Trust,20-Sep-13,BEVERAGES & AMBIENT FOOD,Facilities Directorate,NHS LOGISTICS,1014087475,24.3,
Department of Health,Salisbury NHS Foundation Trust,20-Sep-13,BEVERAGES & AMBIENT FOOD,Facilities Directorate,NHS LOGISTICS,1014087475,33.12,
Department of Health,Salisbury NHS Foundation Trust,20-Sep-13,BEVERAGES & AMBIENT FOOD,Facilities Directorate,NHS LOGISTICS,1014087475,6.72,
Department of Health,Salisbury NHS Foundation Trust,20-Sep-13,STATIONERY SUNDRIES,Facilities Directorate,NHS LOGISTICS,1014087475,6.67,
Department of Health,Salisbury NHS Foundation Trust,20-Sep-13,FLAVOURINGS HERBS SPICES,Facilities Directorate,NHS LOGISTICS,1014087475,4.68,
Department of Health,Salisbury NHS Foundation Trust,20-Sep-13,BEVERAGES & AMBIENT FOOD,Facilities Directorate,NHS LOGISTICS,1014087475,8.72,
Department of Health,Salisbury NHS Foundation Trust,20-Sep-13,BEVERAGES & AMBIENT FOOD,Facilities Directorate,NHS LOGISTICS,1014087475,11.6,
Department of Health,Salisbury NHS Foundation Trust,20-Sep-13,FLAVOURINGS HERBS SPICES,Facilities Directorate,NHS LOGISTICS,1014087475,2.46,
Department of Health,Salisbury NHS Foundation Trust,20-Sep-13,FLAVOURINGS HERBS SPICES,Facilities Directorate,NHS LOGISTICS,1014087475,2.21,
Department of Health,Salisbury NHS Foundation Trust,20-Sep-13,FLAVOURINGS HERBS SPICES,Facilities Directorate,NHS LOGISTICS,1014087475,1.77,
Department of Health,Salisbury NHS Foundation Trust,20-Sep-13,BEVERAGES & AMBIENT FOOD,Facilities Directorate,NHS LOGISTICS,1014087475,7.74,
Department of Health,Salisbury NHS Foundation Trust,20-Sep-13,BEVERAGES & AMBIENT FOOD,Facilities Directorate,NHS LOGISTICS,1014087475,12.42,
Department of Health,Salisbury NHS Foundation Trust,20-Sep-13,LIQUID REFRESHMENTS,Facilities Directorate,NHS LOGISTICS,1014087475,13.8,
Department of Health,Salisbury NHS Foundation Trust,20-Sep-13,LIQUID REFRESHMENTS,Facilities Directorate,NHS LOGISTICS,1014087475,13.8,
Department of Health,Salisbury NHS Foundation Trust,20-Sep-13,LIQUID REFRESHMENTS,Facilities Directorate,NHS LOGISTICS,1014087475,3.97,
Department of Health,Salisbury NHS Foundation Trust,20-Sep-13,LIQUID REFRESHMENTS,Facilities Directorate,NHS LOGISTICS,1014087475,3.97,
Department of Health,Salisbury NHS Foundation Trust,20-Sep-13,LIQUID REFRESHMENTS,Facilities Directorate,NHS LOGISTICS,1014087475,4.43,
Department of Health,Salisbury NHS Foundation Trust,20-Sep-13,BABY TEXTURE MODIFIED FOODS,Facilities Directorate,NHS LOGISTICS,1014087475,38.65,
Department of Health,Salisbury NHS Foundation Trust,20-Sep-13,DIETETIC FOOD,Facilities Directorate,NHS LOGISTICS,1014087475,13.92,
Department of Health,Salisbury NHS Foundation Trust,20-Sep-13,DIETETIC FOOD,Facilities Directorate,NHS LOGISTICS,1014087475,27.84,
Department of Health,Salisbury NHS Foundation Trust,20-Sep-13,BEVERAGES & AMBIENT FOOD,Facilities Directorate,NHS LOGISTICS,1014087475,30.38,
Department of Health,Salisbury NHS Foundation Trust,20-Sep-13,BEVERAGES & AMBIENT FOOD,Facilities Directorate,NHS LOGISTICS,1014087475,15.2,
Department of Health,Salisbury NHS Foundation Trust,20-Sep-13,BEVERAGES & AMBIENT FOOD,Facilities Directorate,NHS LOGISTICS,1014087475,15.2,
Department of Health,Salisbury NHS Foundation Trust,20-Sep-13,BEVERAGES & AMBIENT FOOD,Facilities Directorate,NHS LOGISTICS,1014087475,69.84,
Department of Health,Salisbury NHS Foundation Trust,20-Sep-13,BEVERAGES & AMBIENT FOOD,Facilities Directorate,NHS LOGISTICS,1014087475,13.2,
Department of Health,Salisbury NHS Foundation Trust,20-Sep-13,TISSUES HAND TOWELS & TOILET PAPER,Facilities Directorate,NHS LOGISTICS,1014087475,10.45,
Department of Health,Salisbury NHS Foundation Trust,20-Sep-13,FRUIT & VEGETABLES,Facilities Directorate,NHS LOGISTICS,1014087475,14.1,
Department of Health,Salisbury NHS Foundation Trust,20-Sep-13,FRUIT & VEGETABLES,Facilities Directorate,NHS LOGISTICS,1014087475,40.8,
Department of Health,Salisbury NHS Foundation Trust,20-Sep-13,PAPER ITEMS GENERAL STATIONERY SUNDRIES,Facilities Directorate,NHS LOGISTICS,1014087475,45.83,
Department of Health,Salisbury NHS Foundation Trust,20-Sep-13,FRUIT & VEGETABLES,Facilities Directorate,NHS LOGISTICS,1014087475,11.1,
Department of Health,Salisbury NHS Foundation Trust,20-Sep-13,BEVERAGES & AMBIENT FOOD,Facilities Directorate,NHS LOGISTICS,1014087475,23.72,
Department of Health,Salisbury NHS Foundation Trust,20-Sep-13,BEVERAGES & AMBIENT FOOD,Facilities Directorate,NHS LOGISTICS,1014087475,8.78,
Department of Health,Salisbury NHS Foundation Trust,20-Sep-13,DRESSINGS  -  PROCEDURE PACKS,Surgery,NHS LOGISTICS,1014087475,1.92,
Department of Health,Salisbury NHS Foundation Trust,20-Sep-13,MEDSURGCONS-SUTURES,Surgery,NHS LOGISTICS,1014087475,139.9,
Department of Health,Salisbury NHS Foundation Trust,20-Sep-13,DISPOSABLE THEATRE DRAPES WIPES,Surgery,NHS LOGISTICS,1014087475,4.8,
Department of Health,Salisbury NHS Foundation Trust,20-Sep-13,MEDSURGCONS - OTHER,Surgery,NHS LOGISTICS,1014087475,49.24,
Department of Health,Salisbury NHS Foundation Trust,20-Sep-13,MEDSURGCONS - OTHER,Critical care,NHS LOGISTICS,1014087475,398.92,
Department of Health,Salisbury NHS Foundation Trust,20-Sep-13,OTHER MEDICAL SUPPLIES,Clinical Support and Family Services,NHS LOGISTICS,1014087475,94.78,
Department of Health,Salisbury NHS Foundation Trust,20-Sep-13,PATIENT APPLIANCES,Critical care,NHS LOGISTICS,1014087475,76.05,
Department of Health,Salisbury NHS Foundation Trust,20-Sep-13,M & S EQUIPELECTEQUIPINST - OTHER,Critical care,NHS LOGISTICS,1014087475,55.2,
Department of Health,Salisbury NHS Foundation Trust,20-Sep-13,COOKING & KITCHEN UTENSILS,Facilities Directorate,NHS LOGISTICS,1014087475,19.73,
Department of Health,Salisbury NHS Foundation Trust,20-Sep-13,M & S EQUIPELECTEQUIPINST - OTHER,Surgery,NHS LOGISTICS,1014087475,68.26,
Department of Health,Salisbury NHS Foundation Trust,20-Sep-13,DRESSINGS - PRE STERILE,Clinical Support and Family Services,NHS LOGISTICS,1014087475,0.59,
Department of Health,Salisbury NHS Foundation Trust,20-Sep-13,DRESSINGS - PRE STERILE,Facilities Directorate,NHS LOGISTICS,1014087475,0.45,
Department of Health,Salisbury NHS Foundation Trust,20-Sep-13,DRESSINGS  -  PROCEDURE PACKS,Clinical Support and Family Services,NHS LOGISTICS,1014087475,14.43,
Department of Health,Salisbury NHS Foundation Trust,20-Sep-13,STATIONERY SUNDRIES,Critical care,NHS LOGISTICS,1014087475,3.82,
Department of Health,Salisbury NHS Foundation Trust,20-Sep-13,ADULTS HEARING AIDS,Surgery,NHS LOGISTICS,1014087475,209.05,
Department of Health,Salisbury NHS Foundation Trust,20-Sep-13,PATIENT APPLIANCES,Surgery,NHS LOGISTICS,1014087475,3.32,
Department of Health,Salisbury NHS Foundation Trust,20-Sep-13,PATIENT APPLIANCES,Critical care,NHS LOGISTICS,1014087475,4.26,
Department of Health,Salisbury NHS Foundation Trust,20-Sep-13,STATIONERY SUNDRIES,Clinical Support and Family Services,NHS LOGISTICS,1014087475,0.34,
Department of Health,Salisbury NHS Foundation Trust,20-Sep-13,ELECTRICAL EQUIPMENT x,Clinical Support and Family Services,NHS LOGISTICS,1014087475,0.67,
Department of Health,Salisbury NHS Foundation Trust,20-Sep-13,STATIONERY SUNDRIES,Clinical Support and Family Services,NHS LOGISTICS,1014087475,0.83,
Department of Health,Salisbury NHS Foundation Trust,20-Sep-13,PAPER ITEMS GENERAL STATIONERY SUNDRIES,Clinical Support and Family Services,NHS LOGISTICS,1014087475,18.87,
Department of Health,Salisbury NHS Foundation Trust,20-Sep-13,TISSUES HAND TOWELS & TOILET PAPER,Clinical Support and Family Services,NHS LOGISTICS,1014087475,2.18,
Department of Health,Salisbury NHS Foundation Trust,20-Sep-13,TISSUES HAND TOWELS & TOILET PAPER,Clinical Support and Family Services,NHS LOGISTICS,1014087475,4.92,
Department of Health,Salisbury NHS Foundation Trust,20-Sep-13,PAPER ITEMS GENERAL STATIONERY SUNDRIES,Clinical Support and Family Services,NHS LOGISTICS,1014087475,1.23,
Department of Health,Salisbury NHS Foundation Trust,20-Sep-13,PAPER ITEMS GENERAL STATIONERY SUNDRIES,Corporate Directorate,NHS LOGISTICS,1014087475,0.06,
Department of Health,Salisbury NHS Foundation Trust,20-Sep-13,COOKING & KITCHEN UTENSILS,Corporate Directorate,NHS LOGISTICS,1014087475,2.38,
Department of Health,Salisbury NHS Foundation Trust,20-Sep-13,PAPER ITEMS GENERAL STATIONERY SUNDRIES,Surgery,NHS LOGISTICS,1014087475,4.49,
Department of Health,Salisbury NHS Foundation Trust,20-Sep-13,PAPER ITEMS GENERAL STATIONERY SUNDRIES,Surgery,NHS LOGISTICS,1014087475,3.93,
Department of Health,Salisbury NHS Foundation Trust,20-Sep-13,PAPER ITEMS GENERAL STATIONERY SUNDRIES,Corporate Directorate,NHS LOGISTICS,1014087475,6.13,
Department of Health,Salisbury NHS Foundation Trust,20-Sep-13,PAPER ITEMS GENERAL STATIONERY SUNDRIES,Corporate Directorate,NHS LOGISTICS,1014087475,6.5,
Department of Health,Salisbury NHS Foundation Trust,20-Sep-13,PAPER ITEMS GENERAL STATIONERY SUNDRIES,Corporate Directorate,NHS LOGISTICS,1014087475,3.8,
Department of Health,Salisbury NHS Foundation Trust,20-Sep-13,PAPER ITEMS GENERAL STATIONERY SUNDRIES,Corporate Directorate,NHS LOGISTICS,1014087475,7.6,
Department of Health,Salisbury NHS Foundation Trust,20-Sep-13,PAPER ITEMS GENERAL STATIONERY SUNDRIES,Corporate Directorate,NHS LOGISTICS,1014087475,6.5,
Department of Health,Salisbury NHS Foundation Trust,20-Sep-13,PAPER ITEMS GENERAL STATIONERY SUNDRIES,Corporate Directorate,NHS LOGISTICS,1014087475,5.83,
Department of Health,Salisbury NHS Foundation Trust,20-Sep-13,PAPER ITEMS GENERAL STATIONERY SUNDRIES,Corporate Directorate,NHS LOGISTICS,1014087475,5.83,
Department of Health,Salisbury NHS Foundation Trust,20-Sep-13,STATIONERY SUNDRIES,Corporate Directorate,NHS LOGISTICS,1014087475,1.8,
Department of Health,Salisbury NHS Foundation Trust,20-Sep-13,PAPER ITEMS GENERAL STATIONERY SUNDRIES,Corporate Directorate,NHS LOGISTICS,1014087475,0.47,
Department of Health,Salisbury NHS Foundation Trust,20-Sep-13,STATIONERY SUNDRIES,Corporate Directorate,NHS LOGISTICS,1014087475,2.38,
Department of Health,Salisbury NHS Foundation Trust,20-Sep-13,PAPER ITEMS GENERAL STATIONERY SUNDRIES,Corporate Directorate,NHS LOGISTICS,1014087475,1.9,
Department of Health,Salisbury NHS Foundation Trust,20-Sep-13,PAPER ITEMS GENERAL STATIONERY SUNDRIES,Corporate Directorate,NHS LOGISTICS,1014087475,4.39,
Department of Health,Salisbury NHS Foundation Trust,20-Sep-13,STATIONERY SUNDRIES,Corporate Directorate,NHS LOGISTICS,1014087475,0.21,
Department of Health,Salisbury NHS Foundation Trust,20-Sep-13,STATIONERY SUNDRIES,Corporate Directorate,NHS LOGISTICS,1014087475,0.21,
Department of Health,Salisbury NHS Foundation Trust,20-Sep-13,STATIONERY SUNDRIES,Corporate Directorate,NHS LOGISTICS,1014087475,0.21,
Department of Health,Salisbury NHS Foundation Trust,20-Sep-13,STATIONERY SUNDRIES,Corporate Directorate,NHS LOGISTICS,1014087475,0.8,
Department of Health,Salisbury NHS Foundation Trust,20-Sep-13,STATIONERY SUNDRIES,Corporate Directorate,NHS LOGISTICS,1014087475,0.1,
Department of Health,Salisbury NHS Foundation Trust,20-Sep-13,PAPER ITEMS GENERAL STATIONERY SUNDRIES,Surgery,NHS LOGISTICS,1014087475,0.61,
Department of Health,Salisbury NHS Foundation Trust,20-Sep-13,PAPER ITEMS GENERAL STATIONERY SUNDRIES,Surgery,NHS LOGISTICS,1014087475,2.09,
Department of Health,Salisbury NHS Foundation Trust,20-Sep-13,PAPER ITEMS GENERAL STATIONERY SUNDRIES,Medicine,NHS LOGISTICS,1014087475,0.16,
Department of Health,Salisbury NHS Foundation Trust,20-Sep-13,PAPER ITEMS GENERAL STATIONERY SUNDRIES,Medicine,NHS LOGISTICS,1014087475,0.73,
Department of Health,Salisbury NHS Foundation Trust,20-Sep-13,DRESSINGS - PRE STERILE,Critical care,NHS LOGISTICS,1014087475,4.56,
Department of Health,Salisbury NHS Foundation Trust,20-Sep-13,TISSUES HAND TOWELS & TOILET PAPER,Clinical Support and Family Services,NHS LOGISTICS,1014087475,8.36,
Department of Health,Salisbury NHS Foundation Trust,20-Sep-13,TISSUES HAND TOWELS & TOILET PAPER,Clinical Support and Family Services,NHS LOGISTICS,1014087475,0.92,
Department of Health,Salisbury NHS Foundation Trust,20-Sep-13,DRESSINGS  -  PROCEDURE PACKS,Clinical Support and Family Services,NHS LOGISTICS,1014087475,2.17,
Department of Health,Salisbury NHS Foundation Trust,20-Sep-13,STATIONERY SUNDRIES,Surgery,NHS LOGISTICS,1014087475,0.43,
Department of Health,Salisbury NHS Foundation Trust,20-Sep-13,STATIONERY SUNDRIES,Surgery,NHS LOGISTICS,1014087475,0.37,
Department of Health,Salisbury NHS Foundation Trust,20-Sep-13,DISPOSABLE THEATRE DRAPES WIPES,Clinical Effctiveness Directorate,NHS LOGISTICS,1014087475,0.27,
Department of Health,Salisbury NHS Foundation Trust,20-Sep-13,DISPOSABLE THEATRE DRAPES WIPES,Clinical Effctiveness Directorate,NHS LOGISTICS,1014087475,0.45,
Department of Health,Salisbury NHS Foundation Trust,20-Sep-13,STATIONERY SUNDRIES,Surgery,NHS LOGISTICS,1014087475,0.38,
Department of Health,Salisbury NHS Foundation Trust,20-Sep-13,SURGICAL INSTRUMENTS: GENERAL,Surgery,NHS LOGISTICS,1014087475,34.65,
Department of Health,Salisbury NHS Foundation Trust,20-Sep-13,OTHER MEDICAL SUPPLIES,Surgery,NHS LOGISTICS,1014087475,13.11,
Department of Health,Salisbury NHS Foundation Trust,20-Sep-13,OTHER MEDICAL SUPPLIES,Surgery,NHS LOGISTICS,1014087475,13.11,
Department of Health,Salisbury NHS Foundation Trust,20-Sep-13,OTHER MEDICAL SUPPLIES,Surgery,NHS LOGISTICS,1014087475,13.11,
Department of Health,Salisbury NHS Foundation Trust,20-Sep-13,LAB EQUIP-LABORATORY APPARATUS,Surgery,NHS LOGISTICS,1014087475,4.19,
Department of Health,Salisbury NHS Foundation Trust,20-Sep-13,DISPOSABLE THEATRE DRAPES WIPES,Clinical Support and Family Services,NHS LOGISTICS,1014087475,5.03,
Department of Health,Salisbury NHS Foundation Trust,20-Sep-13,STATIONERY SUNDRIES,Clinical Support and Family Services,NHS LOGISTICS,1014087475,0.38,
Department of Health,Salisbury NHS Foundation Trust,20-Sep-13,HARD/SOFTWARE-COMPUTER CONSUMABLE (EXCLUDING PAPER),Surgery,NHS LOGISTICS,1014087475,12.77,
Department of Health,Salisbury NHS Foundation Trust,20-Sep-13,STATIONERY SUNDRIES,Surgery,NHS LOGISTICS,1014087475,0.08,
Department of Health,Salisbury NHS Foundation Trust,20-Sep-13,STATIONERY SUNDRIES,Surgery,NHS LOGISTICS,1014087475,0.79,
Department of Health,Salisbury NHS Foundation Trust,20-Sep-13,PAPER ITEMS GENERAL STATIONERY SUNDRIES,Clinical Support and Family Services,NHS LOGISTICS,1014087475,3.9,
Department of Health,Salisbury NHS Foundation Trust,20-Sep-13,STATIONERY SUNDRIES,Clinical Effctiveness Directorate,NHS LOGISTICS,1014087475,0.03,
Department of Health,Salisbury NHS Foundation Trust,20-Sep-13,CLEANING MATERIALS PRODUCTS SUNDRIES,Critical care,NHS LOGISTICS,1014087475,2.6,
Department of Health,Salisbury NHS Foundation Trust,20-Sep-13,PAPER ITEMS GENERAL STATIONERY SUNDRIES,Medicine,NHS LOGISTICS,1014087475,0.6,
Department of Health,Salisbury NHS Foundation Trust,20-Sep-13,PAPER ITEMS GENERAL STATIONERY SUNDRIES,Medicine,NHS LOGISTICS,1014087475,1.78,
Department of Health,Salisbury NHS Foundation Trust,20-Sep-13,STATIONERY SUNDRIES,Clinical Effctiveness Directorate,NHS LOGISTICS,1014087475,0.01,
Department of Health,Salisbury NHS Foundation Trust,20-Sep-13,PAPER ITEMS GENERAL STATIONERY SUNDRIES,Clinical Effctiveness Directorate,NHS LOGISTICS,1014087475,1.62,
Department of Health,Salisbury NHS Foundation Trust,20-Sep-13,PAPER ITEMS GENERAL STATIONERY SUNDRIES,Clinical Effctiveness Directorate,NHS LOGISTICS,1014087475,2.36,
Department of Health,Salisbury NHS Foundation Trust,20-Sep-13,STATIONERY SUNDRIES,Clinical Effctiveness Directorate,NHS LOGISTICS,1014087475,0.4,
Department of Health,Salisbury NHS Foundation Trust,20-Sep-13,TOILETRIES PERSONAL HYGIENE PRODUCTS,Clinical Support and Family Services,NHS LOGISTICS,1014087475,9.32,
Department of Health,Salisbury NHS Foundation Trust,20-Sep-13,TOILETRIES PERSONAL HYGIENE PRODUCTS,Clinical Support and Family Services,NHS LOGISTICS,1014087475,7.29,
Department of Health,Salisbury NHS Foundation Trust,20-Sep-13,ELECTRICAL EQUIPMENT x,Medicine,NHS LOGISTICS,1014087475,1,
Department of Health,Salisbury NHS Foundation Trust,20-Sep-13,ELECTRICAL EQUIPMENT x,Medicine,NHS LOGISTICS,1014087475,0.27,
Department of Health,Salisbury NHS Foundation Trust,20-Sep-13,ELECTRICAL EQUIPMENT x,Medicine,NHS LOGISTICS,1014087475,1.57,
Department of Health,Salisbury NHS Foundation Trust,20-Sep-13,ELECTRICAL EQUIPMENT x,Medicine,NHS LOGISTICS,1014087475,0.55,
Department of Health,Salisbury NHS Foundation Trust,20-Sep-13,STATIONERY SUNDRIES,Medicine,NHS LOGISTICS,1014087475,0.55,
Department of Health,Salisbury NHS Foundation Trust,20-Sep-13,STATIONERY SUNDRIES,Medicine,NHS LOGISTICS,1014087475,0.92,
Department of Health,Salisbury NHS Foundation Trust,20-Sep-13,STATIONERY SUNDRIES,Medicine,NHS LOGISTICS,1014087475,0.55,
Department of Health,Salisbury NHS Foundation Trust,20-Sep-13,STATIONERY SUNDRIES,Medicine,NHS LOGISTICS,1014087475,1.21,
Department of Health,Salisbury NHS Foundation Trust,20-Sep-13,STATIONERY SUNDRIES,Medicine,NHS LOGISTICS,1014087475,2.29,
Department of Health,Salisbury NHS Foundation Trust,20-Sep-13,M & S EQUIPELECTEQUIPINST - OTHER,Surgery,NHS LOGISTICS,1014087475,70.34,
Department of Health,Salisbury NHS Foundation Trust,20-Sep-13,PAPER ITEMS GENERAL STATIONERY SUNDRIES,Surgery,NHS LOGISTICS,1014087475,9.81,
Department of Health,Salisbury NHS Foundation Trust,20-Sep-13,HEALTHCARE - WEAR,Clinical Support and Family Services,NHS LOGISTICS,1014087475,33.78,
Department of Health,Salisbury NHS Foundation Trust,20-Sep-13,HEALTHCARE - WEAR,Clinical Support and Family Services,NHS LOGISTICS,1014087475,17.07,
Department of Health,Salisbury NHS Foundation Trust,20-Sep-13,PATIENT APPLIANCES,Medicine,NHS LOGISTICS,1014087475,1.3,
Department of Health,Salisbury NHS Foundation Trust,20-Sep-13,PATIENT APPLIANCES,Medicine,NHS LOGISTICS,1014087475,2.43,
Department of Health,Salisbury NHS Foundation Trust,20-Sep-13,PATIENT APPLIANCES,Medicine,NHS LOGISTICS,1014087475,2.43,
Department of Health,Salisbury NHS Foundation Trust,20-Sep-13,PAPER ITEMS GENERAL STATIONERY SUNDRIES,Clinical Support and Family Services,NHS LOGISTICS,1014087475,3.17,
Department of Health,Salisbury NHS Foundation Trust,20-Sep-13,PAPER ITEMS GENERAL STATIONERY SUNDRIES,Clinical Support and Family Services,NHS LOGISTICS,1014087475,18.87,
Department of Health,Salisbury NHS Foundation Trust,20-Sep-13,MEDSURGCONS-SUTURES,Clinical Support and Family Services,NHS LOGISTICS,1014087475,26.68,
Department of Health,Salisbury NHS Foundation Trust,20-Sep-13,STATIONERY SUNDRIES,Corporate Directorate,NHS LOGISTICS,1014087475,0.3,
Department of Health,Salisbury NHS Foundation Trust,20-Sep-13,PAPER ITEMS GENERAL STATIONERY SUNDRIES,Surgery,NHS LOGISTICS,1014087475,1.49,
Department of Health,Salisbury NHS Foundation Trust,20-Sep-13,STATIONERY SUNDRIES,Surgery,NHS LOGISTICS,1014087475,0.83,
Department of Health,Salisbury NHS Foundation Trust,20-Sep-13,STATIONERY SUNDRIES,Surgery,NHS LOGISTICS,1014087475,0.79,
Department of Health,Salisbury NHS Foundation Trust,20-Sep-13,STATIONERY SUNDRIES,Surgery,NHS LOGISTICS,1014087475,0.74,
Department of Health,Salisbury NHS Foundation Trust,20-Sep-13,DRESSINGS  -  PROCEDURE PACKS,Surgery,NHS LOGISTICS,1014087475,1.21,
Department of Health,Salisbury NHS Foundation Trust,20-Sep-13,ANAESTHETIC EQUIPMENT ACCESSORIES,Surgery,NHS LOGISTICS,1014087475,1.2,
Department of Health,Salisbury NHS Foundation Trust,20-Sep-13,ANAESTHETIC EQUIPMENT ACCESSORIES,Surgery,NHS LOGISTICS,1014087475,1.3,
Department of Health,Salisbury NHS Foundation Trust,20-Sep-13,TISSUES HAND TOWELS & TOILET PAPER,Surgery,NHS LOGISTICS,1014087475,1.5,
Department of Health,Salisbury NHS Foundation Trust,20-Sep-13,OTHER MEDICAL SUPPLIES,Surgery,NHS LOGISTICS,1014087475,4.44,
Department of Health,Salisbury NHS Foundation Trust,20-Sep-13,OTHER MEDICAL SUPPLIES,Surgery,NHS LOGISTICS,1014087475,7.36,
Department of Health,Salisbury NHS Foundation Trust,20-Sep-13,OTHER MEDICAL SUPPLIES,Surgery,NHS LOGISTICS,1014087475,6.21,
Department of Health,Salisbury NHS Foundation Trust,20-Sep-13,MEDSURGCONS - OTHER,Surgery,NHS LOGISTICS,1014087475,6.82,
Department of Health,Salisbury NHS Foundation Trust,20-Sep-13,DISPOSABLE THEATRE DRAPES WIPES,Surgery,NHS LOGISTICS,1014087475,4.54,
Department of Health,Salisbury NHS Foundation Trust,20-Sep-13,OTHER MEDICAL SUPPLIES,Clinical Support and Family Services,NHS LOGISTICS,1014087475,2.85,
Department of Health,Salisbury NHS Foundation Trust,20-Sep-13,MEDSURGCONS - OTHER,Clinical Support and Family Services,NHS LOGISTICS,1014087475,2.36,
Department of Health,Salisbury NHS Foundation Trust,20-Sep-13,MEDSURGCONS - OTHER,Clinical Support and Family Services,NHS LOGISTICS,1014087475,0.78,
Department of Health,Salisbury NHS Foundation Trust,20-Sep-13,PAPER ITEMS GENERAL STATIONERY SUNDRIES,Clinical Support and Family Services,NHS LOGISTICS,1014087475,2.92,
Department of Health,Salisbury NHS Foundation Trust,20-Sep-13,STATIONERY SUNDRIES,Clinical Support and Family Services,NHS LOGISTICS,1014087475,3.55,
Department of Health,Salisbury NHS Foundation Trust,20-Sep-13,STATIONERY SUNDRIES,Clinical Support and Family Services,NHS LOGISTICS,1014087475,3.24,
Department of Health,Salisbury NHS Foundation Trust,20-Sep-13,MEDSURGCONS - OTHER,Clinical Support and Family Services,NHS LOGISTICS,1014087475,5.32,
Department of Health,Salisbury NHS Foundation Trust,20-Sep-13,NON DISPOSABLE BED LINEN,Clinical Support and Family Services,NHS LOGISTICS,1014087475,2.97,
Department of Health,Salisbury NHS Foundation Trust,20-Sep-13,OTHER MEDICAL SUPPLIES,Clinical Support and Family Services,NHS LOGISTICS,1014087475,3.31,
Department of Health,Salisbury NHS Foundation Trust,20-Sep-13,MEDSURGCONS - OTHER,Surgery,NHS LOGISTICS,1014087475,8.4,
Department of Health,Salisbury NHS Foundation Trust,20-Sep-13,LAB EQUIP-LABORATORY APPARATUS,Clinical Support and Family Services,NHS LOGISTICS,1014087475,12.1,
Department of Health,Salisbury NHS Foundation Trust,20-Sep-13,LAB EQUIP-LABORATORY APPARATUS,Clinical Support and Family Services,NHS LOGISTICS,1014087475,70.5,
Department of Health,Salisbury NHS Foundation Trust,20-Sep-13,LAB EQUIP-LABORATORY APPARATUS,Clinical Support and Family Services,NHS LOGISTICS,1014087475,5.64,
Department of Health,Salisbury NHS Foundation Trust,20-Sep-13,LAB EQUIP-LABORATORY APPARATUS,Clinical Support and Family Services,NHS LOGISTICS,1014087475,23.77,
Department of Health,Salisbury NHS Foundation Trust,20-Sep-13,LAB EQUIP-LABORATORY APPARATUS,Clinical Support and Family Services,NHS LOGISTICS,1014087475,259.47,
Department of Health,Salisbury NHS Foundation Trust,20-Sep-13,LAB EQUIP-LABORATORY APPARATUS,Clinical Support and Family Services,NHS LOGISTICS,1014087475,14.71,
Department of Health,Salisbury NHS Foundation Trust,20-Sep-13,LAB EQUIP-LABORATORY APPARATUS,Clinical Support and Family Services,NHS LOGISTICS,1014087475,36.85,
Department of Health,Salisbury NHS Foundation Trust,20-Sep-13,LAB EQUIP-LABORATORY APPARATUS,Clinical Support and Family Services,NHS LOGISTICS,1014087475,71.17,
Department of Health,Salisbury NHS Foundation Trust,20-Sep-13,TISSUES HAND TOWELS & TOILET PAPER,Clinical Support and Family Services,NHS LOGISTICS,1014087475,4.02,
Department of Health,Salisbury NHS Foundation Trust,20-Sep-13,LAB EQUIP-LABORATORY APPARATUS,Clinical Support and Family Services,NHS LOGISTICS,1014087475,20.55,
Department of Health,Salisbury NHS Foundation Trust,20-Sep-13,OTHER MEDICAL SUPPLIES,Clinical Support and Family Services,NHS LOGISTICS,1014087475,145.07,
Department of Health,Salisbury NHS Foundation Trust,20-Sep-13,OTHER MEDICAL SUPPLIES,Clinical Support and Family Services,NHS LOGISTICS,1014087475,40.06,
Department of Health,Salisbury NHS Foundation Trust,20-Sep-13,DISPOSABLE THEATRE DRAPES WIPES,Clinical Support and Family Services,NHS LOGISTICS,1014087475,2.49,
Department of Health,Salisbury NHS Foundation Trust,20-Sep-13,STATIONERY SUNDRIES,Human Resources,NHS LOGISTICS,1014087475,0.65,
Department of Health,Salisbury NHS Foundation Trust,20-Sep-13,TOILETRIES PERSONAL HYGIENE PRODUCTS,Human Resources,NHS LOGISTICS,1014087475,2.3,
Department of Health,Salisbury NHS Foundation Trust,20-Sep-13,TISSUES HAND TOWELS & TOILET PAPER,Human Resources,NHS LOGISTICS,1014087475,0.92,
Department of Health,Salisbury NHS Foundation Trust,20-Sep-13,STATIONERY SUNDRIES,Human Resources,NHS LOGISTICS,1014087475,1.32,
Department of Health,Salisbury NHS Foundation Trust,20-Sep-13,STATIONERY SUNDRIES,Human Resources,NHS LOGISTICS,1014087475,0.29,
Department of Health,Salisbury NHS Foundation Trust,20-Sep-13,STATIONERY SUNDRIES,Human Resources,NHS LOGISTICS,1014087475,0.04,
Department of Health,Salisbury NHS Foundation Trust,20-Sep-13,DISPOSABLE THEATRE DRAPES WIPES,Human Resources,NHS LOGISTICS,1014087475,3.79,
Department of Health,Salisbury NHS Foundation Trust,20-Sep-13,OTHER MEDICAL SUPPLIES,Medicine,NHS LOGISTICS,1014087475,1.77,
Department of Health,Salisbury NHS Foundation Trust,20-Sep-13,TISSUES HAND TOWELS & TOILET PAPER,Medicine,NHS LOGISTICS,1014087475,0.36,
Department of Health,Salisbury NHS Foundation Trust,20-Sep-13,PATIENTS INCONTINENCE,Medicine,NHS LOGISTICS,1014087475,0.37,
Department of Health,Salisbury NHS Foundation Trust,20-Sep-13,PATIENTS INCONTINENCE,Medicine,NHS LOGISTICS,1014087475,8.08,
Department of Health,Salisbury NHS Foundation Trust,20-Sep-13,OTHER MEDICAL SUPPLIES,Medicine,NHS LOGISTICS,1014087475,2.65,
Department of Health,Salisbury NHS Foundation Trust,20-Sep-13,PATIENTS INCONTINENCE,Medicine,NHS LOGISTICS,1014087475,0.68,
Department of Health,Salisbury NHS Foundation Trust,20-Sep-13,MEDSURGCONS - OTHER,Medicine,NHS LOGISTICS,1014087475,0.93,
Department of Health,Salisbury NHS Foundation Trust,20-Sep-13,PATIENTS INCONTINENCE,Medicine,NHS LOGISTICS,1014087475,1.11,
Department of Health,Salisbury NHS Foundation Trust,20-Sep-13,PATIENTS INCONTINENCE,Medicine,NHS LOGISTICS,1014087475,16.16,
Department of Health,Salisbury NHS Foundation Trust,20-Sep-13,PATIENTS INCONTINENCE,Medicine,NHS LOGISTICS,1014087475,0.73,
Department of Health,Salisbury NHS Foundation Trust,20-Sep-13,PATIENTS INCONTINENCE,Medicine,NHS LOGISTICS,1014087475,0.86,
Department of Health,Salisbury NHS Foundation Trust,20-Sep-13,LAB EQUIP-LABORATORY APPARATUS,Medicine,NHS LOGISTICS,1014087475,0.45,
Department of Health,Salisbury NHS Foundation Trust,20-Sep-13,NON DISPOSABLE BED LINEN,Medicine,NHS LOGISTICS,1014087475,4.35,
Department of Health,Salisbury NHS Foundation Trust,20-Sep-13,OTHER MEDICAL SUPPLIES,Medicine,NHS LOGISTICS,1014087475,3.31,
Department of Health,Salisbury NHS Foundation Trust,20-Sep-13,PATIENTS INCONTINENCE,Medicine,NHS LOGISTICS,1014087475,0.73,
Department of Health,Salisbury NHS Foundation Trust,20-Sep-13,NON DISPOSABLE BED LINEN,Medicine,NHS LOGISTICS,1014087475,4.35,
Department of Health,Salisbury NHS Foundation Trust,20-Sep-13,BAGS SACKS - OTHER,Facilities Directorate,NHS LOGISTICS,1014087475,12.66,
Department of Health,Salisbury NHS Foundation Trust,20-Sep-13,BAGS SACKS - OTHER,Facilities Directorate,NHS LOGISTICS,1014087475,70,
Department of Health,Salisbury NHS Foundation Trust,20-Sep-13,CLEANING MATERIALS PRODUCTS SUNDRIES,Facilities Directorate,NHS LOGISTICS,1014087475,6.6,
Department of Health,Salisbury NHS Foundation Trust,20-Sep-13,CLEANING MATERIALS PRODUCTS SUNDRIES,Facilities Directorate,NHS LOGISTICS,1014087475,6.6,
Department of Health,Salisbury NHS Foundation Trust,20-Sep-13,CLEANING MATERIALS PRODUCTS SUNDRIES,Facilities Directorate,NHS LOGISTICS,1014087475,13.2,
Department of Health,Salisbury NHS Foundation Trust,20-Sep-13,CLEANING MATERIALS PRODUCTS SUNDRIES,Facilities Directorate,NHS LOGISTICS,1014087475,12.8,
Department of Health,Salisbury NHS Foundation Trust,20-Sep-13,CLEANING MATERIALS PRODUCTS SUNDRIES,Facilities Directorate,NHS LOGISTICS,1014087475,1.98,
Department of Health,Salisbury NHS Foundation Trust,20-Sep-13,CLEANING MATERIALS PRODUCTS SUNDRIES,Facilities Directorate,NHS LOGISTICS,1014087475,18.56,
Department of Health,Salisbury NHS Foundation Trust,20-Sep-13,CLEANING MATERIALS PRODUCTS SUNDRIES,Facilities Directorate,NHS LOGISTICS,1014087475,1.35,
Department of Health,Salisbury NHS Foundation Trust,20-Sep-13,PAPER ITEMS GENERAL STATIONERY SUNDRIES,Critical care,NHS LOGISTICS,1014087475,2.55,
Department of Health,Salisbury NHS Foundation Trust,20-Sep-13,OTHER MEDICAL SUPPLIES,Medicine,NHS LOGISTICS,1014087475,0.88,
Department of Health,Salisbury NHS Foundation Trust,20-Sep-13,TISSUES HAND TOWELS & TOILET PAPER,Medicine,NHS LOGISTICS,1014087475,0.18,
Department of Health,Salisbury NHS Foundation Trust,20-Sep-13,MEDSURGCONS - OTHER,Medicine,NHS LOGISTICS,1014087475,0.93,
Department of Health,Salisbury NHS Foundation Trust,20-Sep-13,MEDSURGCONS - OTHER,Medicine,NHS LOGISTICS,1014087475,0.93,
Department of Health,Salisbury NHS Foundation Trust,20-Sep-13,MEDSURGCONS - OTHER,Medicine,NHS LOGISTICS,1014087475,0.93,
Department of Health,Salisbury NHS Foundation Trust,20-Sep-13,MEDSURGCONS - OTHER,Medicine,NHS LOGISTICS,1014087475,0.23,
Department of Health,Salisbury NHS Foundation Trust,20-Sep-13,NON DISPOSABLE BED LINEN,Medicine,NHS LOGISTICS,1014087475,2.24,
Department of Health,Salisbury NHS Foundation Trust,20-Sep-13,TISSUES HAND TOWELS & TOILET PAPER,Medicine,NHS LOGISTICS,1014087475,0.18,
Department of Health,Salisbury NHS Foundation Trust,20-Sep-13,MEDSURGCONS - OTHER,Medicine,NHS LOGISTICS,1014087475,0.94,
Department of Health,Salisbury NHS Foundation Trust,20-Sep-13,OTHER MEDICAL SUPPLIES,Medicine,NHS LOGISTICS,1014087475,0.35,
Department of Health,Salisbury NHS Foundation Trust,20-Sep-13,MEDSURGCONS - OTHER,Medicine,NHS LOGISTICS,1014087475,1.76,
Department of Health,Salisbury NHS Foundation Trust,20-Sep-13,MEDSURGCONS-SUTURES,Medicine,NHS LOGISTICS,1014087475,5.34,
Department of Health,Salisbury NHS Foundation Trust,20-Sep-13,NON DISPOSABLE BED LINEN,Medicine,NHS LOGISTICS,1014087475,2.24,
Department of Health,Salisbury NHS Foundation Trust,20-Sep-13,OTHER MEDICAL SUPPLIES,Medicine,NHS LOGISTICS,1014087475,4.42,
Department of Health,Salisbury NHS Foundation Trust,20-Sep-13,TISSUES HAND TOWELS & TOILET PAPER,Medicine,NHS LOGISTICS,1014087475,0.36,
Department of Health,Salisbury NHS Foundation Trust,20-Sep-13,MED SURG EQUIP REP MAINT CLEANING,Medicine,NHS LOGISTICS,1014087475,3.45,
Department of Health,Salisbury NHS Foundation Trust,20-Sep-13,PATIENTS INCONTINENCE,Medicine,NHS LOGISTICS,1014087475,4.04,
Department of Health,Salisbury NHS Foundation Trust,20-Sep-13,DRESSINGS - PRE STERILE,Medicine,NHS LOGISTICS,1014087475,0.09,
Department of Health,Salisbury NHS Foundation Trust,20-Sep-13,TISSUES HAND TOWELS & TOILET PAPER,Medicine,NHS LOGISTICS,1014087475,0.07,
Department of Health,Salisbury NHS Foundation Trust,20-Sep-13,DRESSINGS - PRE STERILE,Medicine,NHS LOGISTICS,1014087475,5.9,
Department of Health,Salisbury NHS Foundation Trust,20-Sep-13,TISSUES HAND TOWELS & TOILET PAPER,Medicine,NHS LOGISTICS,1014087475,1.09,
Department of Health,Salisbury NHS Foundation Trust,20-Sep-13,DRESSINGS - PRE STERILE,Medicine,NHS LOGISTICS,1014087475,3.22,
Department of Health,Salisbury NHS Foundation Trust,20-Sep-13,STATIONERY SUNDRIES,Directorate of Operations,NHS LOGISTICS,1014087475,0.92,
Department of Health,Salisbury NHS Foundation Trust,20-Sep-13,STATIONERY SUNDRIES,Directorate of Operations,NHS LOGISTICS,1014087475,0.4,
Department of Health,Salisbury NHS Foundation Trust,20-Sep-13,MEDSURGCONS-SUTURES,Medicine,NHS LOGISTICS,1014087475,8.76,
Department of Health,Salisbury NHS Foundation Trust,20-Sep-13,MEDSURGCONS-SUTURES,Medicine,NHS LOGISTICS,1014087475,8.02,
Department of Health,Salisbury NHS Foundation Trust,20-Sep-13,MEDSURGCONS-SUTURES,Medicine,NHS LOGISTICS,1014087475,15.99,
Department of Health,Salisbury NHS Foundation Trust,20-Sep-13,MEDSURGCONS-SUTURES,Medicine,NHS LOGISTICS,1014087475,15.41,
Department of Health,Salisbury NHS Foundation Trust,20-Sep-13,PATIENTS INCONTINENCE,Medicine,NHS LOGISTICS,1014087475,1.44,
Department of Health,Salisbury NHS Foundation Trust,20-Sep-13,COOKING & KITCHEN UTENSILS,Surgery,NHS LOGISTICS,1014087475,3.29,
Department of Health,Salisbury NHS Foundation Trust,20-Sep-13,NON DISPOSABLE THEATRE DRAPES WIPES,Surgery,NHS LOGISTICS,1014087475,8.35,
Department of Health,Salisbury NHS Foundation Trust,20-Sep-13,DRESSINGS - PRE STERILE,Surgery,NHS LOGISTICS,1014087475,5.87,
Department of Health,Salisbury NHS Foundation Trust,20-Sep-13,PATIENTS INCONTINENCE,Medicine,NHS LOGISTICS,1014087475,0.73,
Department of Health,Salisbury NHS Foundation Trust,20-Sep-13,MEDSURGCONS - OTHER,Medicine,NHS LOGISTICS,1014087475,3.58,
Department of Health,Salisbury NHS Foundation Trust,20-Sep-13,SURGICAL INSTRUMENTS: GENERAL,Medicine,NHS LOGISTICS,1014087475,0.16,
Department of Health,Salisbury NHS Foundation Trust,20-Sep-13,NON DISPOSABLE BED LINEN,Medicine,NHS LOGISTICS,1014087475,2.24,
Department of Health,Salisbury NHS Foundation Trust,20-Sep-13,STATIONERY SUNDRIES,Surgery,NHS LOGISTICS,1014087475,0.37,
Department of Health,Salisbury NHS Foundation Trust,20-Sep-13,STATIONERY SUNDRIES,Surgery,NHS LOGISTICS,1014087475,0.37,
Department of Health,Salisbury NHS Foundation Trust,20-Sep-13,STATIONERY SUNDRIES,Clinical Support and Family Services,NHS LOGISTICS,1014087475,0.05,
Department of Health,Salisbury NHS Foundation Trust,20-Sep-13,STATIONERY SUNDRIES,Clinical Support and Family Services,NHS LOGISTICS,1014087475,0.39,
Department of Health,Salisbury NHS Foundation Trust,20-Sep-13,STATIONERY SUNDRIES,Clinical Support and Family Services,NHS LOGISTICS,1014087475,0.11,
Department of Health,Salisbury NHS Foundation Trust,20-Sep-13,STATIONERY SUNDRIES,Clinical Support and Family Services,NHS LOGISTICS,1014087475,23.7,
Department of Health,Salisbury NHS Foundation Trust,20-Sep-13,STATIONERY SUNDRIES,Clinical Support and Family Services,NHS LOGISTICS,1014087475,1.8,
Department of Health,Salisbury NHS Foundation Trust,20-Sep-13,OFFICE EQUIP MACHINERY  -  OTHER,Clinical Support and Family Services,NHS LOGISTICS,1014087475,0.13,
Department of Health,Salisbury NHS Foundation Trust,20-Sep-13,STATIONERY SUNDRIES,Clinical Support and Family Services,NHS LOGISTICS,1014087475,0.59,
Department of Health,Salisbury NHS Foundation Trust,20-Sep-13,PAPER ITEMS GENERAL STATIONERY SUNDRIES,Clinical Support and Family Services,NHS LOGISTICS,1014087475,2.48,
Department of Health,Salisbury NHS Foundation Trust,20-Sep-13,OTHER MEDICAL SUPPLIES,Surgery,NHS LOGISTICS,1014087475,7.83,
Department of Health,Salisbury NHS Foundation Trust,20-Sep-13,DRESSINGS - PRE STERILE,Surgery,NHS LOGISTICS,1014087475,1.33,
Department of Health,Salisbury NHS Foundation Trust,20-Sep-13,DRESSINGS - PRE STERILE,Surgery,NHS LOGISTICS,1014087475,1.1,
Department of Health,Salisbury NHS Foundation Trust,20-Sep-13,M & S EQUIPELECTEQUIPINST - OTHER,Surgery,NHS LOGISTICS,1014087475,6.36,
Department of Health,Salisbury NHS Foundation Trust,20-Sep-13,MEDSURGCONS - OTHER,Surgery,NHS LOGISTICS,1014087475,4.13,
Department of Health,Salisbury NHS Foundation Trust,20-Sep-13,DRESSINGS - PRE STERILE,Surgery,NHS LOGISTICS,1014087475,0.18,
Department of Health,Salisbury NHS Foundation Trust,20-Sep-13,MEDSURGCONS - OTHER,Surgery,NHS LOGISTICS,1014087475,2.08,
Department of Health,Salisbury NHS Foundation Trust,20-Sep-13,OTHER MEDICAL SUPPLIES,Medicine,NHS LOGISTICS,1014087475,3.31,
Department of Health,Salisbury NHS Foundation Trust,20-Sep-13,NON DISPOSABLE BED LINEN,Medicine,NHS LOGISTICS,1014087475,2.24,
Department of Health,Salisbury NHS Foundation Trust,20-Sep-13,PATIENT APPLIANCES,Medicine,NHS LOGISTICS,1014087475,1.06,
Department of Health,Salisbury NHS Foundation Trust,20-Sep-13,DRESSINGS  -  PROCEDURE PACKS,Surgery,NHS LOGISTICS,1014087475,2.73,
Department of Health,Salisbury NHS Foundation Trust,20-Sep-13,MEDSURGCONS-SUTURES,Surgery,NHS LOGISTICS,1014087475,21.61,
Department of Health,Salisbury NHS Foundation Trust,20-Sep-13,MEDSURGCONS-SUTURES,Surgery,NHS LOGISTICS,1014087475,14.33,
Department of Health,Salisbury NHS Foundation Trust,20-Sep-13,MEDSURGCONS-SUTURES,Surgery,NHS LOGISTICS,1014087475,5.34,
Department of Health,Salisbury NHS Foundation Trust,20-Sep-13,MEDSURGCONS-SUTURES,Surgery,NHS LOGISTICS,1014087475,16.05,
Department of Health,Salisbury NHS Foundation Trust,20-Sep-13,MEDSURGCONS-SUTURES,Surgery,NHS LOGISTICS,1014087475,17.81,
Department of Health,Salisbury NHS Foundation Trust,20-Sep-13,MEDSURGCONS-SUTURES,Surgery,NHS LOGISTICS,1014087475,4.57,
Department of Health,Salisbury NHS Foundation Trust,20-Sep-13,MEDSURGCONS-SUTURES,Surgery,NHS LOGISTICS,1014087475,5.91,
Department of Health,Salisbury NHS Foundation Trust,20-Sep-13,MEDSURGCONS-SUTURES,Surgery,NHS LOGISTICS,1014087475,10.69,
Department of Health,Salisbury NHS Foundation Trust,20-Sep-13,MEDSURGCONS-SUTURES,Surgery,NHS LOGISTICS,1014087475,22.77,
Department of Health,Salisbury NHS Foundation Trust,20-Sep-13,MEDSURGCONS-SUTURES,Surgery,NHS LOGISTICS,1014087475,12.3,
Department of Health,Salisbury NHS Foundation Trust,20-Sep-13,MEDSURGCONS-SUTURES,Surgery,NHS LOGISTICS,1014087475,12.4,
Department of Health,Salisbury NHS Foundation Trust,20-Sep-13,MEDSURGCONS-SUTURES,Surgery,NHS LOGISTICS,1014087475,11.42,
Department of Health,Salisbury NHS Foundation Trust,20-Sep-13,MEDSURGCONS-SUTURES,Surgery,NHS LOGISTICS,1014087475,12.33,
Department of Health,Salisbury NHS Foundation Trust,20-Sep-13,MEDSURGCONS-SUTURES,Surgery,NHS LOGISTICS,1014087475,8.92,
Department of Health,Salisbury NHS Foundation Trust,20-Sep-13,MEDSURGCONS-SUTURES,Surgery,NHS LOGISTICS,1014087475,8.76,
Department of Health,Salisbury NHS Foundation Trust,20-Sep-13,MEDSURGCONS-SUTURES,Surgery,NHS LOGISTICS,1014087475,18.04,
Department of Health,Salisbury NHS Foundation Trust,20-Sep-13,MEDSURGCONS-SUTURES,Surgery,NHS LOGISTICS,1014087475,11.55,
Department of Health,Salisbury NHS Foundation Trust,20-Sep-13,MEDSURGCONS-SUTURES,Surgery,NHS LOGISTICS,1014087475,21.48,
Department of Health,Salisbury NHS Foundation Trust,20-Sep-13,MEDSURGCONS-SUTURES,Surgery,NHS LOGISTICS,1014087475,2.68,
Department of Health,Salisbury NHS Foundation Trust,20-Sep-13,MEDSURGCONS-SUTURES,Surgery,NHS LOGISTICS,1014087475,5.27,
Department of Health,Salisbury NHS Foundation Trust,20-Sep-13,STATIONERY SUNDRIES,Clinical Effctiveness Directorate,NHS LOGISTICS,1014087475,0.36,
Department of Health,Salisbury NHS Foundation Trust,20-Sep-13,STATIONERY SUNDRIES,Clinical Effctiveness Directorate,NHS LOGISTICS,1014087475,0.47,
Department of Health,Salisbury NHS Foundation Trust,20-Sep-13,STATIONERY SUNDRIES,Clinical Effctiveness Directorate,NHS LOGISTICS,1014087475,0.1,
Department of Health,Salisbury NHS Foundation Trust,20-Sep-13,STATIONERY SUNDRIES,Clinical Effctiveness Directorate,NHS LOGISTICS,1014087475,0.23,
Department of Health,Salisbury NHS Foundation Trust,20-Sep-13,STATIONERY SUNDRIES,Nursing Directorate,NHS LOGISTICS,1014087475,0.1,
Department of Health,Salisbury NHS Foundation Trust,20-Sep-13,STATIONERY SUNDRIES,Nursing Directorate,NHS LOGISTICS,1014087475,0.1,
Department of Health,Salisbury NHS Foundation Trust,20-Sep-13,STATIONERY SUNDRIES,Nursing Directorate,NHS LOGISTICS,1014087475,0.23,
Department of Health,Salisbury NHS Foundation Trust,20-Sep-13,STATIONERY SUNDRIES,Surgery,NHS LOGISTICS,1014087475,0.19,
Department of Health,Salisbury NHS Foundation Trust,20-Sep-13,OTHER MEDICAL SUPPLIES,Surgery,NHS LOGISTICS,1014087475,3.87,
Department of Health,Salisbury NHS Foundation Trust,20-Sep-13,OTHER MEDICAL SUPPLIES,Surgery,NHS LOGISTICS,1014087475,3.31,
Department of Health,Salisbury NHS Foundation Trust,20-Sep-13,NON DISPOSABLE BED LINEN,Surgery,NHS LOGISTICS,1014087475,2.24,
Department of Health,Salisbury NHS Foundation Trust,20-Sep-13,PATIENT APPLIANCES,Surgery,NHS LOGISTICS,1014087475,1.06,
Department of Health,Salisbury NHS Foundation Trust,20-Sep-13,STATIONERY SUNDRIES,Clinical Support and Family Services,NHS LOGISTICS,1014087475,0.19,
Department of Health,Salisbury NHS Foundation Trust,20-Sep-13,MEDSURGCONS - OTHER,Medicine,NHS LOGISTICS,1014087475,30.95,
Department of Health,Salisbury NHS Foundation Trust,20-Sep-13,MEDSURGCONS - OTHER,Medicine,NHS LOGISTICS,1014087475,3.77,
Department of Health,Salisbury NHS Foundation Trust,20-Sep-13,ELECTRICAL EQUIPMENT x,Critical care,NHS LOGISTICS,1014087475,1,
Department of Health,Salisbury NHS Foundation Trust,20-Sep-13,ELECTRICAL EQUIPMENT x,Critical care,NHS LOGISTICS,1014087475,0.53,
Department of Health,Salisbury NHS Foundation Trust,20-Sep-13,OTHER MEDICAL SUPPLIES,Surgery,NHS LOGISTICS,1014087475,13.6,
Department of Health,Salisbury NHS Foundation Trust,20-Sep-13,STATIONERY SUNDRIES,Surgery,NHS LOGISTICS,1014087475,0.1,
Department of Health,Salisbury NHS Foundation Trust,20-Sep-13,STATIONERY SUNDRIES,Surgery,NHS LOGISTICS,1014087475,0.94,
Department of Health,Salisbury NHS Foundation Trust,20-Sep-13,TOILETRIES PERSONAL HYGIENE PRODUCTS,Surgery,NHS LOGISTICS,1014087475,0.77,
Department of Health,Salisbury NHS Foundation Trust,20-Sep-13,TISSUES HAND TOWELS & TOILET PAPER,Surgery,NHS LOGISTICS,1014087475,0.38,
Department of Health,Salisbury NHS Foundation Trust,20-Sep-13,DRESSINGS - PRE STERILE,Surgery,NHS LOGISTICS,1014087475,1.2,
Department of Health,Salisbury NHS Foundation Trust,20-Sep-13,DRESSINGS - PRE STERILE,Clinical Support and Family Services,NHS LOGISTICS,1014087475,0.2,
Department of Health,Salisbury NHS Foundation Trust,20-Sep-13,NON DISPOSABLE BED LINEN,Clinical Support and Family Services,NHS LOGISTICS,1014087475,4.9,
Department of Health,Salisbury NHS Foundation Trust,20-Sep-13,MEDSURGCONS - OTHER,Clinical Support and Family Services,NHS LOGISTICS,1014087475,0.83,
Department of Health,Salisbury NHS Foundation Trust,20-Sep-13,TUBES,Clinical Support and Family Services,NHS LOGISTICS,1014087475,1.38,
Department of Health,Salisbury NHS Foundation Trust,20-Sep-13,PAPER ITEMS GENERAL STATIONERY SUNDRIES,Surgery,NHS LOGISTICS,1014087475,9.93,
Department of Health,Salisbury NHS Foundation Trust,20-Sep-13,STATIONERY SUNDRIES,Surgery,NHS LOGISTICS,1014087475,0.23,
Department of Health,Salisbury NHS Foundation Trust,20-Sep-13,STATIONERY SUNDRIES,Critical care,NHS LOGISTICS,1014087475,1.17,
Department of Health,Salisbury NHS Foundation Trust,20-Sep-13,STATIONERY SUNDRIES,Critical care,NHS LOGISTICS,1014087475,0.46,
Department of Health,Salisbury NHS Foundation Trust,20-Sep-13,NON DISPOSABLE BED LINEN,Clinical Support and Family Services,NHS LOGISTICS,1014087475,2.25,
Department of Health,Salisbury NHS Foundation Trust,20-Sep-13,STATIONERY SUNDRIES,Medicine,NHS LOGISTICS,1014087475,0.4,
Department of Health,Salisbury NHS Foundation Trust,20-Sep-13,STATIONERY SUNDRIES,Medicine,NHS LOGISTICS,1014087475,0.04,
Department of Health,Salisbury NHS Foundation Trust,20-Sep-13,TISSUES HAND TOWELS & TOILET PAPER,Human Resources,NHS LOGISTICS,1014087475,0.92,
Department of Health,Salisbury NHS Foundation Trust,20-Sep-13,M & S EQUIPELECTEQUIPINST - OTHER,Clinical Support and Family Services,NHS LOGISTICS,1014087475,48.2,
Department of Health,Salisbury NHS Foundation Trust,20-Sep-13,DRUGS,Clinical Support and Family Services,NHS LOGISTICS,1014087475,1.13,
Department of Health,Salisbury NHS Foundation Trust,20-Sep-13,DRESSINGS - PRE STERILE,Clinical Support and Family Services,NHS LOGISTICS,1014087475,2.35,
Department of Health,Salisbury NHS Foundation Trust,20-Sep-13,STATIONERY SUNDRIES,Facilities Directorate,NHS LOGISTICS,1014087475,0.26,
Department of Health,Salisbury NHS Foundation Trust,20-Sep-13,STATIONERY SUNDRIES,Facilities Directorate,NHS LOGISTICS,1014087475,0.4,
Department of Health,Salisbury NHS Foundation Trust,20-Sep-13,STATIONERY SUNDRIES,Facilities Directorate,NHS LOGISTICS,1014087475,0.15,
Department of Health,Salisbury NHS Foundation Trust,20-Sep-13,STATIONERY SUNDRIES,Facilities Directorate,NHS LOGISTICS,1014087475,0.18,
Department of Health,Salisbury NHS Foundation Trust,20-Sep-13,STATIONERY SUNDRIES,Critical care,NHS LOGISTICS,1014087475,0.21,
Department of Health,Salisbury NHS Foundation Trust,20-Sep-13,STATIONERY SUNDRIES,Critical care,NHS LOGISTICS,1014087475,0.91,
Department of Health,Salisbury NHS Foundation Trust,20-Sep-13,OTHER MEDICAL SUPPLIES,Clinical Support and Family Services,NHS LOGISTICS,1014087475,18.96,
Department of Health,Salisbury NHS Foundation Trust,20-Sep-13,MEDSURGCONS - OTHER,Clinical Support and Family Services,NHS LOGISTICS,1014087475,0.28,
Department of Health,Salisbury NHS Foundation Trust,20-Sep-13,DRESSINGS  -  PROCEDURE PACKS,Surgery,NHS LOGISTICS,1014087475,0.29,
Department of Health,Salisbury NHS Foundation Trust,20-Sep-13,DISPOSABLE THEATRE DRAPES WIPES,Medicine,NHS LOGISTICS,1014087475,4.73,
Department of Health,Salisbury NHS Foundation Trust,20-Sep-13,STATIONERY SUNDRIES,Surgery,NHS LOGISTICS,1014087475,0.37,
Department of Health,Salisbury NHS Foundation Trust,20-Sep-13,STATIONERY SUNDRIES,Surgery,NHS LOGISTICS,1014087475,0.59,
Department of Health,Salisbury NHS Foundation Trust,20-Sep-13,PAPER ITEMS GENERAL STATIONERY SUNDRIES,Surgery,NHS LOGISTICS,1014087475,0.08,
Department of Health,Salisbury NHS Foundation Trust,20-Sep-13,DISPOSABLE THEATRE DRAPES WIPES,Surgery,NHS LOGISTICS,1014087475,0.34,
Department of Health,Salisbury NHS Foundation Trust,20-Sep-13,MEDSURGCONS - OTHER,Critical care,NHS LOGISTICS,1014087475,17.19,
Department of Health,Salisbury NHS Foundation Trust,20-Sep-13,PATIENTS INCONTINENCE,Critical care,NHS LOGISTICS,1014087475,1.82,
Department of Health,Salisbury NHS Foundation Trust,20-Sep-13,PATIENT APPLIANCES,Critical care,NHS LOGISTICS,1014087475,0.78,
Department of Health,Salisbury NHS Foundation Trust,20-Sep-13,TOILETRIES PERSONAL HYGIENE PRODUCTS,Critical care,NHS LOGISTICS,1014087475,1.36,
Department of Health,Salisbury NHS Foundation Trust,20-Sep-13,TISSUES HAND TOWELS & TOILET PAPER,Critical care,NHS LOGISTICS,1014087475,0.07,
Department of Health,Salisbury NHS Foundation Trust,20-Sep-13,CLEANING MATERIALS PRODUCTS SUNDRIES,Facilities Directorate,NHS LOGISTICS,1014087475,2.47,
Department of Health,Salisbury NHS Foundation Trust,20-Sep-13,STATIONERY SUNDRIES,Facilities Directorate,NHS LOGISTICS,1014087475,0.2,
Department of Health,Salisbury NHS Foundation Trust,20-Sep-13,CLEANING MATERIALS PRODUCTS SUNDRIES,Facilities Directorate,NHS LOGISTICS,1014087475,2.32,
